Workbook

Sheet ЮНИОРЫ ЯНАО
A2: Кубок Ямало-Ненецкого АО по кроссу на снегоходах 2016/2017 года
A3: СВОДНЫЙ ПРОТОКОЛ ЛИЧНОГО ЗАЧЕТА по сумме 3-х этапов. | GF3: первый этап
A4: 1-й этап: 03 - 04 декабря 2016 года - г. Новый Уренгой, Ямало-Ненецкий АО; 2-й этап: 24 - 26 марта 2017 года - г. Муравленко, Ямало-Ненецкий АО; 3-й этап: 31 марта - 02 апреля 2017 года - г. Новый Уренгой, Ямало-Ненецкий АО. | FU4: первый заезд личные очки | GQ4: второй заезд личные очки | HN4: Первый заезд командные очки | IK4: Второй заезд командные очки
A5: Класс "ЮНИОРЫ" (0910203811А). | FT5: 1 | FU5: 2 | FV5: 3 | FW5: 4 | FX5: 5 | FY5: 6 | FZ5: 7 | GA5: 8 | GB5: 9 | GC5: 10 | GD5: 11 | GE5: 12 | GF5: 13 | GG5: 14 | GH5: 15 | GI5: 16 | GJ5: 17 | GK5: 18 | GL5: 19 | GM5: 20 | GN5: 21 | GO5: сх | GP5: Sym | GQ5: 1 | GR5: 2 | GS5: 3 | GT5: 4 | GU5: 5 | GV5: 6 | GW5: 7 | GX5: 8 | GY5: 9 | GZ5: 10 | HA5: 11 | HB5: 12 | HC5: 13 | HD5: 14 | HE5: 15 | HF5: 16 | HG5: 17 | HH5: 18 | HI5: 19 | HJ5: 20 | HK5: 21 | HL5: cx | HM5: sym | HN5: 1 | HO5: 2 | HP5: 3 | HQ5: 4 | HR5: 5 | HS5: 6 | HT5: 7 | HU5: 8 | HV5: 9 | HW5: 10 | HX5: 11 | HY5: 12 | HZ5: 13 | IA5: 14 | IB5: 15 | IC5: 16 | ID5: 17 | IE5: 18 | IF5: 19 | IG5: 20 | IH5: 21 | II5: сх | IJ5: очки | IK5: 1 | IL5: 2 | IM5: 3 | IN5: 4 | IO5: 5 | IP5: 6 | IQ5: 7 | IR5: 8 | IS5: 9 | IT5: 10 | IU5: 11 | IV5: 12 | IW5: 13 | IX5: 14 | IY5: 15 | IZ5: 16 | JA5: 17 | JB5: 18 | JC5: 19 | JD5: 20 | JE5: 21 | JF5: сх | JG5: очки | JH5: =COUNT(FT5:JG5) -> 84 | JI5: Н. Стро | JJ5: В. стро | JK5: место
L6: 1-й этап | P6: 2-й этап | V6: 3-й этап
A7: Место | B7: СУММА РЕЙТИНГОВЫЕ ОЧКИ | C7: 1-й этап РЕЙТИНГОВЫЕ ОЧКИ Коэф. 0,3 | D7: 2-й этап РЕЙТИНГОВЫЕ ОЧКИ Коэф. 0,3 | E7: 3-й этап РЕЙТИНГОВЫЕ ОЧКИ Коэф. 0,3 | F7: Ст. № | G7: Фамилия, Имя | H7: Раз ряд | I7: Город (край, район, область) | J7: Команда | K7: Мото | L7: I-й заезд | N7: II-й заезд | P7: I-й заезд | R7: II-й заезд | T7: III-й заезд | V7: I-й заезд | X7: II-й заезд | Z7: III-й заезд | AB7: Сумма очков в личном зачете | AC7: Сумма очк. в командном зачете
L8: место | M8: лич. Очки. | N8: место | O8: лич. Очки. | P8: место | Q8: лич. Очки. | R8: место | S8: лич. Очки. | T8: место | U8: лич. Очки. | V8: место | W8: лич. Очки. | X8: место | Y8: лич. Очки. | Z8: место | AA8: лич. Очки. | AG8: первый заезд личные очки | BC8: второй заезд личные очки | BZ8: Первый заезд командные очки | DQ8: Второй заезд командные очки | FI8: 1 | FJ8: 2 | GF8: первый этап
AF9: 1 | AG9: 2 | AH9: 3 | AI9: 4 | AJ9: 5 | AK9: 6 | AL9: 7 | AM9: 8 | AN9: 9 | AO9: 10 | AP9: 11 | AQ9: 12 | AR9: 13 | AS9: 14 | AT9: 15 | AU9: 16 | AV9: 17 | AW9: 18 | AX9: 19 | AY9: 20 | AZ9: 21 | BA9: сх | BC9: 1 | BD9: 2 | BE9: 3 | BF9: 4 | BG9: 5 | BH9: 6 | BI9: 7 | BJ9: 8 | BK9: 9 | BL9: 10 | BM9: 11 | BN9: 12 | BO9: 13 | BP9: 14 | BQ9: 15 | BR9: 16 | BS9: 17 | BT9: 18 | BU9: 19 | BV9: 20 | BX9: cx | BZ9: 1 | CA9: 2 | CB9: 3 | CC9: 4 | CD9: 5 | CE9: 6 | CF9: 7 | CG9: 8 | CH9: 9 | CI9: 10 | CJ9: 11 | CK9: 12 | CL9: 13 | CM9: 14 | CN9: 15 | CO9: 16 | CP9: 17 | CQ9: 18 | CR9: 19 | CS9: 20 | CT9: 21 | CU9: 22 | CV9: 23 | CW9: 24 | CX9: 25 | CY9: 26 | CZ9: 27 | DA9: 28 | DB9: 29 | DC9: 30 | DD9: 31 | DE9: 32 | DF9: 33 | DG9: 34 | DH9: 35 | DI9: 36 | DJ9: 37 | DK9: 38 | DL9: 39 | DM9: 40 | DQ9: 1 | DR9: 2 | DS9: 3 | DT9: 4 | DU9: 5 | DV9: 6 | DW9: 7 | DX9: 8 | DY9: 9 | DZ9: 10 | EA9: 11 | EB9: 12 | EC9: 13 | ED9: 14 | EE9: 15 | EF9: 16 | EG9: 17 | EH9: 18 | EI9: 19 | EJ9: 20 | EK9: 21 | EL9: 22 | EM9: 23 | EN9: 24 | EO9: 25 | EP9: 26 | EQ9: 27 | ER9: 28 | ES9: 29 | ET9: 30 | EU9: 31 | EV9: 32 | EW9: 33 | EX9: 34 | EY9: 35 | EZ9: 36 | FA9: 37 | FB9: 38 | FC9: 39 | FD9: 40 | FL9: мин | FM9: Н. Стро | FN9: В. стро | FO9: место | FQ9: чр1 | FR9: чр2 | FU9: первый заезд личные очки | GQ9: второй заезд личные очки | HN9: Первый заезд командные очки | IK9: Второй заезд командные очки
A10: 1 | B10: =SUM(C10+D10+E10) -> 45 | C10: 15 | D10: 15 | E10: 15 | F10: 10 | G10: Колегов Михаил | H10: II | I10: г. Новый Уренгой, Ямало-Ненецкий АО | J10: СТК "Ямбург" | K10: LYNX | L10: 1 | M10: 25 | N10: - | O10: 0 | P10: 1 | Q10: 25 | R10: 1 | S10: 25 | T10: - | U10: 0 | V10: 1 | W10: 25 | X10: 1 | Y10: 25 | Z10: 1 | AA10: 25 | AB10: =SUM(M10+O10+Q10+S10+U10+W10+Y10+AA10) -> 150 | AC10: =M10+O10 -> 25 | AF10: =IF(L10=1,25,0) -> 25 | AG10: =IF(L10=2,22,0) -> 0 | AH10: =IF(L10=3,20,0) -> 0 | AI10: =IF(L10=4,18,0) -> 0 | AJ10: =IF(L10=5,16,0) -> 0 | AK10: =IF(L10=6,15,0) -> 0 | AL10: =IF(L10=7,14,0) -> 0 | AM10: =IF(L10=8,13,0) -> 0 | AN10: =IF(L10=9,12,0) -> 0 | AO10: =IF(L10=10,11,0) -> 0 | AP10: =IF(L10=11,10,0) -> 0 | AQ10: =IF(L10=12,9,0) -> 0 | AR10: =IF(L10=13,8,0) -> 0 | AS10: =IF(L10=14,7,0) -> 0 | AT10: =IF(L10=15,6,0) -> 0 | AU10: =IF(L10=16,5,0) -> 0 | AV10: =IF(L10=17,4,0) -> 0 | AW10: =IF(L10=18,3,0) -> 0 | AX10: =IF(L10=19,2,0) -> 0 | AY10: =IF(L10=20,1,0) -> 0 | AZ10: =IF(L10>20,0,0) -> 0 | BA10: =IF(L10="сх",0,0) -> 0 | BB10: =SUM(AF10:AZ10) -> 25 | BC10: =IF(N10=1,25,0) -> 0 | BD10: =IF(N10=2,22,0) -> 0 | BE10: =IF(N10=3,20,0) -> 0 | BF10: =IF(N10=4,18,0) -> 0 | BG10: =IF(N10=5,16,0) -> 0 | BH10: =IF(N10=6,15,0) -> 0 | BI10: =IF(N10=7,14,0) -> 0 | BJ10: =IF(N10=8,13,0) -> 0 | BK10: =IF(N10=9,12,0) -> 0 | BL10: =IF(N10=10,11,0) -> 0 | BM10: =IF(N10=11,10,0) -> 0 | BN10: =IF(N10=12,9,0) -> 0 | BO10: =IF(N10=13,8,0) -> 0 | BP10: =IF(N10=14,7,0) -> 0 | BQ10: =IF(N10=15,6,0) -> 0 | BR10: =IF(N10=16,5,0) -> 0 | BS10: =IF(N10=17,4,0) -> 0 | BT10: =IF(N10=18,3,0) -> 0 | BU10: =IF(N10=19,2,0) -> 0 | BV10: =IF(N10=20,1,0) -> 0 | BW10: =IF(N10>20,0,0) -> 0 | BX10: =IF(N10="сх",0,0) -> 0 | BY10: =SUM(BC10:BW10) -> 0 | BZ10: =IF(L10=1,45,0) -> 45 | CA10: =IF(L10=2,42,0) -> 0 | CB10: =IF(L10=3,40,0) -> 0 | CC10: =IF(L10=4,38,0) -> 0 | CD10: =IF(L10=5,36,0) -> 0 | CE10: =IF(L10=6,35,0) -> 0 | CF10: =IF(L10=7,34,0) -> 0 | CG10: =IF(L10=8,33,0) -> 0 | CH10: =IF(L10=9,32,0) -> 0 | CI10: =IF(L10=10,31,0) -> 0 | CJ10: =IF(L10=11,30,0) -> 0 | CK10: =IF(L10=12,29,0) -> 0 | CL10: =IF(L10=13,28,0) -> 0 | CM10: =IF(L10=14,27,0) -> 0 | CN10: =IF(L10=15,26,0) -> 0 | CO10: =IF(L10=16,25,0) -> 0 | CP10: =IF(L10=17,24,0) -> 0 | CQ10: =IF(L10=18,23,0) -> 0 | CR10: =IF(L10=19,22,0) -> 0 | CS10: =IF(L10=20,21,0) -> 0 | CT10: =IF(L10=21,20,0) -> 0 | CU10: =IF(L10=22,19,0) -> 0 | CV10: =IF(L10=23,18,0) -> 0 | CW10: =IF(L10=24,17,0) -> 0 | CX10: =IF(L10=25,16,0) -> 0 | CY10: =IF(L10=26,15,0) -> 0 | CZ10: =IF(L10=27,14,0) -> 0 | DA10: =IF(L10=28,13,0) -> 0 | DB10: =IF(L10=29,12,0) -> 0 | DC10: =IF(L10=30,11,0) -> 0 | DD10: =IF(L10=31,10,0) -> 0 | DE10: =IF(L10=32,9,0) -> 0 | DF10: =IF(L10=33,8,0) -> 0 | DG10: =IF(L10=34,7,0) -> 0 | DH10: =IF(L10=35,6,0) -> 0 | DI10: =IF(L10=36,5,0) -> 0 | DJ10: =IF(L10=37,4,0) -> 0 | DK10: =IF(L10=38,3,0) -> 0 | DL10: =IF(L10=39,2,0) -> 0 | DM10: =IF(L10=40,1,0) -> 0 | DN10: =IF(L10>20,0,0) -> 0 | DO10: =IF(L10="сх",0,0) -> 0 | DP10: =SUM(BZ10:DO10) -> 45 | DQ10: =IF(N10=1,45,0) -> 0 | DR10: =IF(N10=2,42,0) -> 0 | DS10: =IF(N10=3,40,0) -> 0 | DT10: =IF(N10=4,38,0) -> 0 | DU10: =IF(N10=5,36,0) -> 0 | DV10: =IF(N10=6,35,0) -> 0 | DW10: =IF(N10=7,34,0) -> 0 | DX10: =IF(N10=8,33,0) -> 0 | DY10: =IF(N10=9,32,0) -> 0 | DZ10: =IF(N10=10,31,0) -> 0 | EA10: =IF(N10=11,30,0) -> 0 | EB10: =IF(N10=12,29,0) -> 0 | EC10: =IF(N10=13,28,0) -> 0 | ED10: =IF(N10=14,27,0) -> 0 | EE10: =IF(N10=15,26,0) -> 0 | EF10: =IF(N10=16,25,0) -> 0 | EG10: =IF(N10=17,24,0) -> 0 | EH10: =IF(N10=18,23,0) -> 0 | EI10: =IF(N10=19,22,0) -> 0 | EJ10: =IF(N10=20,21,0) -> 0 | EK10: =IF(N10=21,20,0) -> 0 | EL10: =IF(N10=22,19,0) -> 0 | EM10: =IF(N10=23,18,0) -> 0 | EN10: =IF(N10=24,17,0) -> 0 | EO10: =IF(N10=25,16,0) -> 0 | EP10: =IF(N10=26,15,0) -> 0 | EQ10: =IF(N10=27,14,0) -> 0 | ER10: =IF(N10=28,13,0) -> 0 | ES10: =IF(N10=29,12,0) -> 0 | ET10: =IF(N10=30,11,0) -> 0 | EU10: =IF(N10=31,10,0) -> 0 | EV10: =IF(N10=32,9,0) -> 0 | EW10: =IF(N10=33,8,0) -> 0 | EX10: =IF(N10=34,7,0) -> 0 | EY10: =IF(N10=35,6,0) -> 0 | EZ10: =IF(N10=36,5,0) -> 0 | FA10: =IF(N10=37,4,0) -> 0 | FB10: =IF(N10=38,3,0) -> 0 | FC10: =IF(N10=39,2,0) -> 0 | FD10: =IF(N10=40,1,0) -> 0 | FE10: =IF(N10>20,0,0) -> 0 | FF10: =IF(N10="сх",0,0) -> 0 | FG10: =SUM(DQ10:FF10) -> 0 | FI10: =IF(L10="сх","ноль",IF(L10>0,L10,"Ноль")) -> 1 | FJ10: =IF(N10="сх","ноль",IF(N10>0,N10,"Ноль")) -> - | FL10: =MIN(FI10,FJ10) -> 1 | FM10: =IF(AB10=#REF!,IF(N10<#REF!,#REF!,FQ10),#REF!) ->  | FN10: =IF(AB10=#REF!,IF(N10<#REF!,0,1)) ->  | FO10: =IF(AND(FL10>=21,FL10<>0),FL10,IF(AB10<#REF!,"СТОП",FM10+FN10)) ->  | FQ10: 15 | FR10: 16 | FT10: =IF(L10=1,25,0) -> 25 | FU10: =IF(L10=2,22,0) -> 0 | FV10: =IF(L10=3,20,0) -> 0 | FW10: =IF(L10=4,18,0) -> 0 | FX10: =IF(L10=5,16,0) -> 0 | FY10: =IF(L10=6,15,0) -> 0 | FZ10: =IF(L10=7,14,0) -> 0 | GA10: =IF(L10=8,13,0) -> 0 | GB10: =IF(L10=9,12,0) -> 0 | GC10: =IF(L10=10,11,0) -> 0 | GD10: =IF(L10=11,10,0) -> 0 | GE10: =IF(L10=12,9,0) -> 0 | GF10: =IF(L10=13,8,0) -> 0 | GG10: =IF(L10=14,7,0) -> 0 | GH10: =IF(L10=15,6,0) -> 0 | GI10: =IF(L10=16,5,0) -> 0 | GJ10: =IF(L10=17,4,0) -> 0 | GK10: =IF(L10=18,3,0) -> 0 | GL10: =IF(L10=19,2,0) -> 0 | GM10: =IF(L10=20,1,0) -> 0 | GN10: =IF(L10>20,0,0) -> 0 | GO10: =IF(L10="сх",0,0) -> 0 | GP10: =SUM(FT10:GO10) -> 25 | GQ10: =IF(N10=1,25,0) -> 0 | GR10: =IF(N10=2,22,0) -> 0 | GS10: =IF(N10=3,20,0) -> 0 | GT10: =IF(N10=4,18,0) -> 0 | GU10: =IF(N10=5,16,0) -> 0 | GV10: =IF(N10=6,15,0) -> 0 | GW10: =IF(N10=7,14,0) -> 0 | GX10: =IF(N10=8,13,0) -> 0 | GY10: =IF(N10=9,12,0) -> 0 | GZ10: =IF(N10=10,11,0) -> 0 | HA10: =IF(N10=11,10,0) -> 0 | HB10: =IF(N10=12,9,0) -> 0 | HC10: =IF(N10=13,8,0) -> 0 | HD10: =IF(N10=14,7,0) -> 0 | HE10: =IF(N10=15,6,0) -> 0 | HF10: =IF(N10=16,5,0) -> 0 | HG10: =IF(N10=17,4,0) -> 0 | HH10: =IF(N10=18,3,0) -> 0 | HI10: =IF(N10=19,2,0) -> 0 | HJ10: =IF(N10=20,1,0) -> 0 | HK10: =IF(N10>20,0,0) -> 0 | HL10: =IF(N10="сх",0,0) -> 0 | HM10: =SUM(GQ10:HL10) -> 0 | HN10: =IF(L10=1,100,0) -> 100 | HO10: =IF(L10=2,98,0) -> 0 | HP10: =IF(L10=3,95,0) -> 0 | HQ10: =IF(L10=4,93,0) -> 0 | HR10: =IF(L10=5,90,0) -> 0 | HS10: =IF(L10=6,88,0) -> 0 | HT10: =IF(L10=7,85,0) -> 0 | HU10: =IF(L10=8,83,0) -> 0 | HV10: =IF(L10=9,80,0) -> 0 | HW10: =IF(L10=10,78,0) -> 0 | HX10: =IF(L10=11,75,0) -> 0 | HY10: =IF(L10=12,73,0) -> 0 | HZ10: =IF(L10=13,70,0) -> 0 | IA10: =IF(L10=14,68,0) -> 0 | IB10: =IF(L10=15,65,0) -> 0 | IC10: =IF(L10=16,63,0) -> 0 | ID10: =IF(L10=17,60,0) -> 0 | IE10: =IF(L10=18,58,0) -> 0 | IF10: =IF(L10=19,55,0) -> 0 | IG10: =IF(L10=20,53,0) -> 0 | IH10: =IF(L10>20,0,0) -> 0 | II10: =IF(L10="сх",0,0) -> 0 | IJ10: =SUM(HN10:II10) -> 100 | IK10: =IF(N10=1,100,0) -> 0 | IL10: =IF(N10=2,98,0) -> 0 | IM10: =IF(N10=3,95,0) -> 0 | IN10: =IF(N10=4,93,0) -> 0 | IO10: =IF(N10=5,90,0) -> 0 | IP10: =IF(N10=6,88,0) -> 0 | IQ10: =IF(N10=7,85,0) -> 0 | IR10: =IF(N10=8,83,0) -> 0 | IS10: =IF(N10=9,80,0) -> 0 | IT10: =IF(N10=10,78,0) -> 0 | IU10: =IF(N10=11,75,0) -> 0 | IV10: =IF(N10=12,73,0) -> 0 | IW10: =IF(N10=13,70,0) -> 0 | IX10: =IF(N10=14,68,0) -> 0 | IY10: =IF(N10=15,65,0) -> 0 | IZ10: =IF(N10=16,63,0) -> 0 | JA10: =IF(N10=17,60,0) -> 0 | JB10: =IF(N10=18,58,0) -> 0 | JC10: =IF(N10=19,55,0) -> 0 | JD10: =IF(N10=20,53,0) -> 0 | JE10: =IF(N10>20,0,0) -> 0 | JF10: =IF(N10="сх",0,0) -> 0 | JG10: =SUM(IK10:JF10) -> 0
A11: 2 | B11: 42.3 | C11: 14.4 | D11: 14.4 | E11: 13.5 | F11: 14 | G11: Довбуш Евгений | H11: I | I11: г. Новый Уренгой, Ямало-Ненецкий АО | J11: СТК "Факел" | K11: LYNX | L11: 2 | M11: 22 | N11: - | O11: 0 | P11: 3 | Q11: 20 | R11: 2 | S11: 22 | T11: - | U11: 0 | V11: 11 | W11: 10 | X11: 3 | Y11: 20 | Z11: 3 | AA11: 20 | AB11: 114 | AC11: =M11+O11 -> 22 | AF11: =IF(L11=1,25,0) -> 0 | AG11: =IF(L11=2,22,0) -> 22 | AH11: =IF(L11=3,20,0) -> 0 | AI11: =IF(L11=4,18,0) -> 0 | AJ11: =IF(L11=5,16,0) -> 0 | AK11: =IF(L11=6,15,0) -> 0 | AL11: =IF(L11=7,14,0) -> 0 | AM11: =IF(L11=8,13,0) -> 0 | AN11: =IF(L11=9,12,0) -> 0 | AO11: =IF(L11=10,11,0) -> 0 | AP11: =IF(L11=11,10,0) -> 0 | AQ11: =IF(L11=12,9,0) -> 0 | AR11: =IF(L11=13,8,0) -> 0 | AS11: =IF(L11=14,7,0) -> 0 | AT11: =IF(L11=15,6,0) -> 0 | AU11: =IF(L11=16,5,0) -> 0 | AV11: =IF(L11=17,4,0) -> 0 | AW11: =IF(L11=18,3,0) -> 0 | AX11: =IF(L11=19,2,0) -> 0 | AY11: =IF(L11=20,1,0) -> 0 | AZ11: =IF(L11>20,0,0) -> 0 | BA11: =IF(L11="сх",0,0) -> 0 | BB11: 22 | BC11: =IF(N11=1,25,0) -> 0 | BD11: =IF(N11=2,22,0) -> 0 | BE11: =IF(N11=3,20,0) -> 0 | BF11: =IF(N11=4,18,0) -> 0 | BG11: =IF(N11=5,16,0) -> 0 | BH11: =IF(N11=6,15,0) -> 0 | BI11: =IF(N11=7,14,0) -> 0 | BJ11: =IF(N11=8,13,0) -> 0 | BK11: =IF(N11=9,12,0) -> 0 | BL11: =IF(N11=10,11,0) -> 0 | BM11: =IF(N11=11,10,0) -> 0 | BN11: =IF(N11=12,9,0) -> 0 | BO11: =IF(N11=13,8,0) -> 0 | BP11: =IF(N11=14,7,0) -> 0 | BQ11: =IF(N11=15,6,0) -> 0 | BR11: =IF(N11=16,5,0) -> 0 | BS11: =IF(N11=17,4,0) -> 0 | BT11: =IF(N11=18,3,0) -> 0 | BU11: =IF(N11=19,2,0) -> 0 | BV11: =IF(N11=20,1,0) -> 0 | BW11: =IF(N11>20,0,0) -> 0 | BX11: =IF(N11="сх",0,0) -> 0 | BY11: 0 | BZ11: =IF(L11=1,45,0) -> 0 | CA11: =IF(L11=2,42,0) -> 42 | CB11: =IF(L11=3,40,0) -> 0 | CC11: =IF(L11=4,38,0) -> 0 | CD11: =IF(L11=5,36,0) -> 0 | CE11: =IF(L11=6,35,0) -> 0 | CF11: =IF(L11=7,34,0) -> 0 | CG11: =IF(L11=8,33,0) -> 0 | CH11: =IF(L11=9,32,0) -> 0 | CI11: =IF(L11=10,31,0) -> 0 | CJ11: =IF(L11=11,30,0) -> 0 | CK11: =IF(L11=12,29,0) -> 0 | CL11: =IF(L11=13,28,0) -> 0 | CM11: =IF(L11=14,27,0) -> 0 | CN11: =IF(L11=15,26,0) -> 0 | CO11: =IF(L11=16,25,0) -> 0 | CP11: =IF(L11=17,24,0) -> 0 | CQ11: =IF(L11=18,23,0) -> 0 | CR11: =IF(L11=19,22,0) -> 0 | CS11: =IF(L11=20,21,0) -> 0 | CT11: =IF(L11=21,20,0) -> 0 | CU11: =IF(L11=22,19,0) -> 0 | CV11: =IF(L11=23,18,0) -> 0 | CW11: =IF(L11=24,17,0) -> 0 | CX11: =IF(L11=25,16,0) -> 0 | CY11: =IF(L11=26,15,0) -> 0 | CZ11: =IF(L11=27,14,0) -> 0 | DA11: =IF(L11=28,13,0) -> 0 | DB11: =IF(L11=29,12,0) -> 0 | DC11: =IF(L11=30,11,0) -> 0 | DD11: =IF(L11=31,10,0) -> 0 | DE11: =IF(L11=32,9,0) -> 0 | DF11: =IF(L11=33,8,0) -> 0 | DG11: =IF(L11=34,7,0) -> 0 | DH11: =IF(L11=35,6,0) -> 0 | DI11: =IF(L11=36,5,0) -> 0 | DJ11: =IF(L11=37,4,0) -> 0 | DK11: =IF(L11=38,3,0) -> 0 | DL11: =IF(L11=39,2,0) -> 0 | DM11: =IF(L11=40,1,0) -> 0 | DN11: =IF(L11>20,0,0) -> 0 | DO11: =IF(L11="сх",0,0) -> 0 | DP11: 42 | DQ11: =IF(N11=1,45,0) -> 0 | DR11: =IF(N11=2,42,0) -> 0 | DS11: =IF(N11=3,40,0) -> 0 | DT11: =IF(N11=4,38,0) -> 0 | DU11: =IF(N11=5,36,0) -> 0 | DV11: =IF(N11=6,35,0) -> 0 | DW11: =IF(N11=7,34,0) -> 0 | DX11: =IF(N11=8,33,0) -> 0 | DY11: =IF(N11=9,32,0) -> 0 | DZ11: =IF(N11=10,31,0) -> 0 | EA11: =IF(N11=11,30,0) -> 0 | EB11: =IF(N11=12,29,0) -> 0 | EC11: =IF(N11=13,28,0) -> 0 | ED11: =IF(N11=14,27,0) -> 0 | EE11: =IF(N11=15,26,0) -> 0 | EF11: =IF(N11=16,25,0) -> 0 | EG11: =IF(N11=17,24,0) -> 0 | EH11: =IF(N11=18,23,0) -> 0 | EI11: =IF(N11=19,22,0) -> 0 | EJ11: =IF(N11=20,21,0) -> 0 | EK11: =IF(N11=21,20,0) -> 0 | EL11: =IF(N11=22,19,0) -> 0 | EM11: =IF(N11=23,18,0) -> 0 | EN11: =IF(N11=24,17,0) -> 0 | EO11: =IF(N11=25,16,0) -> 0 | EP11: =IF(N11=26,15,0) -> 0 | EQ11: =IF(N11=27,14,0) -> 0 | ER11: =IF(N11=28,13,0) -> 0 | ES11: =IF(N11=29,12,0) -> 0 | ET11: =IF(N11=30,11,0) -> 0 | EU11: =IF(N11=31,10,0) -> 0 | EV11: =IF(N11=32,9,0) -> 0 | EW11: =IF(N11=33,8,0) -> 0 | EX11: =IF(N11=34,7,0) -> 0 | EY11: =IF(N11=35,6,0) -> 0 | EZ11: =IF(N11=36,5,0) -> 0 | FA11: =IF(N11=37,4,0) -> 0 | FB11: =IF(N11=38,3,0) -> 0 | FC11: =IF(N11=39,2,0) -> 0 | FD11: =IF(N11=40,1,0) -> 0 | FE11: =IF(N11>20,0,0) -> 0 | FF11: =IF(N11="сх",0,0) -> 0 | FG11: 0 | FI11: =IF(L11="сх","ноль",IF(L11>0,L11,"Ноль")) -> 2 | FJ11: =IF(N11="сх","ноль",IF(N11>0,N11,"Ноль")) -> - | FL11: 2 | FM11: =IF(AB11=#REF!,IF(N11<#REF!,#REF!,FQ11),#REF!) ->  | FN11: =IF(AB11=#REF!,IF(N11<#REF!,0,1)) ->  | FO11: =IF(AND(FL11>=21,FL11<>0),FL11,IF(AB11<#REF!,"СТОП",FM11+FN11)) ->  | FQ11: 15 | FR11: 16 | FT11: =IF(L11=1,25,0) -> 0 | FU11: =IF(L11=2,22,0) -> 22 | FV11: =IF(L11=3,20,0) -> 0 | FW11: =IF(L11=4,18,0) -> 0 | FX11: =IF(L11=5,16,0) -> 0 | FY11: =IF(L11=6,15,0) -> 0 | FZ11: =IF(L11=7,14,0) -> 0 | GA11: =IF(L11=8,13,0) -> 0 | GB11: =IF(L11=9,12,0) -> 0 | GC11: =IF(L11=10,11,0) -> 0 | GD11: =IF(L11=11,10,0) -> 0 | GE11: =IF(L11=12,9,0) -> 0 | GF11: =IF(L11=13,8,0) -> 0 | GG11: =IF(L11=14,7,0) -> 0 | GH11: =IF(L11=15,6,0) -> 0 | GI11: =IF(L11=16,5,0) -> 0 | GJ11: =IF(L11=17,4,0) -> 0 | GK11: =IF(L11=18,3,0) -> 0 | GL11: =IF(L11=19,2,0) -> 0 | GM11: =IF(L11=20,1,0) -> 0 | GN11: =IF(L11>20,0,0) -> 0 | GO11: =IF(L11="сх",0,0) -> 0 | GP11: 22 | GQ11: =IF(N11=1,25,0) -> 0 | GR11: =IF(N11=2,22,0) -> 0 | GS11: =IF(N11=3,20,0) -> 0 | GT11: =IF(N11=4,18,0) -> 0 | GU11: =IF(N11=5,16,0) -> 0 | GV11: =IF(N11=6,15,0) -> 0 | GW11: =IF(N11=7,14,0) -> 0 | GX11: =IF(N11=8,13,0) -> 0 | GY11: =IF(N11=9,12,0) -> 0 | GZ11: =IF(N11=10,11,0) -> 0 | HA11: =IF(N11=11,10,0) -> 0 | HB11: =IF(N11=12,9,0) -> 0 | HC11: =IF(N11=13,8,0) -> 0 | HD11: =IF(N11=14,7,0) -> 0 | HE11: =IF(N11=15,6,0) -> 0 | HF11: =IF(N11=16,5,0) -> 0 | HG11: =IF(N11=17,4,0) -> 0 | HH11: =IF(N11=18,3,0) -> 0 | HI11: =IF(N11=19,2,0) -> 0 | HJ11: =IF(N11=20,1,0) -> 0 | HK11: =IF(N11>20,0,0) -> 0 | HL11: =IF(N11="сх",0,0) -> 0 | HM11: 0 | HN11: =IF(L11=1,100,0) -> 0 | HO11: =IF(L11=2,98,0) -> 98 | HP11: =IF(L11=3,95,0) -> 0 | HQ11: =IF(L11=4,93,0) -> 0 | HR11: =IF(L11=5,90,0) -> 0 | HS11: =IF(L11=6,88,0) -> 0 | HT11: =IF(L11=7,85,0) -> 0 | HU11: =IF(L11=8,83,0) -> 0 | HV11: =IF(L11=9,80,0) -> 0 | HW11: =IF(L11=10,78,0) -> 0 | HX11: =IF(L11=11,75,0) -> 0 | HY11: =IF(L11=12,73,0) -> 0 | HZ11: =IF(L11=13,70,0) -> 0 | IA11: =IF(L11=14,68,0) -> 0 | IB11: =IF(L11=15,65,0) -> 0 | IC11: =IF(L11=16,63,0) -> 0 | ID11: =IF(L11=17,60,0) -> 0 | IE11: =IF(L11=18,58,0) -> 0 | IF11: =IF(L11=19,55,0) -> 0 | IG11: =IF(L11=20,53,0) -> 0 | IH11: =IF(L11>20,0,0) -> 0 | II11: =IF(L11="сх",0,0) -> 0 | IJ11: 98 | IK11: =IF(N11=1,100,0) -> 0 | IL11: =IF(N11=2,98,0) -> 0 | IM11: =IF(N11=3,95,0) -> 0 | IN11: =IF(N11=4,93,0) -> 0 | IO11: =IF(N11=5,90,0) -> 0 | IP11: =IF(N11=6,88,0) -> 0 | IQ11: =IF(N11=7,85,0) -> 0 | IR11: =IF(N11=8,83,0) -> 0 | IS11: =IF(N11=9,80,0) -> 0 | IT11: =IF(N11=10,78,0) -> 0 | IU11: =IF(N11=11,75,0) -> 0 | IV11: =IF(N11=12,73,0) -> 0 | IW11: =IF(N11=13,70,0) -> 0 | IX11: =IF(N11=14,68,0) -> 0 | IY11: =IF(N11=15,65,0) -> 0 | IZ11: =IF(N11=16,63,0) -> 0 | JA11: =IF(N11=17,60,0) -> 0 | JB11: =IF(N11=18,58,0) -> 0 | JC11: =IF(N11=19,55,0) -> 0 | JD11: =IF(N11=20,53,0) -> 0 | JE11: =IF(N11>20,0,0) -> 0 | JF11: =IF(N11="сх",0,0) -> 0 | JG11: 0
A12: 3 | B12: 14.4 | C12: 0 | D12: 0 | E12: 14.4 | F12: 9 | G12: Санин Константин | H12: кмс | I12: г. Новый Уренгой, Ямало-Ненецкий АО | J12: СТК "Ямбург" | K12: LYNX | L12: - | M12: 0 | N12: - | O12: 0 | P12: 2 | Q12: 22 | R12: 4 | S12: 18 | T12: - | U12: 0 | V12: 2 | W12: 22 | X12: 2 | Y12: 22 | Z12: 2 | AA12: 22 | AB12: 106 | AC12: =M12+O12 -> 0 | AF12: =IF(L12=1,25,0) -> 0 | AG12: =IF(L12=2,22,0) -> 0 | AH12: =IF(L12=3,20,0) -> 0 | AI12: =IF(L12=4,18,0) -> 0 | AJ12: =IF(L12=5,16,0) -> 0 | AK12: =IF(L12=6,15,0) -> 0 | AL12: =IF(L12=7,14,0) -> 0 | AM12: =IF(L12=8,13,0) -> 0 | AN12: =IF(L12=9,12,0) -> 0 | AO12: =IF(L12=10,11,0) -> 0 | AP12: =IF(L12=11,10,0) -> 0 | AQ12: =IF(L12=12,9,0) -> 0 | AR12: =IF(L12=13,8,0) -> 0 | AS12: =IF(L12=14,7,0) -> 0 | AT12: =IF(L12=15,6,0) -> 0 | AU12: =IF(L12=16,5,0) -> 0 | AV12: =IF(L12=17,4,0) -> 0 | AW12: =IF(L12=18,3,0) -> 0 | AX12: =IF(L12=19,2,0) -> 0 | AY12: =IF(L12=20,1,0) -> 0 | AZ12: =IF(L12>20,0,0) -> 0 | BA12: =IF(L12="сх",0,0) -> 0 | BB12: =SUM(AF12:AZ12) -> 0 | BC12: =IF(N12=1,25,0) -> 0 | BD12: =IF(N12=2,22,0) -> 0 | BE12: =IF(N12=3,20,0) -> 0 | BF12: =IF(N12=4,18,0) -> 0 | BG12: =IF(N12=5,16,0) -> 0 | BH12: =IF(N12=6,15,0) -> 0 | BI12: =IF(N12=7,14,0) -> 0 | BJ12: =IF(N12=8,13,0) -> 0 | BK12: =IF(N12=9,12,0) -> 0 | BL12: =IF(N12=10,11,0) -> 0 | BM12: =IF(N12=11,10,0) -> 0 | BN12: =IF(N12=12,9,0) -> 0 | BO12: =IF(N12=13,8,0) -> 0 | BP12: =IF(N12=14,7,0) -> 0 | BQ12: =IF(N12=15,6,0) -> 0 | BR12: =IF(N12=16,5,0) -> 0 | BS12: =IF(N12=17,4,0) -> 0 | BT12: =IF(N12=18,3,0) -> 0 | BU12: =IF(N12=19,2,0) -> 0 | BV12: =IF(N12=20,1,0) -> 0 | BW12: =IF(N12>20,0,0) -> 0 | BX12: =IF(N12="сх",0,0) -> 0 | BY12: =SUM(BC12:BW12) -> 0 | BZ12: =IF(L12=1,45,0) -> 0 | CA12: =IF(L12=2,42,0) -> 0 | CB12: =IF(L12=3,40,0) -> 0 | CC12: =IF(L12=4,38,0) -> 0 | CD12: =IF(L12=5,36,0) -> 0 | CE12: =IF(L12=6,35,0) -> 0 | CF12: =IF(L12=7,34,0) -> 0 | CG12: =IF(L12=8,33,0) -> 0 | CH12: =IF(L12=9,32,0) -> 0 | CI12: =IF(L12=10,31,0) -> 0 | CJ12: =IF(L12=11,30,0) -> 0 | CK12: =IF(L12=12,29,0) -> 0 | CL12: =IF(L12=13,28,0) -> 0 | CM12: =IF(L12=14,27,0) -> 0 | CN12: =IF(L12=15,26,0) -> 0 | CO12: =IF(L12=16,25,0) -> 0 | CP12: =IF(L12=17,24,0) -> 0 | CQ12: =IF(L12=18,23,0) -> 0 | CR12: =IF(L12=19,22,0) -> 0 | CS12: =IF(L12=20,21,0) -> 0 | CT12: =IF(L12=21,20,0) -> 0 | CU12: =IF(L12=22,19,0) -> 0 | CV12: =IF(L12=23,18,0) -> 0 | CW12: =IF(L12=24,17,0) -> 0 | CX12: =IF(L12=25,16,0) -> 0 | CY12: =IF(L12=26,15,0) -> 0 | CZ12: =IF(L12=27,14,0) -> 0 | DA12: =IF(L12=28,13,0) -> 0 | DB12: =IF(L12=29,12,0) -> 0 | DC12: =IF(L12=30,11,0) -> 0 | DD12: =IF(L12=31,10,0) -> 0 | DE12: =IF(L12=32,9,0) -> 0 | DF12: =IF(L12=33,8,0) -> 0 | DG12: =IF(L12=34,7,0) -> 0 | DH12: =IF(L12=35,6,0) -> 0 | DI12: =IF(L12=36,5,0) -> 0 | DJ12: =IF(L12=37,4,0) -> 0 | DK12: =IF(L12=38,3,0) -> 0 | DL12: =IF(L12=39,2,0) -> 0 | DM12: =IF(L12=40,1,0) -> 0 | DN12: =IF(L12>20,0,0) -> 0 | DO12: =IF(L12="сх",0,0) -> 0 | DP12: =SUM(BZ12:DO12) -> 0 | DQ12: =IF(N12=1,45,0) -> 0 | DR12: =IF(N12=2,42,0) -> 0 | DS12: =IF(N12=3,40,0) -> 0 | DT12: =IF(N12=4,38,0) -> 0 | DU12: =IF(N12=5,36,0) -> 0 | DV12: =IF(N12=6,35,0) -> 0 | DW12: =IF(N12=7,34,0) -> 0 | DX12: =IF(N12=8,33,0) -> 0 | DY12: =IF(N12=9,32,0) -> 0 | DZ12: =IF(N12=10,31,0) -> 0 | EA12: =IF(N12=11,30,0) -> 0 | EB12: =IF(N12=12,29,0) -> 0 | EC12: =IF(N12=13,28,0) -> 0 | ED12: =IF(N12=14,27,0) -> 0 | EE12: =IF(N12=15,26,0) -> 0 | EF12: =IF(N12=16,25,0) -> 0 | EG12: =IF(N12=17,24,0) -> 0 | EH12: =IF(N12=18,23,0) -> 0 | EI12: =IF(N12=19,22,0) -> 0 | EJ12: =IF(N12=20,21,0) -> 0 | EK12: =IF(N12=21,20,0) -> 0 | EL12: =IF(N12=22,19,0) -> 0 | EM12: =IF(N12=23,18,0) -> 0 | EN12: =IF(N12=24,17,0) -> 0 | EO12: =IF(N12=25,16,0) -> 0 | EP12: =IF(N12=26,15,0) -> 0 | EQ12: =IF(N12=27,14,0) -> 0 | ER12: =IF(N12=28,13,0) -> 0 | ES12: =IF(N12=29,12,0) -> 0 | ET12: =IF(N12=30,11,0) -> 0 | EU12: =IF(N12=31,10,0) -> 0 | EV12: =IF(N12=32,9,0) -> 0 | EW12: =IF(N12=33,8,0) -> 0 | EX12: =IF(N12=34,7,0) -> 0 | EY12: =IF(N12=35,6,0) -> 0 | EZ12: =IF(N12=36,5,0) -> 0 | FA12: =IF(N12=37,4,0) -> 0 | FB12: =IF(N12=38,3,0) -> 0 | FC12: =IF(N12=39,2,0) -> 0 | FD12: =IF(N12=40,1,0) -> 0 | FE12: =IF(N12>20,0,0) -> 0 | FF12: =IF(N12="сх",0,0) -> 0 | FG12: =SUM(DQ12:FF12) -> 0 | FI12: =IF(L12="сх","ноль",IF(L12>0,L12,"Ноль")) -> - | FJ12: =IF(N12="сх","ноль",IF(N12>0,N12,"Ноль")) -> - | FL12: =MIN(FI12,FJ12) -> 0 | FM12: =IF(AB12=#REF!,IF(N12<#REF!,#REF!,FQ12),#REF!) ->  | FN12: =IF(AB12=#REF!,IF(N12<#REF!,0,1)) ->  | FO12: =IF(AND(FL12>=21,FL12<>0),FL12,IF(AB12<#REF!,"СТОП",FM12+FN12)) ->  | FQ12: 15 | FR12: 16 | FT12: =IF(L12=1,25,0) -> 0 | FU12: =IF(L12=2,22,0) -> 0 | FV12: =IF(L12=3,20,0) -> 0 | FW12: =IF(L12=4,18,0) -> 0 | FX12: =IF(L12=5,16,0) -> 0 | FY12: =IF(L12=6,15,0) -> 0 | FZ12: =IF(L12=7,14,0) -> 0 | GA12: =IF(L12=8,13,0) -> 0 | GB12: =IF(L12=9,12,0) -> 0 | GC12: =IF(L12=10,11,0) -> 0 | GD12: =IF(L12=11,10,0) -> 0 | GE12: =IF(L12=12,9,0) -> 0 | GF12: =IF(L12=13,8,0) -> 0 | GG12: =IF(L12=14,7,0) -> 0 | GH12: =IF(L12=15,6,0) -> 0 | GI12: =IF(L12=16,5,0) -> 0 | GJ12: =IF(L12=17,4,0) -> 0 | GK12: =IF(L12=18,3,0) -> 0 | GL12: =IF(L12=19,2,0) -> 0 | GM12: =IF(L12=20,1,0) -> 0 | GN12: =IF(L12>20,0,0) -> 0 | GO12: =IF(L12="сх",0,0) -> 0 | GP12: =SUM(FT12:GO12) -> 0 | GQ12: =IF(N12=1,25,0) -> 0 | GR12: =IF(N12=2,22,0) -> 0 | GS12: =IF(N12=3,20,0) -> 0 | GT12: =IF(N12=4,18,0) -> 0 | GU12: =IF(N12=5,16,0) -> 0 | GV12: =IF(N12=6,15,0) -> 0 | GW12: =IF(N12=7,14,0) -> 0 | GX12: =IF(N12=8,13,0) -> 0 | GY12: =IF(N12=9,12,0) -> 0 | GZ12: =IF(N12=10,11,0) -> 0 | HA12: =IF(N12=11,10,0) -> 0 | HB12: =IF(N12=12,9,0) -> 0 | HC12: =IF(N12=13,8,0) -> 0 | HD12: =IF(N12=14,7,0) -> 0 | HE12: =IF(N12=15,6,0) -> 0 | HF12: =IF(N12=16,5,0) -> 0 | HG12: =IF(N12=17,4,0) -> 0 | HH12: =IF(N12=18,3,0) -> 0 | HI12: =IF(N12=19,2,0) -> 0 | HJ12: =IF(N12=20,1,0) -> 0 | HK12: =IF(N12>20,0,0) -> 0 | HL12: =IF(N12="сх",0,0) -> 0 | HM12: =SUM(GQ12:HL12) -> 0 | HN12: =IF(L12=1,100,0) -> 0 | HO12: =IF(L12=2,98,0) -> 0 | HP12: =IF(L12=3,95,0) -> 0 | HQ12: =IF(L12=4,93,0) -> 0 | HR12: =IF(L12=5,90,0) -> 0 | HS12: =IF(L12=6,88,0) -> 0 | HT12: =IF(L12=7,85,0) -> 0 | HU12: =IF(L12=8,83,0) -> 0 | HV12: =IF(L12=9,80,0) -> 0 | HW12: =IF(L12=10,78,0) -> 0 | HX12: =IF(L12=11,75,0) -> 0 | HY12: =IF(L12=12,73,0) -> 0 | HZ12: =IF(L12=13,70,0) -> 0 | IA12: =IF(L12=14,68,0) -> 0 | IB12: =IF(L12=15,65,0) -> 0 | IC12: =IF(L12=16,63,0) -> 0 | ID12: =IF(L12=17,60,0) -> 0 | IE12: =IF(L12=18,58,0) -> 0 | IF12: =IF(L12=19,55,0) -> 0 | IG12: =IF(L12=20,53,0) -> 0 | IH12: =IF(L12>20,0,0) -> 0 | II12: =IF(L12="сх",0,0) -> 0 | IJ12: =SUM(HN12:II12) -> 0 | IK12: =IF(N12=1,100,0) -> 0 | IL12: =IF(N12=2,98,0) -> 0 | IM12: =IF(N12=3,95,0) -> 0 | IN12: =IF(N12=4,93,0) -> 0 | IO12: =IF(N12=5,90,0) -> 0 | IP12: =IF(N12=6,88,0) -> 0 | IQ12: =IF(N12=7,85,0) -> 0 | IR12: =IF(N12=8,83,0) -> 0 | IS12: =IF(N12=9,80,0) -> 0 | IT12: =IF(N12=10,78,0) -> 0 | IU12: =IF(N12=11,75,0) -> 0 | IV12: =IF(N12=12,73,0) -> 0 | IW12: =IF(N12=13,70,0) -> 0 | IX12: =IF(N12=14,68,0) -> 0 | IY12: =IF(N12=15,65,0) -> 0 | IZ12: =IF(N12=16,63,0) -> 0 | JA12: =IF(N12=17,60,0) -> 0 | JB12: =IF(N12=18,58,0) -> 0 | JC12: =IF(N12=19,55,0) -> 0 | JD12: =IF(N12=20,53,0) -> 0 | JE12: =IF(N12>20,0,0) -> 0 | JF12: =IF(N12="сх",0,0) -> 0 | JG12: =SUM(IK12:JF12) -> 0
A13: 4 | B13: 40.8 | C13: 13.8 | D13: 13.2 | E13: 13.8 | F13: 19 | G13: Рылеев Максим | H13: II | I13: г. Новый Уренгой, Ямало-Ненецкий АО | J13: СТК "Ямбург" | K13: LYNX | L13: 3 | M13: 20 | N13: - | O13: 0 | P13: 7 | Q13: 14 | R13: 5 | S13: 16 | T13: - | U13: 0 | V13: 6 | W13: 15 | X13: 4 | Y13: 18 | Z13: 4 | AA13: 18 | AB13: 101 | AC13: =M13+O13 -> 20 | AF13: =IF(L13=1,25,0) -> 0 | AG13: =IF(L13=2,22,0) -> 0 | AH13: =IF(L13=3,20,0) -> 20 | AI13: =IF(L13=4,18,0) -> 0 | AJ13: =IF(L13=5,16,0) -> 0 | AK13: =IF(L13=6,15,0) -> 0 | AL13: =IF(L13=7,14,0) -> 0 | AM13: =IF(L13=8,13,0) -> 0 | AN13: =IF(L13=9,12,0) -> 0 | AO13: =IF(L13=10,11,0) -> 0 | AP13: =IF(L13=11,10,0) -> 0 | AQ13: =IF(L13=12,9,0) -> 0 | AR13: =IF(L13=13,8,0) -> 0 | AS13: =IF(L13=14,7,0) -> 0 | AT13: =IF(L13=15,6,0) -> 0 | AU13: =IF(L13=16,5,0) -> 0 | AV13: =IF(L13=17,4,0) -> 0 | AW13: =IF(L13=18,3,0) -> 0 | AX13: =IF(L13=19,2,0) -> 0 | AY13: =IF(L13=20,1,0) -> 0 | AZ13: =IF(L13>20,0,0) -> 0 | BA13: =IF(L13="сх",0,0) -> 0 | BB13: =SUM(AF13:AZ13) -> 20 | BC13: =IF(N13=1,25,0) -> 0 | BD13: =IF(N13=2,22,0) -> 0 | BE13: =IF(N13=3,20,0) -> 0 | BF13: =IF(N13=4,18,0) -> 0 | BG13: =IF(N13=5,16,0) -> 0 | BH13: =IF(N13=6,15,0) -> 0 | BI13: =IF(N13=7,14,0) -> 0 | BJ13: =IF(N13=8,13,0) -> 0 | BK13: =IF(N13=9,12,0) -> 0 | BL13: =IF(N13=10,11,0) -> 0 | BM13: =IF(N13=11,10,0) -> 0 | BN13: =IF(N13=12,9,0) -> 0 | BO13: =IF(N13=13,8,0) -> 0 | BP13: =IF(N13=14,7,0) -> 0 | BQ13: =IF(N13=15,6,0) -> 0 | BR13: =IF(N13=16,5,0) -> 0 | BS13: =IF(N13=17,4,0) -> 0 | BT13: =IF(N13=18,3,0) -> 0 | BU13: =IF(N13=19,2,0) -> 0 | BV13: =IF(N13=20,1,0) -> 0 | BW13: =IF(N13>20,0,0) -> 0 | BX13: =IF(N13="сх",0,0) -> 0 | BY13: =SUM(BC13:BW13) -> 0 | BZ13: =IF(L13=1,45,0) -> 0 | CA13: =IF(L13=2,42,0) -> 0 | CB13: =IF(L13=3,40,0) -> 40 | CC13: =IF(L13=4,38,0) -> 0 | CD13: =IF(L13=5,36,0) -> 0 | CE13: =IF(L13=6,35,0) -> 0 | CF13: =IF(L13=7,34,0) -> 0 | CG13: =IF(L13=8,33,0) -> 0 | CH13: =IF(L13=9,32,0) -> 0 | CI13: =IF(L13=10,31,0) -> 0 | CJ13: =IF(L13=11,30,0) -> 0 | CK13: =IF(L13=12,29,0) -> 0 | CL13: =IF(L13=13,28,0) -> 0 | CM13: =IF(L13=14,27,0) -> 0 | CN13: =IF(L13=15,26,0) -> 0 | CO13: =IF(L13=16,25,0) -> 0 | CP13: =IF(L13=17,24,0) -> 0 | CQ13: =IF(L13=18,23,0) -> 0 | CR13: =IF(L13=19,22,0) -> 0 | CS13: =IF(L13=20,21,0) -> 0 | CT13: =IF(L13=21,20,0) -> 0 | CU13: =IF(L13=22,19,0) -> 0 | CV13: =IF(L13=23,18,0) -> 0 | CW13: =IF(L13=24,17,0) -> 0 | CX13: =IF(L13=25,16,0) -> 0 | CY13: =IF(L13=26,15,0) -> 0 | CZ13: =IF(L13=27,14,0) -> 0 | DA13: =IF(L13=28,13,0) -> 0 | DB13: =IF(L13=29,12,0) -> 0 | DC13: =IF(L13=30,11,0) -> 0 | DD13: =IF(L13=31,10,0) -> 0 | DE13: =IF(L13=32,9,0) -> 0 | DF13: =IF(L13=33,8,0) -> 0 | DG13: =IF(L13=34,7,0) -> 0 | DH13: =IF(L13=35,6,0) -> 0 | DI13: =IF(L13=36,5,0) -> 0 | DJ13: =IF(L13=37,4,0) -> 0 | DK13: =IF(L13=38,3,0) -> 0 | DL13: =IF(L13=39,2,0) -> 0 | DM13: =IF(L13=40,1,0) -> 0 | DN13: =IF(L13>20,0,0) -> 0 | DO13: =IF(L13="сх",0,0) -> 0 | DP13: =SUM(BZ13:DO13) -> 40 | DQ13: =IF(N13=1,45,0) -> 0 | DR13: =IF(N13=2,42,0) -> 0 | DS13: =IF(N13=3,40,0) -> 0 | DT13: =IF(N13=4,38,0) -> 0 | DU13: =IF(N13=5,36,0) -> 0 | DV13: =IF(N13=6,35,0) -> 0 | DW13: =IF(N13=7,34,0) -> 0 | DX13: =IF(N13=8,33,0) -> 0 | DY13: =IF(N13=9,32,0) -> 0 | DZ13: =IF(N13=10,31,0) -> 0 | EA13: =IF(N13=11,30,0) -> 0 | EB13: =IF(N13=12,29,0) -> 0 | EC13: =IF(N13=13,28,0) -> 0 | ED13: =IF(N13=14,27,0) -> 0 | EE13: =IF(N13=15,26,0) -> 0 | EF13: =IF(N13=16,25,0) -> 0 | EG13: =IF(N13=17,24,0) -> 0 | EH13: =IF(N13=18,23,0) -> 0 | EI13: =IF(N13=19,22,0) -> 0 | EJ13: =IF(N13=20,21,0) -> 0 | EK13: =IF(N13=21,20,0) -> 0 | EL13: =IF(N13=22,19,0) -> 0 | EM13: =IF(N13=23,18,0) -> 0 | EN13: =IF(N13=24,17,0) -> 0 | EO13: =IF(N13=25,16,0) -> 0 | EP13: =IF(N13=26,15,0) -> 0 | EQ13: =IF(N13=27,14,0) -> 0 | ER13: =IF(N13=28,13,0) -> 0 | ES13: =IF(N13=29,12,0) -> 0 | ET13: =IF(N13=30,11,0) -> 0 | EU13: =IF(N13=31,10,0) -> 0 | EV13: =IF(N13=32,9,0) -> 0 | EW13: =IF(N13=33,8,0) -> 0 | EX13: =IF(N13=34,7,0) -> 0 | EY13: =IF(N13=35,6,0) -> 0 | EZ13: =IF(N13=36,5,0) -> 0 | FA13: =IF(N13=37,4,0) -> 0 | FB13: =IF(N13=38,3,0) -> 0 | FC13: =IF(N13=39,2,0) -> 0 | FD13: =IF(N13=40,1,0) -> 0 | FE13: =IF(N13>20,0,0) -> 0 | FF13: =IF(N13="сх",0,0) -> 0 | FG13: =SUM(DQ13:FF13) -> 0 | FI13: =IF(L13="сх","ноль",IF(L13>0,L13,"Ноль")) -> 3 | FJ13: =IF(N13="сх","ноль",IF(N13>0,N13,"Ноль")) -> - | FL13: =MIN(FI13,FJ13) -> 3 | FM13: =IF(AB13=#REF!,IF(N13<#REF!,#REF!,FQ13),#REF!) ->  | FN13: =IF(AB13=#REF!,IF(N13<#REF!,0,1)) ->  | FO13: =IF(AND(FL13>=21,FL13<>0),FL13,IF(AB13<#REF!,"СТОП",FM13+FN13)) ->  | FQ13: 15 | FR13: 16 | FT13: =IF(L13=1,25,0) -> 0 | FU13: =IF(L13=2,22,0) -> 0 | FV13: =IF(L13=3,20,0) -> 20 | FW13: =IF(L13=4,18,0) -> 0 | FX13: =IF(L13=5,16,0) -> 0 | FY13: =IF(L13=6,15,0) -> 0 | FZ13: =IF(L13=7,14,0) -> 0 | GA13: =IF(L13=8,13,0) -> 0 | GB13: =IF(L13=9,12,0) -> 0 | GC13: =IF(L13=10,11,0) -> 0 | GD13: =IF(L13=11,10,0) -> 0 | GE13: =IF(L13=12,9,0) -> 0 | GF13: =IF(L13=13,8,0) -> 0 | GG13: =IF(L13=14,7,0) -> 0 | GH13: =IF(L13=15,6,0) -> 0 | GI13: =IF(L13=16,5,0) -> 0 | GJ13: =IF(L13=17,4,0) -> 0 | GK13: =IF(L13=18,3,0) -> 0 | GL13: =IF(L13=19,2,0) -> 0 | GM13: =IF(L13=20,1,0) -> 0 | GN13: =IF(L13>20,0,0) -> 0 | GO13: =IF(L13="сх",0,0) -> 0 | GP13: =SUM(FT13:GO13) -> 20 | GQ13: =IF(N13=1,25,0) -> 0 | GR13: =IF(N13=2,22,0) -> 0 | GS13: =IF(N13=3,20,0) -> 0 | GT13: =IF(N13=4,18,0) -> 0 | GU13: =IF(N13=5,16,0) -> 0 | GV13: =IF(N13=6,15,0) -> 0 | GW13: =IF(N13=7,14,0) -> 0 | GX13: =IF(N13=8,13,0) -> 0 | GY13: =IF(N13=9,12,0) -> 0 | GZ13: =IF(N13=10,11,0) -> 0 | HA13: =IF(N13=11,10,0) -> 0 | HB13: =IF(N13=12,9,0) -> 0 | HC13: =IF(N13=13,8,0) -> 0 | HD13: =IF(N13=14,7,0) -> 0 | HE13: =IF(N13=15,6,0) -> 0 | HF13: =IF(N13=16,5,0) -> 0 | HG13: =IF(N13=17,4,0) -> 0 | HH13: =IF(N13=18,3,0) -> 0 | HI13: =IF(N13=19,2,0) -> 0 | HJ13: =IF(N13=20,1,0) -> 0 | HK13: =IF(N13>20,0,0) -> 0 | HL13: =IF(N13="сх",0,0) -> 0 | HM13: =SUM(GQ13:HL13) -> 0 | HN13: =IF(L13=1,100,0) -> 0 | HO13: =IF(L13=2,98,0) -> 0 | HP13: =IF(L13=3,95,0) -> 95 | HQ13: =IF(L13=4,93,0) -> 0 | HR13: =IF(L13=5,90,0) -> 0 | HS13: =IF(L13=6,88,0) -> 0 | HT13: =IF(L13=7,85,0) -> 0 | HU13: =IF(L13=8,83,0) -> 0 | HV13: =IF(L13=9,80,0) -> 0 | HW13: =IF(L13=10,78,0) -> 0 | HX13: =IF(L13=11,75,0) -> 0 | HY13: =IF(L13=12,73,0) -> 0 | HZ13: =IF(L13=13,70,0) -> 0 | IA13: =IF(L13=14,68,0) -> 0 | IB13: =IF(L13=15,65,0) -> 0 | IC13: =IF(L13=16,63,0) -> 0 | ID13: =IF(L13=17,60,0) -> 0 | IE13: =IF(L13=18,58,0) -> 0 | IF13: =IF(L13=19,55,0) -> 0 | IG13: =IF(L13=20,53,0) -> 0 | IH13: =IF(L13>20,0,0) -> 0 | II13: =IF(L13="сх",0,0) -> 0 | IJ13: =SUM(HN13:II13) -> 95 | IK13: =IF(N13=1,100,0) -> 0 | IL13: =IF(N13=2,98,0) -> 0 | IM13: =IF(N13=3,95,0) -> 0 | IN13: =IF(N13=4,93,0) -> 0 | IO13: =IF(N13=5,90,0) -> 0 | IP13: =IF(N13=6,88,0) -> 0 | IQ13: =IF(N13=7,85,0) -> 0 | IR13: =IF(N13=8,83,0) -> 0 | IS13: =IF(N13=9,80,0) -> 0 | IT13: =IF(N13=10,78,0) -> 0 | IU13: =IF(N13=11,75,0) -> 0 | IV13: =IF(N13=12,73,0) -> 0 | IW13: =IF(N13=13,70,0) -> 0 | IX13: =IF(N13=14,68,0) -> 0 | IY13: =IF(N13=15,65,0) -> 0 | IZ13: =IF(N13=16,63,0) -> 0 | JA13: =IF(N13=17,60,0) -> 0 | JB13: =IF(N13=18,58,0) -> 0 | JC13: =IF(N13=19,55,0) -> 0 | JD13: =IF(N13=20,53,0) -> 0 | JE13: =IF(N13>20,0,0) -> 0 | JF13: =IF(N13="сх",0,0) -> 0 | JG13: =SUM(IK13:JF13) -> 0
A14: 5 | B14: 37.5 | C14: 12.3 | D14: 13.5 | E14: 11.7 | F14: 62 | G14: Лавров Кирилл | H14: III | I14: г. Новый Уренгой, Ямало-Ненецкий АО | J14: СТК "Факел" | K14: LYNX | L14: 8 | M14: 13 | N14: - | O14: 0 | P14: 4 | Q14: 18 | R14: 3 | S14: 20 | T14: - | U14: 0 | V14: 3 | W14: 20 | X14: сх | Y14: 0 | Z14: 5 | AA14: 16 | AB14: 87
A15: 6 | B15: 36.9 | C15: 11.7 | D15: 12 | E15: 13.2 | F15: 18 | G15: Хункаев Булат | H15: II | I15: г. Новый Уренгой, Ямало-Ненецкий АО | J15: СТК "Ямбург" | K15: LYNX | L15: 10 | M15: 11 | N15: - | O15: 0 | P15: 5 | Q15: 16 | R15: сх | S15: 0 | T15: - | U15: 0 | V15: 7 | W15: 14 | X15: 6 | Y15: 15 | Z15: 6 | AA15: 15 | AB15: 71
A16: 7 | B16: 25.2 | C16: 0 | D16: 12.9 | E16: 12.3 | F16: 68 | G16: Чернега Максим | H16: II | I16: г. Новый Уренгой, Ямало-Ненецкий АО | J16: СТК "Факел" | K16: LYNX | L16: - | M16: 0 | N16: - | O16: 0 | P16: 6 | Q16: 15 | R16: 6 | S16: 15 | T16: - | U16: 0 | V16: 5 | W16: 16 | X16: 9 | Y16: 12 | Z16: 9 | AA16: 12 | AB16: 70
A17: 8 | B17: 25.5 | C17: 0 | D17: 12.6 | E17: 12.9 | F17: 33 | G17: Колибаба Богдан | H17: III | I17: г. Новый Уренгой, Ямало-Ненецкий АО | J17: СТК "Факел" | K17: LYNX | L17: сх | M17: 0 | N17: - | O17: 0 | P17: 9 | Q17: 12 | R17: 7 | S17: 14 | T17: - | U17: 0 | V17: 4 | W17: 18 | X17: 7 | Y17: 14 | Z17: 10 | AA17: 11 | AB17: 69
A18: 9 | B18: 25.8 | C18: 13.2 | D18: 0 | E18: 12.6 | F18: 162 | G18: Пилюгин Антон | H18: II | I18: г. Новый Уренгой, Ямало-Ненецкий АО | J18: СТК "Ямбург" | K18: LYNX | L18: 5 | M18: 16 | N18: - | O18: 0 | P18: сх | Q18: 0 | R18: н/с | S18: 0 | T18: - | U18: 0 | V18: 10 | W18: 11 | X18: 5 | Y18: 16 | Z18: 7 | AA18: 14 | AB18: 57
A19: 10 | B19: 24.9 | C19: 12.9 | D19: 0 | E19: 12 | F19: 35 | G19: Садрисламов Данил | H19: II | I19: г. Новый Уренгой, Ямало-Ненецкий АО | J19: СТК "Ямбург" | K19: LYNX | L19: 6 | M19: 15 | N19: - | O19: 0 | P19: - | Q19: 0 | R19: - | S19: 0 | T19: - | U19: 0 | V19: 8 | W19: 13 | X19: 8 | Y19: 13 | Z19: 8 | AA19: 13 | AB19: 54
A20: 11 | B20: 22.8 | C20: 0 | D20: 12.3 | E20: 10.5 | F20: 71 | G20: Свиридок Максим | H20: II | I20: г. Новый Уренгой, Ямало-Ненецкий АО | J20: СТК "Факел" | K20: LYNX | L20: - | M20: 0 | N20: - | O20: 0 | P20: 8 | Q20: 13 | R20: 8 | S20: 13 | T20: - | U20: 0 | V20: 13 | W20: 8 | X20: 14 | Y20: 7 | Z20: 15 | AA20: 6 | AB20: 47
A21: 12 | B21: 23.4 | C21: 12 | D21: 0 | E21: 11.4 | F21: 51 | G21: Перфильев Сергей | H21: III | I21: г. Новый Уренгой, Ямало-Ненецкий АО | J21: СТК "Факел" | K21: LYNX | L21: 9 | M21: 12 | N21: - | O21: 0 | P21: - | Q21: 0 | R21: - | S21: 0 | T21: - | U21: 0 | V21: 9 | W21: 12 | X21: 10 | Y21: 11 | Z21: 13 | AA21: 8 | AB21: 43
A22: 13 | B22: 23.7 | C22: 12.6 | D22: 0 | E22: 11.1 | F22: 29 | G22: Вишняков Илья | H22: II | I22: г. Новый Уренгой, Ямало-Ненецкий АО | J22: СТК "Ямбург" | K22: LYNX | L22: 7 | M22: 14 | N22: - | O22: 0 | P22: - | Q22: 0 | R22: - | S22: 0 | T22: - | U22: 0 | V22: 12 | W22: 9 | X22: 12 | Y22: 9 | Z22: 11 | AA22: 10 | AB22: 42
A23: 14 | B23: 22.5 | C23: 0 | D23: 11.7 | E23: 10.8 | F23: 16 | G23: Артемьев Алексей | H23: II | I23: г. Надым, Ямало-Ненецкий АО | J23: СТК "Форсаж" | K23: Sky-Doo | L23: - | M23: 0 | N23: - | O23: 0 | P23: 10 | Q23: 11 | R23: сх | S23: 0 | T23: - | U23: 0 | V23: 14 | W23: 7 | X23: 11 | Y23: 10 | Z23: 12 | AA23: 9 | AB23: 37
A24: 15 | B24: 10.2 | C24: 0 | D24: 0 | E24: 10.2 | F24: 91 | G24: Зиангиров Адам | H24: II | I24: г. Новый Уренгой, Ямало-Ненецкий АО | J24: СТК "Ямбург" | K24: LYNX | L24: - | M24: 0 | N24: - | O24: 0 | P24: - | Q24: 0 | R24: - | S24: 0 | T24: - | U24: 0 | V24: 15 | W24: 6 | X24: 13 | Y24: 8 | Z24: 14 | AA24: 7 | AB24: 21
A25: 16 | B25: 13.5 | C25: 13.5 | D25: 0 | E25: 0 | F25: 17 | G25: Моторин Александр | H25: II | I25: г. Новый Уренгой, Ямало-Ненецкий АО | J25: СТК "Ямбург" | K25: LYNX | L25: 4 | M25: 18 | N25: - | O25: 0 | P25: - | Q25: 0 | R25: - | S25: 0 | T25: - | U25: 0 | V25: - | W25: 0 | X25: - | Y25: 0 | Z25: - | AA25: 0 | AB25: 18
A26: 17 | B26: 9.9 | C26: 0 | D26: 0 | E26: 9.9 | F26: 78 | G26: Шимолин Владислав | H26: II | I26: г. Новый Уренгой, Ямало-Ненецкий АО | J26: СТК "Ямбург" | K26: LYNX | L26: - | M26: 0 | N26: - | O26: 0 | P26: - | Q26: 0 | R26: - | S26: 0 | T26: - | U26: 0 | V26: 16 | W26: 5 | X26: 15 | Y26: 6 | Z26: 16 | AA26: 5 | AB26: 16
A31: Главный судья соревнований
A32: судья Всероссийской категории: А. Б. Стеблинский (г. Тюмень; лицензия МФР А 144)
A34: Главный секретарь соревнований
A35: судья Всероссийской категории: А. Ю. Иванов (г. Москва/лицензия МФР А 105; FIM 11245)

Sheet ВЗРОСЛЫЕ ЯНАО
A2: Кубок Ямало-Ненецкого АО по кроссу на снегоходах 2016/2017 года
A3: СВОДНЫЙ ПРОТОКОЛ ЛИЧНОГО ЗАЧЕТА по сумме 3-х этапов. | GF3: первый этап
A4: 1-й этап: 03 - 04 декабря 2016 года - г. Новый Уренгой, Ямало-Ненецкий АО; 2-й этап: 24 - 26 марта 2017 года - г. Муравленко, Ямало-Ненецкий АО; 3-й этап: 31 марта - 02 апреля 2017 года - г. Новый Уренгой, Ямало-Ненецкий АО. | FU4: первый заезд личные очки | GQ4: второй заезд личные очки | HN4: Первый заезд командные очки | IK4: Второй заезд командные очки
A5: Класс "ВЗРОСЛЫЕ" (0910203811А). | FT5: 1 | FU5: 2 | FV5: 3 | FW5: 4 | FX5: 5 | FY5: 6 | FZ5: 7 | GA5: 8 | GB5: 9 | GC5: 10 | GD5: 11 | GE5: 12 | GF5: 13 | GG5: 14 | GH5: 15 | GI5: 16 | GJ5: 17 | GK5: 18 | GL5: 19 | GM5: 20 | GN5: 21 | GO5: сх | GP5: Sym | GQ5: 1 | GR5: 2 | GS5: 3 | GT5: 4 | GU5: 5 | GV5: 6 | GW5: 7 | GX5: 8 | GY5: 9 | GZ5: 10 | HA5: 11 | HB5: 12 | HC5: 13 | HD5: 14 | HE5: 15 | HF5: 16 | HG5: 17 | HH5: 18 | HI5: 19 | HJ5: 20 | HK5: 21 | HL5: cx | HM5: sym | HN5: 1 | HO5: 2 | HP5: 3 | HQ5: 4 | HR5: 5 | HS5: 6 | HT5: 7 | HU5: 8 | HV5: 9 | HW5: 10 | HX5: 11 | HY5: 12 | HZ5: 13 | IA5: 14 | IB5: 15 | IC5: 16 | ID5: 17 | IE5: 18 | IF5: 19 | IG5: 20 | IH5: 21 | II5: сх | IJ5: очки | IK5: 1 | IL5: 2 | IM5: 3 | IN5: 4 | IO5: 5 | IP5: 6 | IQ5: 7 | IR5: 8 | IS5: 9 | IT5: 10 | IU5: 11 | IV5: 12 | IW5: 13 | IX5: 14 | IY5: 15 | IZ5: 16 | JA5: 17 | JB5: 18 | JC5: 19 | JD5: 20 | JE5: 21 | JF5: сх | JG5: очки | JH5: =COUNT(FT5:JG5) -> 84 | JI5: Н. Стро | JJ5: В. стро | JK5: место
L6: 1-й этап | P6: 2-й этап | V6: 2-й этап
A7: Место | B7: СУММА РЕЙТИНГОВЫЕ ОЧКИ | C7: 1-й этап РЕЙТИНГОВЫЕ ОЧКИ Коэф. 0,4 | D7: 2-й этап РЕЙТИНГОВЫЕ ОЧКИ Коэф. 0,4 | E7: 3-й этап РЕЙТИНГОВЫЕ ОЧКИ Коэф. 0,4 | F7: Ст. № | G7: Фамилия, Имя | H7: Раз ряд | I7: Город (край, район, область) | J7: Команда | K7: Мото | L7: I-й заезд | N7: II-й заезд | P7: I-й заезд | R7: II-й заезд | T7: III-й заезд | V7: I-й заезд | X7: II-й заезд | Z7: III-й заезд | AB7: Сумма очков в личном зачете | AC7: Сумма очк. в командном зачете
L8: место | M8: лич. очки | N8: место | O8: лич. очки | P8: место | Q8: лич. очки | R8: место | S8: лич. очки | T8: место | U8: лич. очки | V8: место | W8: лич. очки | X8: место | Y8: лич. очки | Z8: место | AA8: лич. очки | AG8: первый заезд личные очки | BC8: второй заезд личные очки | BZ8: Первый заезд командные очки | DQ8: Второй заезд командные очки | FI8: 1 | FJ8: 2 | GF8: первый этап
AF9: 1 | AG9: 2 | AH9: 3 | AI9: 4 | AJ9: 5 | AK9: 6 | AL9: 7 | AM9: 8 | AN9: 9 | AO9: 10 | AP9: 11 | AQ9: 12 | AR9: 13 | AS9: 14 | AT9: 15 | AU9: 16 | AV9: 17 | AW9: 18 | AX9: 19 | AY9: 20 | AZ9: 21 | BA9: сх | BC9: 1 | BD9: 2 | BE9: 3 | BF9: 4 | BG9: 5 | BH9: 6 | BI9: 7 | BJ9: 8 | BK9: 9 | BL9: 10 | BM9: 11 | BN9: 12 | BO9: 13 | BP9: 14 | BQ9: 15 | BR9: 16 | BS9: 17 | BT9: 18 | BU9: 19 | BV9: 20 | BX9: cx | BZ9: 1 | CA9: 2 | CB9: 3 | CC9: 4 | CD9: 5 | CE9: 6 | CF9: 7 | CG9: 8 | CH9: 9 | CI9: 10 | CJ9: 11 | CK9: 12 | CL9: 13 | CM9: 14 | CN9: 15 | CO9: 16 | CP9: 17 | CQ9: 18 | CR9: 19 | CS9: 20 | CT9: 21 | CU9: 22 | CV9: 23 | CW9: 24 | CX9: 25 | CY9: 26 | CZ9: 27 | DA9: 28 | DB9: 29 | DC9: 30 | DD9: 31 | DE9: 32 | DF9: 33 | DG9: 34 | DH9: 35 | DI9: 36 | DJ9: 37 | DK9: 38 | DL9: 39 | DM9: 40 | DQ9: 1 | DR9: 2 | DS9: 3 | DT9: 4 | DU9: 5 | DV9: 6 | DW9: 7 | DX9: 8 | DY9: 9 | DZ9: 10 | EA9: 11 | EB9: 12 | EC9: 13 | ED9: 14 | EE9: 15 | EF9: 16 | EG9: 17 | EH9: 18 | EI9: 19 | EJ9: 20 | EK9: 21 | EL9: 22 | EM9: 23 | EN9: 24 | EO9: 25 | EP9: 26 | EQ9: 27 | ER9: 28 | ES9: 29 | ET9: 30 | EU9: 31 | EV9: 32 | EW9: 33 | EX9: 34 | EY9: 35 | EZ9: 36 | FA9: 37 | FB9: 38 | FC9: 39 | FD9: 40 | FL9: мин | FM9: Н. Стро | FN9: В. стро | FO9: место | FQ9: чр1 | FR9: чр2 | FU9: первый заезд личные очки | GQ9: второй заезд личные очки | HN9: Первый заезд командные очки | IK9: Второй заезд командные очки
A10: 1 | B10: =SUM(C10+D10+E10) -> 60 | C10: 20 | D10: 20 | E10: 20 | F10: 11 | G10: Скляров Дмитрий | H10: мс | I10: г. Новый Уренгой, Ямало-Ненецкий АО | J10: СТК "Ямбург" | K10: LYNX | L10: 1 | M10: 25 | N10: - | O10: 0 | P10: 1 | Q10: 25 | R10: - | S10: 0 | T10: - | U10: 0 | V10: 1 | W10: 25 | X10: 2 | Y10: 22 | Z10: 1 | AA10: 25 | AB10: =SUM(M10+O10+Q10+S10+U10+W10+Y10+AA10) -> 122 | AC10: =M10+O10 -> 25 | AF10: =IF(L10=1,25,0) -> 25 | AG10: =IF(L10=2,22,0) -> 0 | AH10: =IF(L10=3,20,0) -> 0 | AI10: =IF(L10=4,18,0) -> 0 | AJ10: =IF(L10=5,16,0) -> 0 | AK10: =IF(L10=6,15,0) -> 0 | AL10: =IF(L10=7,14,0) -> 0 | AM10: =IF(L10=8,13,0) -> 0 | AN10: =IF(L10=9,12,0) -> 0 | AO10: =IF(L10=10,11,0) -> 0 | AP10: =IF(L10=11,10,0) -> 0 | AQ10: =IF(L10=12,9,0) -> 0 | AR10: =IF(L10=13,8,0) -> 0 | AS10: =IF(L10=14,7,0) -> 0 | AT10: =IF(L10=15,6,0) -> 0 | AU10: =IF(L10=16,5,0) -> 0 | AV10: =IF(L10=17,4,0) -> 0 | AW10: =IF(L10=18,3,0) -> 0 | AX10: =IF(L10=19,2,0) -> 0 | AY10: =IF(L10=20,1,0) -> 0 | AZ10: =IF(L10>20,0,0) -> 0 | BA10: =IF(L10="сх",0,0) -> 0 | BB10: =SUM(AF10:AZ10) -> 25 | BC10: =IF(N10=1,25,0) -> 0 | BD10: =IF(N10=2,22,0) -> 0 | BE10: =IF(N10=3,20,0) -> 0 | BF10: =IF(N10=4,18,0) -> 0 | BG10: =IF(N10=5,16,0) -> 0 | BH10: =IF(N10=6,15,0) -> 0 | BI10: =IF(N10=7,14,0) -> 0 | BJ10: =IF(N10=8,13,0) -> 0 | BK10: =IF(N10=9,12,0) -> 0 | BL10: =IF(N10=10,11,0) -> 0 | BM10: =IF(N10=11,10,0) -> 0 | BN10: =IF(N10=12,9,0) -> 0 | BO10: =IF(N10=13,8,0) -> 0 | BP10: =IF(N10=14,7,0) -> 0 | BQ10: =IF(N10=15,6,0) -> 0 | BR10: =IF(N10=16,5,0) -> 0 | BS10: =IF(N10=17,4,0) -> 0 | BT10: =IF(N10=18,3,0) -> 0 | BU10: =IF(N10=19,2,0) -> 0 | BV10: =IF(N10=20,1,0) -> 0 | BW10: =IF(N10>20,0,0) -> 0 | BX10: =IF(N10="сх",0,0) -> 0 | BY10: =SUM(BC10:BW10) -> 0 | BZ10: =IF(L10=1,45,0) -> 45 | CA10: =IF(L10=2,42,0) -> 0 | CB10: =IF(L10=3,40,0) -> 0 | CC10: =IF(L10=4,38,0) -> 0 | CD10: =IF(L10=5,36,0) -> 0 | CE10: =IF(L10=6,35,0) -> 0 | CF10: =IF(L10=7,34,0) -> 0 | CG10: =IF(L10=8,33,0) -> 0 | CH10: =IF(L10=9,32,0) -> 0 | CI10: =IF(L10=10,31,0) -> 0 | CJ10: =IF(L10=11,30,0) -> 0 | CK10: =IF(L10=12,29,0) -> 0 | CL10: =IF(L10=13,28,0) -> 0 | CM10: =IF(L10=14,27,0) -> 0 | CN10: =IF(L10=15,26,0) -> 0 | CO10: =IF(L10=16,25,0) -> 0 | CP10: =IF(L10=17,24,0) -> 0 | CQ10: =IF(L10=18,23,0) -> 0 | CR10: =IF(L10=19,22,0) -> 0 | CS10: =IF(L10=20,21,0) -> 0 | CT10: =IF(L10=21,20,0) -> 0 | CU10: =IF(L10=22,19,0) -> 0 | CV10: =IF(L10=23,18,0) -> 0 | CW10: =IF(L10=24,17,0) -> 0 | CX10: =IF(L10=25,16,0) -> 0 | CY10: =IF(L10=26,15,0) -> 0 | CZ10: =IF(L10=27,14,0) -> 0 | DA10: =IF(L10=28,13,0) -> 0 | DB10: =IF(L10=29,12,0) -> 0 | DC10: =IF(L10=30,11,0) -> 0 | DD10: =IF(L10=31,10,0) -> 0 | DE10: =IF(L10=32,9,0) -> 0 | DF10: =IF(L10=33,8,0) -> 0 | DG10: =IF(L10=34,7,0) -> 0 | DH10: =IF(L10=35,6,0) -> 0 | DI10: =IF(L10=36,5,0) -> 0 | DJ10: =IF(L10=37,4,0) -> 0 | DK10: =IF(L10=38,3,0) -> 0 | DL10: =IF(L10=39,2,0) -> 0 | DM10: =IF(L10=40,1,0) -> 0 | DN10: =IF(L10>20,0,0) -> 0 | DO10: =IF(L10="сх",0,0) -> 0 | DP10: =SUM(BZ10:DO10) -> 45 | DQ10: =IF(N10=1,45,0) -> 0 | DR10: =IF(N10=2,42,0) -> 0 | DS10: =IF(N10=3,40,0) -> 0 | DT10: =IF(N10=4,38,0) -> 0 | DU10: =IF(N10=5,36,0) -> 0 | DV10: =IF(N10=6,35,0) -> 0 | DW10: =IF(N10=7,34,0) -> 0 | DX10: =IF(N10=8,33,0) -> 0 | DY10: =IF(N10=9,32,0) -> 0 | DZ10: =IF(N10=10,31,0) -> 0 | EA10: =IF(N10=11,30,0) -> 0 | EB10: =IF(N10=12,29,0) -> 0 | EC10: =IF(N10=13,28,0) -> 0 | ED10: =IF(N10=14,27,0) -> 0 | EE10: =IF(N10=15,26,0) -> 0 | EF10: =IF(N10=16,25,0) -> 0 | EG10: =IF(N10=17,24,0) -> 0 | EH10: =IF(N10=18,23,0) -> 0 | EI10: =IF(N10=19,22,0) -> 0 | EJ10: =IF(N10=20,21,0) -> 0 | EK10: =IF(N10=21,20,0) -> 0 | EL10: =IF(N10=22,19,0) -> 0 | EM10: =IF(N10=23,18,0) -> 0 | EN10: =IF(N10=24,17,0) -> 0 | EO10: =IF(N10=25,16,0) -> 0 | EP10: =IF(N10=26,15,0) -> 0 | EQ10: =IF(N10=27,14,0) -> 0 | ER10: =IF(N10=28,13,0) -> 0 | ES10: =IF(N10=29,12,0) -> 0 | ET10: =IF(N10=30,11,0) -> 0 | EU10: =IF(N10=31,10,0) -> 0 | EV10: =IF(N10=32,9,0) -> 0 | EW10: =IF(N10=33,8,0) -> 0 | EX10: =IF(N10=34,7,0) -> 0 | EY10: =IF(N10=35,6,0) -> 0 | EZ10: =IF(N10=36,5,0) -> 0 | FA10: =IF(N10=37,4,0) -> 0 | FB10: =IF(N10=38,3,0) -> 0 | FC10: =IF(N10=39,2,0) -> 0 | FD10: =IF(N10=40,1,0) -> 0 | FE10: =IF(N10>20,0,0) -> 0 | FF10: =IF(N10="сх",0,0) -> 0 | FG10: =SUM(DQ10:FF10) -> 0 | FI10: =IF(L10="сх","ноль",IF(L10>0,L10,"Ноль")) -> 1 | FJ10: =IF(N10="сх","ноль",IF(N10>0,N10,"Ноль")) -> - | FL10: =MIN(FI10,FJ10) -> 1 | FM10: =IF(AB10=#REF!,IF(N10<#REF!,#REF!,FQ10),#REF!) ->  | FN10: =IF(AB10=#REF!,IF(N10<#REF!,0,1)) ->  | FO10: =IF(AND(FL10>=21,FL10<>0),FL10,IF(AB10<#REF!,"СТОП",FM10+FN10)) ->  | FQ10: 15 | FR10: 16 | FT10: =IF(L10=1,25,0) -> 25 | FU10: =IF(L10=2,22,0) -> 0 | FV10: =IF(L10=3,20,0) -> 0 | FW10: =IF(L10=4,18,0) -> 0 | FX10: =IF(L10=5,16,0) -> 0 | FY10: =IF(L10=6,15,0) -> 0 | FZ10: =IF(L10=7,14,0) -> 0 | GA10: =IF(L10=8,13,0) -> 0 | GB10: =IF(L10=9,12,0) -> 0 | GC10: =IF(L10=10,11,0) -> 0 | GD10: =IF(L10=11,10,0) -> 0 | GE10: =IF(L10=12,9,0) -> 0 | GF10: =IF(L10=13,8,0) -> 0 | GG10: =IF(L10=14,7,0) -> 0 | GH10: =IF(L10=15,6,0) -> 0 | GI10: =IF(L10=16,5,0) -> 0 | GJ10: =IF(L10=17,4,0) -> 0 | GK10: =IF(L10=18,3,0) -> 0 | GL10: =IF(L10=19,2,0) -> 0 | GM10: =IF(L10=20,1,0) -> 0 | GN10: =IF(L10>20,0,0) -> 0 | GO10: =IF(L10="сх",0,0) -> 0 | GP10: =SUM(FT10:GO10) -> 25 | GQ10: =IF(N10=1,25,0) -> 0 | GR10: =IF(N10=2,22,0) -> 0 | GS10: =IF(N10=3,20,0) -> 0 | GT10: =IF(N10=4,18,0) -> 0 | GU10: =IF(N10=5,16,0) -> 0 | GV10: =IF(N10=6,15,0) -> 0 | GW10: =IF(N10=7,14,0) -> 0 | GX10: =IF(N10=8,13,0) -> 0 | GY10: =IF(N10=9,12,0) -> 0 | GZ10: =IF(N10=10,11,0) -> 0 | HA10: =IF(N10=11,10,0) -> 0 | HB10: =IF(N10=12,9,0) -> 0 | HC10: =IF(N10=13,8,0) -> 0 | HD10: =IF(N10=14,7,0) -> 0 | HE10: =IF(N10=15,6,0) -> 0 | HF10: =IF(N10=16,5,0) -> 0 | HG10: =IF(N10=17,4,0) -> 0 | HH10: =IF(N10=18,3,0) -> 0 | HI10: =IF(N10=19,2,0) -> 0 | HJ10: =IF(N10=20,1,0) -> 0 | HK10: =IF(N10>20,0,0) -> 0 | HL10: =IF(N10="сх",0,0) -> 0 | HM10: =SUM(GQ10:HL10) -> 0 | HN10: =IF(L10=1,100,0) -> 100 | HO10: =IF(L10=2,98,0) -> 0 | HP10: =IF(L10=3,95,0) -> 0 | HQ10: =IF(L10=4,93,0) -> 0 | HR10: =IF(L10=5,90,0) -> 0 | HS10: =IF(L10=6,88,0) -> 0 | HT10: =IF(L10=7,85,0) -> 0 | HU10: =IF(L10=8,83,0) -> 0 | HV10: =IF(L10=9,80,0) -> 0 | HW10: =IF(L10=10,78,0) -> 0 | HX10: =IF(L10=11,75,0) -> 0 | HY10: =IF(L10=12,73,0) -> 0 | HZ10: =IF(L10=13,70,0) -> 0 | IA10: =IF(L10=14,68,0) -> 0 | IB10: =IF(L10=15,65,0) -> 0 | IC10: =IF(L10=16,63,0) -> 0 | ID10: =IF(L10=17,60,0) -> 0 | IE10: =IF(L10=18,58,0) -> 0 | IF10: =IF(L10=19,55,0) -> 0 | IG10: =IF(L10=20,53,0) -> 0 | IH10: =IF(L10>20,0,0) -> 0 | II10: =IF(L10="сх",0,0) -> 0 | IJ10: =SUM(HN10:II10) -> 100 | IK10: =IF(N10=1,100,0) -> 0 | IL10: =IF(N10=2,98,0) -> 0 | IM10: =IF(N10=3,95,0) -> 0 | IN10: =IF(N10=4,93,0) -> 0 | IO10: =IF(N10=5,90,0) -> 0 | IP10: =IF(N10=6,88,0) -> 0 | IQ10: =IF(N10=7,85,0) -> 0 | IR10: =IF(N10=8,83,0) -> 0 | IS10: =IF(N10=9,80,0) -> 0 | IT10: =IF(N10=10,78,0) -> 0 | IU10: =IF(N10=11,75,0) -> 0 | IV10: =IF(N10=12,73,0) -> 0 | IW10: =IF(N10=13,70,0) -> 0 | IX10: =IF(N10=14,68,0) -> 0 | IY10: =IF(N10=15,65,0) -> 0 | IZ10: =IF(N10=16,63,0) -> 0 | JA10: =IF(N10=17,60,0) -> 0 | JB10: =IF(N10=18,58,0) -> 0 | JC10: =IF(N10=19,55,0) -> 0 | JD10: =IF(N10=20,53,0) -> 0 | JE10: =IF(N10>20,0,0) -> 0 | JF10: =IF(N10="сх",0,0) -> 0 | JG10: =SUM(IK10:JF10) -> 0
A11: 2 | B11: 38.4 | C11: 0 | D11: 19.2 | E11: 19.2 | F11: 959 | G11: Мартюченко Евгений | H11: мс | I11: г. Тюмень | J11: "Сборная команда Тюменской области" | K11: LYNX | L11: - | M11: 0 | N11: - | O11: 0 | P11: 2 | Q11: 22 | R11: - | S11: 0 | T11: - | U11: 0 | V11: 2 | W11: 22 | X11: 1 | Y11: 25 | Z11: 2 | AA11: 22 | AB11: 91 | AC11: =M11+O11 -> 0 | AF11: =IF(L11=1,25,0) -> 0 | AG11: =IF(L11=2,22,0) -> 0 | AH11: =IF(L11=3,20,0) -> 0 | AI11: =IF(L11=4,18,0) -> 0 | AJ11: =IF(L11=5,16,0) -> 0 | AK11: =IF(L11=6,15,0) -> 0 | AL11: =IF(L11=7,14,0) -> 0 | AM11: =IF(L11=8,13,0) -> 0 | AN11: =IF(L11=9,12,0) -> 0 | AO11: =IF(L11=10,11,0) -> 0 | AP11: =IF(L11=11,10,0) -> 0 | AQ11: =IF(L11=12,9,0) -> 0 | AR11: =IF(L11=13,8,0) -> 0 | AS11: =IF(L11=14,7,0) -> 0 | AT11: =IF(L11=15,6,0) -> 0 | AU11: =IF(L11=16,5,0) -> 0 | AV11: =IF(L11=17,4,0) -> 0 | AW11: =IF(L11=18,3,0) -> 0 | AX11: =IF(L11=19,2,0) -> 0 | AY11: =IF(L11=20,1,0) -> 0 | AZ11: =IF(L11>20,0,0) -> 0 | BA11: =IF(L11="сх",0,0) -> 0 | BB11: =SUM(AF11:AZ11) -> 0 | BC11: =IF(N11=1,25,0) -> 0 | BD11: =IF(N11=2,22,0) -> 0 | BE11: =IF(N11=3,20,0) -> 0 | BF11: =IF(N11=4,18,0) -> 0 | BG11: =IF(N11=5,16,0) -> 0 | BH11: =IF(N11=6,15,0) -> 0 | BI11: =IF(N11=7,14,0) -> 0 | BJ11: =IF(N11=8,13,0) -> 0 | BK11: =IF(N11=9,12,0) -> 0 | BL11: =IF(N11=10,11,0) -> 0 | BM11: =IF(N11=11,10,0) -> 0 | BN11: =IF(N11=12,9,0) -> 0 | BO11: =IF(N11=13,8,0) -> 0 | BP11: =IF(N11=14,7,0) -> 0 | BQ11: =IF(N11=15,6,0) -> 0 | BR11: =IF(N11=16,5,0) -> 0 | BS11: =IF(N11=17,4,0) -> 0 | BT11: =IF(N11=18,3,0) -> 0 | BU11: =IF(N11=19,2,0) -> 0 | BV11: =IF(N11=20,1,0) -> 0 | BW11: =IF(N11>20,0,0) -> 0 | BX11: =IF(N11="сх",0,0) -> 0 | BY11: =SUM(BC11:BW11) -> 0 | BZ11: =IF(L11=1,45,0) -> 0 | CA11: =IF(L11=2,42,0) -> 0 | CB11: =IF(L11=3,40,0) -> 0 | CC11: =IF(L11=4,38,0) -> 0 | CD11: =IF(L11=5,36,0) -> 0 | CE11: =IF(L11=6,35,0) -> 0 | CF11: =IF(L11=7,34,0) -> 0 | CG11: =IF(L11=8,33,0) -> 0 | CH11: =IF(L11=9,32,0) -> 0 | CI11: =IF(L11=10,31,0) -> 0 | CJ11: =IF(L11=11,30,0) -> 0 | CK11: =IF(L11=12,29,0) -> 0 | CL11: =IF(L11=13,28,0) -> 0 | CM11: =IF(L11=14,27,0) -> 0 | CN11: =IF(L11=15,26,0) -> 0 | CO11: =IF(L11=16,25,0) -> 0 | CP11: =IF(L11=17,24,0) -> 0 | CQ11: =IF(L11=18,23,0) -> 0 | CR11: =IF(L11=19,22,0) -> 0 | CS11: =IF(L11=20,21,0) -> 0 | CT11: =IF(L11=21,20,0) -> 0 | CU11: =IF(L11=22,19,0) -> 0 | CV11: =IF(L11=23,18,0) -> 0 | CW11: =IF(L11=24,17,0) -> 0 | CX11: =IF(L11=25,16,0) -> 0 | CY11: =IF(L11=26,15,0) -> 0 | CZ11: =IF(L11=27,14,0) -> 0 | DA11: =IF(L11=28,13,0) -> 0 | DB11: =IF(L11=29,12,0) -> 0 | DC11: =IF(L11=30,11,0) -> 0 | DD11: =IF(L11=31,10,0) -> 0 | DE11: =IF(L11=32,9,0) -> 0 | DF11: =IF(L11=33,8,0) -> 0 | DG11: =IF(L11=34,7,0) -> 0 | DH11: =IF(L11=35,6,0) -> 0 | DI11: =IF(L11=36,5,0) -> 0 | DJ11: =IF(L11=37,4,0) -> 0 | DK11: =IF(L11=38,3,0) -> 0 | DL11: =IF(L11=39,2,0) -> 0 | DM11: =IF(L11=40,1,0) -> 0 | DN11: =IF(L11>20,0,0) -> 0 | DO11: =IF(L11="сх",0,0) -> 0 | DP11: =SUM(BZ11:DO11) -> 0 | DQ11: =IF(N11=1,45,0) -> 0 | DR11: =IF(N11=2,42,0) -> 0 | DS11: =IF(N11=3,40,0) -> 0 | DT11: =IF(N11=4,38,0) -> 0 | DU11: =IF(N11=5,36,0) -> 0 | DV11: =IF(N11=6,35,0) -> 0 | DW11: =IF(N11=7,34,0) -> 0 | DX11: =IF(N11=8,33,0) -> 0 | DY11: =IF(N11=9,32,0) -> 0 | DZ11: =IF(N11=10,31,0) -> 0 | EA11: =IF(N11=11,30,0) -> 0 | EB11: =IF(N11=12,29,0) -> 0 | EC11: =IF(N11=13,28,0) -> 0 | ED11: =IF(N11=14,27,0) -> 0 | EE11: =IF(N11=15,26,0) -> 0 | EF11: =IF(N11=16,25,0) -> 0 | EG11: =IF(N11=17,24,0) -> 0 | EH11: =IF(N11=18,23,0) -> 0 | EI11: =IF(N11=19,22,0) -> 0 | EJ11: =IF(N11=20,21,0) -> 0 | EK11: =IF(N11=21,20,0) -> 0 | EL11: =IF(N11=22,19,0) -> 0 | EM11: =IF(N11=23,18,0) -> 0 | EN11: =IF(N11=24,17,0) -> 0 | EO11: =IF(N11=25,16,0) -> 0 | EP11: =IF(N11=26,15,0) -> 0 | EQ11: =IF(N11=27,14,0) -> 0 | ER11: =IF(N11=28,13,0) -> 0 | ES11: =IF(N11=29,12,0) -> 0 | ET11: =IF(N11=30,11,0) -> 0 | EU11: =IF(N11=31,10,0) -> 0 | EV11: =IF(N11=32,9,0) -> 0 | EW11: =IF(N11=33,8,0) -> 0 | EX11: =IF(N11=34,7,0) -> 0 | EY11: =IF(N11=35,6,0) -> 0 | EZ11: =IF(N11=36,5,0) -> 0 | FA11: =IF(N11=37,4,0) -> 0 | FB11: =IF(N11=38,3,0) -> 0 | FC11: =IF(N11=39,2,0) -> 0 | FD11: =IF(N11=40,1,0) -> 0 | FE11: =IF(N11>20,0,0) -> 0 | FF11: =IF(N11="сх",0,0) -> 0 | FG11: =SUM(DQ11:FF11) -> 0 | FI11: =IF(L11="сх","ноль",IF(L11>0,L11,"Ноль")) -> - | FJ11: =IF(N11="сх","ноль",IF(N11>0,N11,"Ноль")) -> - | FL11: =MIN(FI11,FJ11) -> 0 | FM11: =IF(AB11=#REF!,IF(N11<#REF!,#REF!,FQ11),#REF!) ->  | FN11: =IF(AB11=#REF!,IF(N11<#REF!,0,1)) ->  | FO11: =IF(AND(FL11>=21,FL11<>0),FL11,IF(AB11<#REF!,"СТОП",FM11+FN11)) ->  | FQ11: 15 | FR11: 16 | FT11: =IF(L11=1,25,0) -> 0 | FU11: =IF(L11=2,22,0) -> 0 | FV11: =IF(L11=3,20,0) -> 0 | FW11: =IF(L11=4,18,0) -> 0 | FX11: =IF(L11=5,16,0) -> 0 | FY11: =IF(L11=6,15,0) -> 0 | FZ11: =IF(L11=7,14,0) -> 0 | GA11: =IF(L11=8,13,0) -> 0 | GB11: =IF(L11=9,12,0) -> 0 | GC11: =IF(L11=10,11,0) -> 0 | GD11: =IF(L11=11,10,0) -> 0 | GE11: =IF(L11=12,9,0) -> 0 | GF11: =IF(L11=13,8,0) -> 0 | GG11: =IF(L11=14,7,0) -> 0 | GH11: =IF(L11=15,6,0) -> 0 | GI11: =IF(L11=16,5,0) -> 0 | GJ11: =IF(L11=17,4,0) -> 0 | GK11: =IF(L11=18,3,0) -> 0 | GL11: =IF(L11=19,2,0) -> 0 | GM11: =IF(L11=20,1,0) -> 0 | GN11: =IF(L11>20,0,0) -> 0 | GO11: =IF(L11="сх",0,0) -> 0 | GP11: =SUM(FT11:GO11) -> 0 | GQ11: =IF(N11=1,25,0) -> 0 | GR11: =IF(N11=2,22,0) -> 0 | GS11: =IF(N11=3,20,0) -> 0 | GT11: =IF(N11=4,18,0) -> 0 | GU11: =IF(N11=5,16,0) -> 0 | GV11: =IF(N11=6,15,0) -> 0 | GW11: =IF(N11=7,14,0) -> 0 | GX11: =IF(N11=8,13,0) -> 0 | GY11: =IF(N11=9,12,0) -> 0 | GZ11: =IF(N11=10,11,0) -> 0 | HA11: =IF(N11=11,10,0) -> 0 | HB11: =IF(N11=12,9,0) -> 0 | HC11: =IF(N11=13,8,0) -> 0 | HD11: =IF(N11=14,7,0) -> 0 | HE11: =IF(N11=15,6,0) -> 0 | HF11: =IF(N11=16,5,0) -> 0 | HG11: =IF(N11=17,4,0) -> 0 | HH11: =IF(N11=18,3,0) -> 0 | HI11: =IF(N11=19,2,0) -> 0 | HJ11: =IF(N11=20,1,0) -> 0 | HK11: =IF(N11>20,0,0) -> 0 | HL11: =IF(N11="сх",0,0) -> 0 | HM11: =SUM(GQ11:HL11) -> 0 | HN11: =IF(L11=1,100,0) -> 0 | HO11: =IF(L11=2,98,0) -> 0 | HP11: =IF(L11=3,95,0) -> 0 | HQ11: =IF(L11=4,93,0) -> 0 | HR11: =IF(L11=5,90,0) -> 0 | HS11: =IF(L11=6,88,0) -> 0 | HT11: =IF(L11=7,85,0) -> 0 | HU11: =IF(L11=8,83,0) -> 0 | HV11: =IF(L11=9,80,0) -> 0 | HW11: =IF(L11=10,78,0) -> 0 | HX11: =IF(L11=11,75,0) -> 0 | HY11: =IF(L11=12,73,0) -> 0 | HZ11: =IF(L11=13,70,0) -> 0 | IA11: =IF(L11=14,68,0) -> 0 | IB11: =IF(L11=15,65,0) -> 0 | IC11: =IF(L11=16,63,0) -> 0 | ID11: =IF(L11=17,60,0) -> 0 | IE11: =IF(L11=18,58,0) -> 0 | IF11: =IF(L11=19,55,0) -> 0 | IG11: =IF(L11=20,53,0) -> 0 | IH11: =IF(L11>20,0,0) -> 0 | II11: =IF(L11="сх",0,0) -> 0 | IJ11: =SUM(HN11:II11) -> 0 | IK11: =IF(N11=1,100,0) -> 0 | IL11: =IF(N11=2,98,0) -> 0 | IM11: =IF(N11=3,95,0) -> 0 | IN11: =IF(N11=4,93,0) -> 0 | IO11: =IF(N11=5,90,0) -> 0 | IP11: =IF(N11=6,88,0) -> 0 | IQ11: =IF(N11=7,85,0) -> 0 | IR11: =IF(N11=8,83,0) -> 0 | IS11: =IF(N11=9,80,0) -> 0 | IT11: =IF(N11=10,78,0) -> 0 | IU11: =IF(N11=11,75,0) -> 0 | IV11: =IF(N11=12,73,0) -> 0 | IW11: =IF(N11=13,70,0) -> 0 | IX11: =IF(N11=14,68,0) -> 0 | IY11: =IF(N11=15,65,0) -> 0 | IZ11: =IF(N11=16,63,0) -> 0 | JA11: =IF(N11=17,60,0) -> 0 | JB11: =IF(N11=18,58,0) -> 0 | JC11: =IF(N11=19,55,0) -> 0 | JD11: =IF(N11=20,53,0) -> 0 | JE11: =IF(N11>20,0,0) -> 0 | JF11: =IF(N11="сх",0,0) -> 0 | JG11: =SUM(IK11:JF11) -> 0
A12: 3 | B12: 53.2 | C12: 19.2 | D12: 17.2 | E12: 16.8 | F12: 1 | G12: Смолин Евгений | H12: кмс | I12: г. Новый Уренгой, Ямало-Ненецкий АО | J12: СТК "Факел" | K12: Arctic-Cat | L12: 2 | M12: 22 | N12: - | O12: 0 | P12: 6 | Q12: 15 | R12: - | S12: 0 | T12: - | U12: 0 | V12: 8 | W12: 13 | X12: 4 | Y12: 18 | Z12: 9 | AA12: 12 | AB12: 80 | AC12: =M12+O12 -> 22 | AF12: =IF(L12=1,25,0) -> 0 | AG12: =IF(L12=2,22,0) -> 22 | AH12: =IF(L12=3,20,0) -> 0 | AI12: =IF(L12=4,18,0) -> 0 | AJ12: =IF(L12=5,16,0) -> 0 | AK12: =IF(L12=6,15,0) -> 0 | AL12: =IF(L12=7,14,0) -> 0 | AM12: =IF(L12=8,13,0) -> 0 | AN12: =IF(L12=9,12,0) -> 0 | AO12: =IF(L12=10,11,0) -> 0 | AP12: =IF(L12=11,10,0) -> 0 | AQ12: =IF(L12=12,9,0) -> 0 | AR12: =IF(L12=13,8,0) -> 0 | AS12: =IF(L12=14,7,0) -> 0 | AT12: =IF(L12=15,6,0) -> 0 | AU12: =IF(L12=16,5,0) -> 0 | AV12: =IF(L12=17,4,0) -> 0 | AW12: =IF(L12=18,3,0) -> 0 | AX12: =IF(L12=19,2,0) -> 0 | AY12: =IF(L12=20,1,0) -> 0 | AZ12: =IF(L12>20,0,0) -> 0 | BA12: =IF(L12="сх",0,0) -> 0 | BB12: =SUM(AF12:AZ12) -> 22 | BC12: =IF(N12=1,25,0) -> 0 | BD12: =IF(N12=2,22,0) -> 0 | BE12: =IF(N12=3,20,0) -> 0 | BF12: =IF(N12=4,18,0) -> 0 | BG12: =IF(N12=5,16,0) -> 0 | BH12: =IF(N12=6,15,0) -> 0 | BI12: =IF(N12=7,14,0) -> 0 | BJ12: =IF(N12=8,13,0) -> 0 | BK12: =IF(N12=9,12,0) -> 0 | BL12: =IF(N12=10,11,0) -> 0 | BM12: =IF(N12=11,10,0) -> 0 | BN12: =IF(N12=12,9,0) -> 0 | BO12: =IF(N12=13,8,0) -> 0 | BP12: =IF(N12=14,7,0) -> 0 | BQ12: =IF(N12=15,6,0) -> 0 | BR12: =IF(N12=16,5,0) -> 0 | BS12: =IF(N12=17,4,0) -> 0 | BT12: =IF(N12=18,3,0) -> 0 | BU12: =IF(N12=19,2,0) -> 0 | BV12: =IF(N12=20,1,0) -> 0 | BW12: =IF(N12>20,0,0) -> 0 | BX12: =IF(N12="сх",0,0) -> 0 | BY12: =SUM(BC12:BW12) -> 0 | BZ12: =IF(L12=1,45,0) -> 0 | CA12: =IF(L12=2,42,0) -> 42 | CB12: =IF(L12=3,40,0) -> 0 | CC12: =IF(L12=4,38,0) -> 0 | CD12: =IF(L12=5,36,0) -> 0 | CE12: =IF(L12=6,35,0) -> 0 | CF12: =IF(L12=7,34,0) -> 0 | CG12: =IF(L12=8,33,0) -> 0 | CH12: =IF(L12=9,32,0) -> 0 | CI12: =IF(L12=10,31,0) -> 0 | CJ12: =IF(L12=11,30,0) -> 0 | CK12: =IF(L12=12,29,0) -> 0 | CL12: =IF(L12=13,28,0) -> 0 | CM12: =IF(L12=14,27,0) -> 0 | CN12: =IF(L12=15,26,0) -> 0 | CO12: =IF(L12=16,25,0) -> 0 | CP12: =IF(L12=17,24,0) -> 0 | CQ12: =IF(L12=18,23,0) -> 0 | CR12: =IF(L12=19,22,0) -> 0 | CS12: =IF(L12=20,21,0) -> 0 | CT12: =IF(L12=21,20,0) -> 0 | CU12: =IF(L12=22,19,0) -> 0 | CV12: =IF(L12=23,18,0) -> 0 | CW12: =IF(L12=24,17,0) -> 0 | CX12: =IF(L12=25,16,0) -> 0 | CY12: =IF(L12=26,15,0) -> 0 | CZ12: =IF(L12=27,14,0) -> 0 | DA12: =IF(L12=28,13,0) -> 0 | DB12: =IF(L12=29,12,0) -> 0 | DC12: =IF(L12=30,11,0) -> 0 | DD12: =IF(L12=31,10,0) -> 0 | DE12: =IF(L12=32,9,0) -> 0 | DF12: =IF(L12=33,8,0) -> 0 | DG12: =IF(L12=34,7,0) -> 0 | DH12: =IF(L12=35,6,0) -> 0 | DI12: =IF(L12=36,5,0) -> 0 | DJ12: =IF(L12=37,4,0) -> 0 | DK12: =IF(L12=38,3,0) -> 0 | DL12: =IF(L12=39,2,0) -> 0 | DM12: =IF(L12=40,1,0) -> 0 | DN12: =IF(L12>20,0,0) -> 0 | DO12: =IF(L12="сх",0,0) -> 0 | DP12: =SUM(BZ12:DO12) -> 42 | DQ12: =IF(N12=1,45,0) -> 0 | DR12: =IF(N12=2,42,0) -> 0 | DS12: =IF(N12=3,40,0) -> 0 | DT12: =IF(N12=4,38,0) -> 0 | DU12: =IF(N12=5,36,0) -> 0 | DV12: =IF(N12=6,35,0) -> 0 | DW12: =IF(N12=7,34,0) -> 0 | DX12: =IF(N12=8,33,0) -> 0 | DY12: =IF(N12=9,32,0) -> 0 | DZ12: =IF(N12=10,31,0) -> 0 | EA12: =IF(N12=11,30,0) -> 0 | EB12: =IF(N12=12,29,0) -> 0 | EC12: =IF(N12=13,28,0) -> 0 | ED12: =IF(N12=14,27,0) -> 0 | EE12: =IF(N12=15,26,0) -> 0 | EF12: =IF(N12=16,25,0) -> 0 | EG12: =IF(N12=17,24,0) -> 0 | EH12: =IF(N12=18,23,0) -> 0 | EI12: =IF(N12=19,22,0) -> 0 | EJ12: =IF(N12=20,21,0) -> 0 | EK12: =IF(N12=21,20,0) -> 0 | EL12: =IF(N12=22,19,0) -> 0 | EM12: =IF(N12=23,18,0) -> 0 | EN12: =IF(N12=24,17,0) -> 0 | EO12: =IF(N12=25,16,0) -> 0 | EP12: =IF(N12=26,15,0) -> 0 | EQ12: =IF(N12=27,14,0) -> 0 | ER12: =IF(N12=28,13,0) -> 0 | ES12: =IF(N12=29,12,0) -> 0 | ET12: =IF(N12=30,11,0) -> 0 | EU12: =IF(N12=31,10,0) -> 0 | EV12: =IF(N12=32,9,0) -> 0 | EW12: =IF(N12=33,8,0) -> 0 | EX12: =IF(N12=34,7,0) -> 0 | EY12: =IF(N12=35,6,0) -> 0 | EZ12: =IF(N12=36,5,0) -> 0 | FA12: =IF(N12=37,4,0) -> 0 | FB12: =IF(N12=38,3,0) -> 0 | FC12: =IF(N12=39,2,0) -> 0 | FD12: =IF(N12=40,1,0) -> 0 | FE12: =IF(N12>20,0,0) -> 0 | FF12: =IF(N12="сх",0,0) -> 0 | FG12: =SUM(DQ12:FF12) -> 0 | FI12: =IF(L12="сх","ноль",IF(L12>0,L12,"Ноль")) -> 2 | FJ12: =IF(N12="сх","ноль",IF(N12>0,N12,"Ноль")) -> - | FL12: =MIN(FI12,FJ12) -> 2 | FM12: =IF(AB12=#REF!,IF(N12<#REF!,#REF!,FQ12),#REF!) ->  | FN12: =IF(AB12=#REF!,IF(N12<#REF!,0,1)) ->  | FO12: =IF(AND(FL12>=21,FL12<>0),FL12,IF(AB12<#REF!,"СТОП",FM12+FN12)) ->  | FQ12: 15 | FR12: 16 | FT12: =IF(L12=1,25,0) -> 0 | FU12: =IF(L12=2,22,0) -> 22 | FV12: =IF(L12=3,20,0) -> 0 | FW12: =IF(L12=4,18,0) -> 0 | FX12: =IF(L12=5,16,0) -> 0 | FY12: =IF(L12=6,15,0) -> 0 | FZ12: =IF(L12=7,14,0) -> 0 | GA12: =IF(L12=8,13,0) -> 0 | GB12: =IF(L12=9,12,0) -> 0 | GC12: =IF(L12=10,11,0) -> 0 | GD12: =IF(L12=11,10,0) -> 0 | GE12: =IF(L12=12,9,0) -> 0 | GF12: =IF(L12=13,8,0) -> 0 | GG12: =IF(L12=14,7,0) -> 0 | GH12: =IF(L12=15,6,0) -> 0 | GI12: =IF(L12=16,5,0) -> 0 | GJ12: =IF(L12=17,4,0) -> 0 | GK12: =IF(L12=18,3,0) -> 0 | GL12: =IF(L12=19,2,0) -> 0 | GM12: =IF(L12=20,1,0) -> 0 | GN12: =IF(L12>20,0,0) -> 0 | GO12: =IF(L12="сх",0,0) -> 0 | GP12: =SUM(FT12:GO12) -> 22 | GQ12: =IF(N12=1,25,0) -> 0 | GR12: =IF(N12=2,22,0) -> 0 | GS12: =IF(N12=3,20,0) -> 0 | GT12: =IF(N12=4,18,0) -> 0 | GU12: =IF(N12=5,16,0) -> 0 | GV12: =IF(N12=6,15,0) -> 0 | GW12: =IF(N12=7,14,0) -> 0 | GX12: =IF(N12=8,13,0) -> 0 | GY12: =IF(N12=9,12,0) -> 0 | GZ12: =IF(N12=10,11,0) -> 0 | HA12: =IF(N12=11,10,0) -> 0 | HB12: =IF(N12=12,9,0) -> 0 | HC12: =IF(N12=13,8,0) -> 0 | HD12: =IF(N12=14,7,0) -> 0 | HE12: =IF(N12=15,6,0) -> 0 | HF12: =IF(N12=16,5,0) -> 0 | HG12: =IF(N12=17,4,0) -> 0 | HH12: =IF(N12=18,3,0) -> 0 | HI12: =IF(N12=19,2,0) -> 0 | HJ12: =IF(N12=20,1,0) -> 0 | HK12: =IF(N12>20,0,0) -> 0 | HL12: =IF(N12="сх",0,0) -> 0 | HM12: =SUM(GQ12:HL12) -> 0 | HN12: =IF(L12=1,100,0) -> 0 | HO12: =IF(L12=2,98,0) -> 98 | HP12: =IF(L12=3,95,0) -> 0 | HQ12: =IF(L12=4,93,0) -> 0 | HR12: =IF(L12=5,90,0) -> 0 | HS12: =IF(L12=6,88,0) -> 0 | HT12: =IF(L12=7,85,0) -> 0 | HU12: =IF(L12=8,83,0) -> 0 | HV12: =IF(L12=9,80,0) -> 0 | HW12: =IF(L12=10,78,0) -> 0 | HX12: =IF(L12=11,75,0) -> 0 | HY12: =IF(L12=12,73,0) -> 0 | HZ12: =IF(L12=13,70,0) -> 0 | IA12: =IF(L12=14,68,0) -> 0 | IB12: =IF(L12=15,65,0) -> 0 | IC12: =IF(L12=16,63,0) -> 0 | ID12: =IF(L12=17,60,0) -> 0 | IE12: =IF(L12=18,58,0) -> 0 | IF12: =IF(L12=19,55,0) -> 0 | IG12: =IF(L12=20,53,0) -> 0 | IH12: =IF(L12>20,0,0) -> 0 | II12: =IF(L12="сх",0,0) -> 0 | IJ12: =SUM(HN12:II12) -> 98 | IK12: =IF(N12=1,100,0) -> 0 | IL12: =IF(N12=2,98,0) -> 0 | IM12: =IF(N12=3,95,0) -> 0 | IN12: =IF(N12=4,93,0) -> 0 | IO12: =IF(N12=5,90,0) -> 0 | IP12: =IF(N12=6,88,0) -> 0 | IQ12: =IF(N12=7,85,0) -> 0 | IR12: =IF(N12=8,83,0) -> 0 | IS12: =IF(N12=9,80,0) -> 0 | IT12: =IF(N12=10,78,0) -> 0 | IU12: =IF(N12=11,75,0) -> 0 | IV12: =IF(N12=12,73,0) -> 0 | IW12: =IF(N12=13,70,0) -> 0 | IX12: =IF(N12=14,68,0) -> 0 | IY12: =IF(N12=15,65,0) -> 0 | IZ12: =IF(N12=16,63,0) -> 0 | JA12: =IF(N12=17,60,0) -> 0 | JB12: =IF(N12=18,58,0) -> 0 | JC12: =IF(N12=19,55,0) -> 0 | JD12: =IF(N12=20,53,0) -> 0 | JE12: =IF(N12>20,0,0) -> 0 | JF12: =IF(N12="сх",0,0) -> 0 | JG12: =SUM(IK12:JF12) -> 0
A13: 4 | B13: 36.8 | C13: 0 | D13: 18.4 | E13: 18.4 | F13: 188 | G13: Рязанцев Денис | H13: мс | I13: г. Ярославль | J13: СТК "Атлант" | K13: LYNX | L13: - | M13: 0 | N13: - | O13: 0 | P13: 3 | Q13: 20 | R13: - | S13: 0 | T13: - | U13: 0 | V13: 3 | W13: 20 | X13: 3 | Y13: 20 | Z13: 4 | AA13: 18 | AB13: 78
A14: 5 | B14: 50 | C14: 16.8 | D14: 15.6 | E14: 17.6 | F14: 6 | G14: Знайдюк Александр | H14: кмс | I14: г. Новый Уренгой, Ямало-Ненецкий АО | J14: СТК "Ямбург" | K14: LYNX | L14: 7 | M14: 14 | N14: - | O14: 0 | P14: 10 | Q14: 11 | R14: - | S14: 0 | T14: - | U14: 0 | V14: 4 | W14: 18 | X14: 6 | Y14: 15 | Z14: 5 | AA14: 16 | AB14: 74
A15: 6 | B15: 51.6 | C15: 18.4 | D15: 16.8 | E15: 16.4 | F15: 3 | G15: Романенко Сергей | H15: мс | I15: г. Новый Уренгой, Ямало-Ненецкий АО | J15: СТК "Факел" | K15: LYNX | L15: 3 | M15: 20 | N15: - | O15: 0 | P15: 7 | Q15: 14 | R15: - | S15: 0 | T15: - | U15: 0 | V15: 7 | W15: 14 | X15: 8 | Y15: 13 | Z15: 10 | AA15: 11 | AB15: 72
A16: 7 | B16: 36 | C16: 0 | D16: 18 | E16: 18 | F16: 4 | G16: Попов Алексей | H16: мс | I16: г. Ярославль | J16: СТК "Атлант" | K16: LYNX | L16: - | M16: 0 | N16: - | O16: 0 | P16: 4 | Q16: 18 | R16: - | S16: 0 | T16: - | U16: 0 | V16: 6 | W16: 15 | X16: 5 | Y16: 16 | Z16: 3 | AA16: 20 | AB16: 69
A17: 8 | B17: 50.4 | C17: 18 | D17: 16.4 | E17: 16 | F17: 5 | G17: Хоменко Валерий | H17: кмс | I17: г. Новый Уренгой, Ямало-Ненецкий АО | J17: СТК "Факел" | K17: LYNX | L17: 4 | M17: 18 | N17: - | O17: 0 | P17: 8 | Q17: 13 | R17: - | S17: 0 | T17: - | U17: 0 | V17: 9 | W17: 12 | X17: 10 | Y17: 11 | Z17: 7 | AA17: 14 | AB17: 68
A18: 9 | B18: 34.8 | C18: 0 | D18: 17.6 | E18: 17.2 | F18: 16 | G18: Пехтерев Артем | H18: кмс | I18: г. Ярославль | J18: СТК "Атлант" | K18: LYNX | L18: - | M18: 0 | N18: - | O18: 0 | P18: 5 | Q18: 16 | R18: - | S18: 0 | T18: - | U18: 0 | V18: 5 | W18: 16 | X18: 7 | Y18: 14 | Z18: 6 | AA18: 15 | AB18: 61
A19: 10 | B19: 48 | C19: 16.4 | D19: 16 | E19: 15.6 | F19: 7 | G19: Садрисламов Денис | H19: I | I19: г. Новый Уренгой, Ямало-Ненецкий АО | J19: СТК "Ямбург" | K19: LYNX | L19: сх | M19: 0 | N19: - | O19: 0 | P19: 9 | Q19: 12 | R19: - | S19: 0 | T19: - | U19: 0 | V19: 10 | W19: 11 | X19: 9 | Y19: 12 | Z19: 8 | AA19: 13 | AB19: 48
A20: 11 | B20: 17.6 | C20: 17.6 | D20: 0 | E20: 0 | F20: 369 | G20: Шмаль Руслан | H20: I | I20: г. Новый Уренгой, Ямало-Ненецкий АО | J20: СТК "Факел" | K20: LYNX | L20: 5 | M20: 16 | N20: - | O20: 0 | P20: - | Q20: 0 | R20: - | S20: 0 | T20: - | U20: 0 | V20: - | W20: 0 | X20: - | Y20: 0 | Z20: - | AA20: 0 | AB20: 16
A21: 12 | B21: 17.2 | C21: 17.2 | D21: 0 | E21: 0 | F21: 9 | G21: Санин Константин | H21: I | I21: г. Новый Уренгой, Ямало-Ненецкий АО | J21: СТК "Ямбург" | K21: LYNX | L21: 6 | M21: 15 | N21: - | O21: 0 | P21: - | Q21: 0 | R21: - | S21: 0 | T21: - | U21: 0 | V21: - | W21: 0 | X21: - | Y21: 0 | Z21: - | AA21: 0 | AB21: 15
A22: 13 | B22: 15.2 | C22: 0 | D22: 15.2 | E22: 0 | F22: 8 | G22: Карпман Яков | H22: кмс | I22: г. Ярославль | J22: СТК "Атлант" | K22: LYNX | L22: - | M22: 0 | N22: - | O22: 0 | P22: 11 | Q22: 10 | R22: - | S22: 0 | T22: - | U22: 0 | V22: н/с | W22: 0 | X22: н/с | Y22: 0 | Z22: н/с | AA22: 0 | AB22: 10
A28: Главный судья соревнований
A29: судья Всероссийской категории: А. Б. Стеблинский (г. Тюмень; лицензия МФР А 144)
A31: Главный секретарь соревнований
A32: судья Всероссийской категории: А. Ю. Иванов (г. Москва/лицензия МФР А 105; FIM 11245)

Sheet СПОРТ ЯНАО
A2: Кубок Ямало-Ненецкого АО по кроссу на снегоходах2016/2017 года.
A3: СВОДНЫЙ ПРОТОКОЛ ЛИЧНОГО ЗАЧЕТА по сумме 3-х этапов | GC3: первый этап
A4: 1-й этап: 03 - 04 декабря 2016 года - г. Новый Уренгой, Ямало-Ненецкий АО; 2-й этап: 24 - 26 марта 2017 года - г. Муравленко, Ямало-Ненецкий АО; 3-й этап: 31 марта - 02 апреля 2017 года - г. Новый Уренгой, Ямало-Ненецкий АО. | FR4: первый заезд личные очки | GN4: второй заезд личные очки | HK4: Первый заезд командные очки | IH4: Второй заезд командные очки
A5: Класс "СПОРТ". | FQ5: 1 | FR5: 2 | FS5: 3 | FT5: 4 | FU5: 5 | FV5: 6 | FW5: 7 | FX5: 8 | FY5: 9 | FZ5: 10 | GA5: 11 | GB5: 12 | GC5: 13 | GD5: 14 | GE5: 15 | GF5: 16 | GG5: 17 | GH5: 18 | GI5: 19 | GJ5: 20 | GK5: 21 | GL5: сх | GM5: Sym | GN5: 1 | GO5: 2 | GP5: 3 | GQ5: 4 | GR5: 5 | GS5: 6 | GT5: 7 | GU5: 8 | GV5: 9 | GW5: 10 | GX5: 11 | GY5: 12 | GZ5: 13 | HA5: 14 | HB5: 15 | HC5: 16 | HD5: 17 | HE5: 18 | HF5: 19 | HG5: 20 | HH5: 21 | HI5: cx | HJ5: sym | HK5: 1 | HL5: 2 | HM5: 3 | HN5: 4 | HO5: 5 | HP5: 6 | HQ5: 7 | HR5: 8 | HS5: 9 | HT5: 10 | HU5: 11 | HV5: 12 | HW5: 13 | HX5: 14 | HY5: 15 | HZ5: 16 | IA5: 17 | IB5: 18 | IC5: 19 | ID5: 20 | IE5: 21 | IF5: сх | IG5: очки | IH5: 1 | II5: 2 | IJ5: 3 | IK5: 4 | IL5: 5 | IM5: 6 | IN5: 7 | IO5: 8 | IP5: 9 | IQ5: 10 | IR5: 11 | IS5: 12 | IT5: 13 | IU5: 14 | IV5: 15 | IW5: 16 | IX5: 17 | IY5: 18 | IZ5: 19 | JA5: 20 | JB5: 21 | JC5: сх | JD5: очки | JE5: =COUNT(FQ5:JD5) -> 84 | JF5: Н. Стро | JG5: В. стро | JH5: место
M6: 1-й этап | Q6: 2-й этап | U6: 3-й этап
A7: Место | B7: РЕЙТИНГ Коэф. 0,5 | C7: СУММА РЕЙТИНГОВЫЕ ОЧКИ | D7: 1-й этап РЕЙТИНГОВЫЕ ОЧКИ Коэф. 0,2 | E7: 2-й этап РЕЙТИНГОВЫЕ ОЧКИ Коэф. 0,2 | F7: 3-й этап РЕЙТИНГОВЫЕ ОЧКИ Коэф. 0,2 | G7: Ст. № | H7: Фамилия, Имя | I7: Раз ряд | J7: Город (край, район, область) | K7: Команда | L7: Мото | M7: I-й заезд | O7: II-й заезд | Q7: I-й заезд | S7: II-й заезд | U7: I-й заезд | W7: II-й заезд | Y7: Сумма очков в личном зачете | Z7: Сумма очк. в командном зачете
M8: место | N8: лич. очки | O8: место | P8: лич. очки | Q8: место | R8: лич. очки | S8: место | T8: лич. очки | U8: место | V8: лич. очки | W8: место | X8: лич. очки | AD8: первый заезд личные очки | AZ8: второй заезд личные очки | BW8: Первый заезд командные очки | DN8: Второй заезд командные очки | FF8: 1 | FG8: 2 | GC8: первый этап
AC9: 1 | AD9: 2 | AE9: 3 | AF9: 4 | AG9: 5 | AH9: 6 | AI9: 7 | AJ9: 8 | AK9: 9 | AL9: 10 | AM9: 11 | AN9: 12 | AO9: 13 | AP9: 14 | AQ9: 15 | AR9: 16 | AS9: 17 | AT9: 18 | AU9: 19 | AV9: 20 | AW9: 21 | AX9: сх | AZ9: 1 | BA9: 2 | BB9: 3 | BC9: 4 | BD9: 5 | BE9: 6 | BF9: 7 | BG9: 8 | BH9: 9 | BI9: 10 | BJ9: 11 | BK9: 12 | BL9: 13 | BM9: 14 | BN9: 15 | BO9: 16 | BP9: 17 | BQ9: 18 | BR9: 19 | BS9: 20 | BU9: cx | BW9: 1 | BX9: 2 | BY9: 3 | BZ9: 4 | CA9: 5 | CB9: 6 | CC9: 7 | CD9: 8 | CE9: 9 | CF9: 10 | CG9: 11 | CH9: 12 | CI9: 13 | CJ9: 14 | CK9: 15 | CL9: 16 | CM9: 17 | CN9: 18 | CO9: 19 | CP9: 20 | CQ9: 21 | CR9: 22 | CS9: 23 | CT9: 24 | CU9: 25 | CV9: 26 | CW9: 27 | CX9: 28 | CY9: 29 | CZ9: 30 | DA9: 31 | DB9: 32 | DC9: 33 | DD9: 34 | DE9: 35 | DF9: 36 | DG9: 37 | DH9: 38 | DI9: 39 | DJ9: 40 | DN9: 1 | DO9: 2 | DP9: 3 | DQ9: 4 | DR9: 5 | DS9: 6 | DT9: 7 | DU9: 8 | DV9: 9 | DW9: 10 | DX9: 11 | DY9: 12 | DZ9: 13 | EA9: 14 | EB9: 15 | EC9: 16 | ED9: 17 | EE9: 18 | EF9: 19 | EG9: 20 | EH9: 21 | EI9: 22 | EJ9: 23 | EK9: 24 | EL9: 25 | EM9: 26 | EN9: 27 | EO9: 28 | EP9: 29 | EQ9: 30 | ER9: 31 | ES9: 32 | ET9: 33 | EU9: 34 | EV9: 35 | EW9: 36 | EX9: 37 | EY9: 38 | EZ9: 39 | FA9: 40 | FI9: мин | FJ9: Н. Стро | FK9: В. стро | FL9: место | FN9: чр1 | FO9: чр2 | FR9: первый заезд личные очки | GN9: второй заезд личные очки | HK9: Первый заезд командные очки | IH9: Второй заезд командные очки
A10: 1 | C10: =SUM(F10+E10+D10) -> 28.2 | D10: 10 | E10: 9 | F10: 9.2 | G10: 333 | H10: Куклин Вадим | I10: кмс | J10: г. Новый Уренгой, Ямало-Ненецкий АО | K10: СТК "Факел" | L10: LYNX | M10: 1 | N10: 25 | O10: - | P10: 0 | Q10: 4 | R10: 18 | S10: - | T10: 0 | U10: 3 | V10: 20 | W10: 3 | X10: 20 | Y10: =SUM(N10+P10+R10+T10+V10+X10) -> 83 | Z10: =N10+P10 -> 25 | AC10: =IF(M10=1,25,0) -> 25 | AD10: =IF(M10=2,22,0) -> 0 | AE10: =IF(M10=3,20,0) -> 0 | AF10: =IF(M10=4,18,0) -> 0 | AG10: =IF(M10=5,16,0) -> 0 | AH10: =IF(M10=6,15,0) -> 0 | AI10: =IF(M10=7,14,0) -> 0 | AJ10: =IF(M10=8,13,0) -> 0 | AK10: =IF(M10=9,12,0) -> 0 | AL10: =IF(M10=10,11,0) -> 0 | AM10: =IF(M10=11,10,0) -> 0 | AN10: =IF(M10=12,9,0) -> 0 | AO10: =IF(M10=13,8,0) -> 0 | AP10: =IF(M10=14,7,0) -> 0 | AQ10: =IF(M10=15,6,0) -> 0 | AR10: =IF(M10=16,5,0) -> 0 | AS10: =IF(M10=17,4,0) -> 0 | AT10: =IF(M10=18,3,0) -> 0 | AU10: =IF(M10=19,2,0) -> 0 | AV10: =IF(M10=20,1,0) -> 0 | AW10: =IF(M10>20,0,0) -> 0 | AX10: =IF(M10="сх",0,0) -> 0 | AY10: =SUM(AC10:AW10) -> 25 | AZ10: =IF(O10=1,25,0) -> 0 | BA10: =IF(O10=2,22,0) -> 0 | BB10: =IF(O10=3,20,0) -> 0 | BC10: =IF(O10=4,18,0) -> 0 | BD10: =IF(O10=5,16,0) -> 0 | BE10: =IF(O10=6,15,0) -> 0 | BF10: =IF(O10=7,14,0) -> 0 | BG10: =IF(O10=8,13,0) -> 0 | BH10: =IF(O10=9,12,0) -> 0 | BI10: =IF(O10=10,11,0) -> 0 | BJ10: =IF(O10=11,10,0) -> 0 | BK10: =IF(O10=12,9,0) -> 0 | BL10: =IF(O10=13,8,0) -> 0 | BM10: =IF(O10=14,7,0) -> 0 | BN10: =IF(O10=15,6,0) -> 0 | BO10: =IF(O10=16,5,0) -> 0 | BP10: =IF(O10=17,4,0) -> 0 | BQ10: =IF(O10=18,3,0) -> 0 | BR10: =IF(O10=19,2,0) -> 0 | BS10: =IF(O10=20,1,0) -> 0 | BT10: =IF(O10>20,0,0) -> 0 | BU10: =IF(O10="сх",0,0) -> 0 | BV10: =SUM(AZ10:BT10) -> 0 | BW10: =IF(M10=1,45,0) -> 45 | BX10: =IF(M10=2,42,0) -> 0 | BY10: =IF(M10=3,40,0) -> 0 | BZ10: =IF(M10=4,38,0) -> 0 | CA10: =IF(M10=5,36,0) -> 0 | CB10: =IF(M10=6,35,0) -> 0 | CC10: =IF(M10=7,34,0) -> 0 | CD10: =IF(M10=8,33,0) -> 0 | CE10: =IF(M10=9,32,0) -> 0 | CF10: =IF(M10=10,31,0) -> 0 | CG10: =IF(M10=11,30,0) -> 0 | CH10: =IF(M10=12,29,0) -> 0 | CI10: =IF(M10=13,28,0) -> 0 | CJ10: =IF(M10=14,27,0) -> 0 | CK10: =IF(M10=15,26,0) -> 0 | CL10: =IF(M10=16,25,0) -> 0 | CM10: =IF(M10=17,24,0) -> 0 | CN10: =IF(M10=18,23,0) -> 0 | CO10: =IF(M10=19,22,0) -> 0 | CP10: =IF(M10=20,21,0) -> 0 | CQ10: =IF(M10=21,20,0) -> 0 | CR10: =IF(M10=22,19,0) -> 0 | CS10: =IF(M10=23,18,0) -> 0 | CT10: =IF(M10=24,17,0) -> 0 | CU10: =IF(M10=25,16,0) -> 0 | CV10: =IF(M10=26,15,0) -> 0 | CW10: =IF(M10=27,14,0) -> 0 | CX10: =IF(M10=28,13,0) -> 0 | CY10: =IF(M10=29,12,0) -> 0 | CZ10: =IF(M10=30,11,0) -> 0 | DA10: =IF(M10=31,10,0) -> 0 | DB10: =IF(M10=32,9,0) -> 0 | DC10: =IF(M10=33,8,0) -> 0 | DD10: =IF(M10=34,7,0) -> 0 | DE10: =IF(M10=35,6,0) -> 0 | DF10: =IF(M10=36,5,0) -> 0 | DG10: =IF(M10=37,4,0) -> 0 | DH10: =IF(M10=38,3,0) -> 0 | DI10: =IF(M10=39,2,0) -> 0 | DJ10: =IF(M10=40,1,0) -> 0 | DK10: =IF(M10>20,0,0) -> 0 | DL10: =IF(M10="сх",0,0) -> 0 | DM10: =SUM(BW10:DL10) -> 45 | DN10: =IF(O10=1,45,0) -> 0 | DO10: =IF(O10=2,42,0) -> 0 | DP10: =IF(O10=3,40,0) -> 0 | DQ10: =IF(O10=4,38,0) -> 0 | DR10: =IF(O10=5,36,0) -> 0 | DS10: =IF(O10=6,35,0) -> 0 | DT10: =IF(O10=7,34,0) -> 0 | DU10: =IF(O10=8,33,0) -> 0 | DV10: =IF(O10=9,32,0) -> 0 | DW10: =IF(O10=10,31,0) -> 0 | DX10: =IF(O10=11,30,0) -> 0 | DY10: =IF(O10=12,29,0) -> 0 | DZ10: =IF(O10=13,28,0) -> 0 | EA10: =IF(O10=14,27,0) -> 0 | EB10: =IF(O10=15,26,0) -> 0 | EC10: =IF(O10=16,25,0) -> 0 | ED10: =IF(O10=17,24,0) -> 0 | EE10: =IF(O10=18,23,0) -> 0 | EF10: =IF(O10=19,22,0) -> 0 | EG10: =IF(O10=20,21,0) -> 0 | EH10: =IF(O10=21,20,0) -> 0 | EI10: =IF(O10=22,19,0) -> 0 | EJ10: =IF(O10=23,18,0) -> 0 | EK10: =IF(O10=24,17,0) -> 0 | EL10: =IF(O10=25,16,0) -> 0 | EM10: =IF(O10=26,15,0) -> 0 | EN10: =IF(O10=27,14,0) -> 0 | EO10: =IF(O10=28,13,0) -> 0 | EP10: =IF(O10=29,12,0) -> 0 | EQ10: =IF(O10=30,11,0) -> 0 | ER10: =IF(O10=31,10,0) -> 0 | ES10: =IF(O10=32,9,0) -> 0 | ET10: =IF(O10=33,8,0) -> 0 | EU10: =IF(O10=34,7,0) -> 0 | EV10: =IF(O10=35,6,0) -> 0 | EW10: =IF(O10=36,5,0) -> 0 | EX10: =IF(O10=37,4,0) -> 0 | EY10: =IF(O10=38,3,0) -> 0 | EZ10: =IF(O10=39,2,0) -> 0 | FA10: =IF(O10=40,1,0) -> 0 | FB10: =IF(O10>20,0,0) -> 0 | FC10: =IF(O10="сх",0,0) -> 0 | FD10: =SUM(DN10:FC10) -> 0 | FF10: =IF(M10="сх","ноль",IF(M10>0,M10,"Ноль")) -> 1 | FG10: =IF(O10="сх","ноль",IF(O10>0,O10,"Ноль")) -> - | FI10: =MIN(FF10,FG10) -> 1 | FJ10: =IF(Y10=#REF!,IF(O10<#REF!,#REF!,FN10),#REF!) ->  | FK10: =IF(Y10=#REF!,IF(O10<#REF!,0,1)) ->  | FL10: =IF(AND(FI10>=21,FI10<>0),FI10,IF(Y10<#REF!,"СТОП",FJ10+FK10)) ->  | FN10: 15 | FO10: 16 | FQ10: =IF(M10=1,25,0) -> 25 | FR10: =IF(M10=2,22,0) -> 0 | FS10: =IF(M10=3,20,0) -> 0 | FT10: =IF(M10=4,18,0) -> 0 | FU10: =IF(M10=5,16,0) -> 0 | FV10: =IF(M10=6,15,0) -> 0 | FW10: =IF(M10=7,14,0) -> 0 | FX10: =IF(M10=8,13,0) -> 0 | FY10: =IF(M10=9,12,0) -> 0 | FZ10: =IF(M10=10,11,0) -> 0 | GA10: =IF(M10=11,10,0) -> 0 | GB10: =IF(M10=12,9,0) -> 0 | GC10: =IF(M10=13,8,0) -> 0 | GD10: =IF(M10=14,7,0) -> 0 | GE10: =IF(M10=15,6,0) -> 0 | GF10: =IF(M10=16,5,0) -> 0 | GG10: =IF(M10=17,4,0) -> 0 | GH10: =IF(M10=18,3,0) -> 0 | GI10: =IF(M10=19,2,0) -> 0 | GJ10: =IF(M10=20,1,0) -> 0 | GK10: =IF(M10>20,0,0) -> 0 | GL10: =IF(M10="сх",0,0) -> 0 | GM10: =SUM(FQ10:GL10) -> 25 | GN10: =IF(O10=1,25,0) -> 0 | GO10: =IF(O10=2,22,0) -> 0 | GP10: =IF(O10=3,20,0) -> 0 | GQ10: =IF(O10=4,18,0) -> 0 | GR10: =IF(O10=5,16,0) -> 0 | GS10: =IF(O10=6,15,0) -> 0 | GT10: =IF(O10=7,14,0) -> 0 | GU10: =IF(O10=8,13,0) -> 0 | GV10: =IF(O10=9,12,0) -> 0 | GW10: =IF(O10=10,11,0) -> 0 | GX10: =IF(O10=11,10,0) -> 0 | GY10: =IF(O10=12,9,0) -> 0 | GZ10: =IF(O10=13,8,0) -> 0 | HA10: =IF(O10=14,7,0) -> 0 | HB10: =IF(O10=15,6,0) -> 0 | HC10: =IF(O10=16,5,0) -> 0 | HD10: =IF(O10=17,4,0) -> 0 | HE10: =IF(O10=18,3,0) -> 0 | HF10: =IF(O10=19,2,0) -> 0 | HG10: =IF(O10=20,1,0) -> 0 | HH10: =IF(O10>20,0,0) -> 0 | HI10: =IF(O10="сх",0,0) -> 0 | HJ10: =SUM(GN10:HI10) -> 0 | HK10: =IF(M10=1,100,0) -> 100 | HL10: =IF(M10=2,98,0) -> 0 | HM10: =IF(M10=3,95,0) -> 0 | HN10: =IF(M10=4,93,0) -> 0 | HO10: =IF(M10=5,90,0) -> 0 | HP10: =IF(M10=6,88,0) -> 0 | HQ10: =IF(M10=7,85,0) -> 0 | HR10: =IF(M10=8,83,0) -> 0 | HS10: =IF(M10=9,80,0) -> 0 | HT10: =IF(M10=10,78,0) -> 0 | HU10: =IF(M10=11,75,0) -> 0 | HV10: =IF(M10=12,73,0) -> 0 | HW10: =IF(M10=13,70,0) -> 0 | HX10: =IF(M10=14,68,0) -> 0 | HY10: =IF(M10=15,65,0) -> 0 | HZ10: =IF(M10=16,63,0) -> 0 | IA10: =IF(M10=17,60,0) -> 0 | IB10: =IF(M10=18,58,0) -> 0 | IC10: =IF(M10=19,55,0) -> 0 | ID10: =IF(M10=20,53,0) -> 0 | IE10: =IF(M10>20,0,0) -> 0 | IF10: =IF(M10="сх",0,0) -> 0 | IG10: =SUM(HK10:IF10) -> 100 | IH10: =IF(O10=1,100,0) -> 0 | II10: =IF(O10=2,98,0) -> 0 | IJ10: =IF(O10=3,95,0) -> 0 | IK10: =IF(O10=4,93,0) -> 0 | IL10: =IF(O10=5,90,0) -> 0 | IM10: =IF(O10=6,88,0) -> 0 | IN10: =IF(O10=7,85,0) -> 0 | IO10: =IF(O10=8,83,0) -> 0 | IP10: =IF(O10=9,80,0) -> 0 | IQ10: =IF(O10=10,78,0) -> 0 | IR10: =IF(O10=11,75,0) -> 0 | IS10: =IF(O10=12,73,0) -> 0 | IT10: =IF(O10=13,70,0) -> 0 | IU10: =IF(O10=14,68,0) -> 0 | IV10: =IF(O10=15,65,0) -> 0 | IW10: =IF(O10=16,63,0) -> 0 | IX10: =IF(O10=17,60,0) -> 0 | IY10: =IF(O10=18,58,0) -> 0 | IZ10: =IF(O10=19,55,0) -> 0 | JA10: =IF(O10=20,53,0) -> 0 | JB10: =IF(O10>20,0,0) -> 0 | JC10: =IF(O10="сх",0,0) -> 0 | JD10: =SUM(IH10:JC10) -> 0
A11: 2 | C11: 27.8 | D11: 9.6 | E11: 9.2 | F11: 9 | G11: 37 | H11: Богомолов Никита | I11: I | J11: г. Новый Уренгой, Ямало-Ненецкий АО | K11: СТК "Факел" | L11: LYNX | M11: 2 | N11: 22 | O11: - | P11: 0 | Q11: 3 | R11: 20 | S11: - | T11: 0 | U11: 2 | V11: 22 | W11: 7 | X11: 14 | Y11: 78 | Z11: 22 | AC11: 0 | AD11: 22 | AE11: 0 | AF11: 0 | AG11: 0 | AH11: 0 | AI11: 0 | AJ11: 0 | AK11: 0 | AL11: 0 | AM11: 0 | AN11: 0 | AO11: 0 | AP11: 0 | AQ11: 0 | AR11: 0 | AS11: 0 | AT11: 0 | AU11: 0 | AV11: 0 | AW11: 0 | AX11: 0 | AY11: 22 | AZ11: 0 | BA11: 0 | BB11: 0 | BC11: 0 | BD11: 0 | BE11: 0 | BF11: 0 | BG11: 0 | BH11: 0 | BI11: 0 | BJ11: 0 | BK11: 0 | BL11: 0 | BM11: 0 | BN11: 0 | BO11: 0 | BP11: 0 | BQ11: 0 | BR11: 0 | BS11: 0 | BT11: 0 | BU11: 0 | BV11: 0 | BW11: 0 | BX11: 42 | BY11: 0 | BZ11: 0 | CA11: 0 | CB11: 0 | CC11: 0 | CD11: 0 | CE11: 0 | CF11: 0 | CG11: 0 | CH11: 0 | CI11: 0 | CJ11: 0 | CK11: 0 | CL11: 0 | CM11: 0 | CN11: 0 | CO11: 0 | CP11: 0 | CQ11: 0 | CR11: 0 | CS11: 0 | CT11: 0 | CU11: 0 | CV11: 0 | CW11: 0 | CX11: 0 | CY11: 0 | CZ11: 0 | DA11: 0 | DB11: 0 | DC11: 0 | DD11: 0 | DE11: 0 | DF11: 0 | DG11: 0 | DH11: 0 | DI11: 0 | DJ11: 0 | DK11: 0 | DL11: 0 | DM11: 42 | DN11: 0 | DO11: 0 | DP11: 0 | DQ11: 0 | DR11: 0 | DS11: 0 | DT11: 0 | DU11: 0 | DV11: 0 | DW11: 0 | DX11: 0 | DY11: 0 | DZ11: 0 | EA11: 0 | EB11: 0 | EC11: 0 | ED11: 0 | EE11: 0 | EF11: 0 | EG11: 0 | EH11: 0 | EI11: 0 | EJ11: 0 | EK11: 0 | EL11: 0 | EM11: 0 | EN11: 0 | EO11: 0 | EP11: 0 | EQ11: 0 | ER11: 0 | ES11: 0 | ET11: 0 | EU11: 0 | EV11: 0 | EW11: 0 | EX11: 0 | EY11: 0 | EZ11: 0 | FA11: 0 | FB11: 0 | FC11: 0 | FD11: 0 | FF11: 2 | FG11: - | FI11: 2 | FJ11: =IF(Y11=#REF!,IF(O11<#REF!,#REF!,FN11),#REF!) ->  | FK11: =IF(Y11=#REF!,IF(O11<#REF!,0,1)) ->  | FL11: =IF(AND(FI11>=21,FI11<>0),FI11,IF(Y11<#REF!,"СТОП",FJ11+FK11)) ->  | FN11: 15 | FO11: 16 | FQ11: 0 | FR11: 22 | FS11: 0 | FT11: 0 | FU11: 0 | FV11: 0 | FW11: 0 | FX11: 0 | FY11: 0 | FZ11: 0 | GA11: 0 | GB11: 0 | GC11: 0 | GD11: 0 | GE11: 0 | GF11: 0 | GG11: 0 | GH11: 0 | GI11: 0 | GJ11: 0 | GK11: 0 | GL11: 0 | GM11: 22 | GN11: 0 | GO11: 0 | GP11: 0 | GQ11: 0 | GR11: 0 | GS11: 0 | GT11: 0 | GU11: 0 | GV11: 0 | GW11: 0 | GX11: 0 | GY11: 0 | GZ11: 0 | HA11: 0 | HB11: 0 | HC11: 0 | HD11: 0 | HE11: 0 | HF11: 0 | HG11: 0 | HH11: 0 | HI11: 0 | HJ11: 0 | HK11: 0 | HL11: 98 | HM11: 0 | HN11: 0 | HO11: 0 | HP11: 0 | HQ11: 0 | HR11: 0 | HS11: 0 | HT11: 0 | HU11: 0 | HV11: 0 | HW11: 0 | HX11: 0 | HY11: 0 | HZ11: 0 | IA11: 0 | IB11: 0 | IC11: 0 | ID11: 0 | IE11: 0 | IF11: 0 | IG11: 98 | IH11: 0 | II11: 0 | IJ11: 0 | IK11: 0 | IL11: 0 | IM11: 0 | IN11: 0 | IO11: 0 | IP11: 0 | IQ11: 0 | IR11: 0 | IS11: 0 | IT11: 0 | IU11: 0 | IV11: 0 | IW11: 0 | IX11: 0 | IY11: 0 | IZ11: 0 | JA11: 0 | JB11: 0 | JC11: 0 | JD11: 0
A12: 3 | C12: 19.6 | D12: 0 | E12: 9.6 | F12: 10 | G12: 117 | H12: Красников Николай | I12: змс | J12: г. Уфа, Республика Башкортостан | K12: ЦТВС "Имени Г. Кадырова" | L12: LYNX | M12: - | N12: 0 | O12: - | P12: 0 | Q12: 2 | R12: 22 | S12: - | T12: 0 | U12: 1 | V12: 25 | W12: 1 | X12: 25 | Y12: 72
A13: 4 | C13: 26.8 | D13: 9.2 | E13: 8.8 | F13: 8.8 | G13: 23 | H13: Дмитриев Виталий | I13: б/р | J13: г. Новый Уренгой, Ямало-Ненецкий АО | K13: МАУ МЦ "НОРД" | L13: KTM | M13: 3 | N13: 20 | O13: - | P13: 0 | Q13: 5 | R13: 16 | S13: - | T13: 0 | U13: 5 | V13: 16 | W13: 5 | X13: 16 | Y13: 68
A14: 5 | C14: 9.6 | D14: 0 | E14: 0 | F14: 9.6 | G14: 10 | H14: Караченцев Владимир | I14: б/р | J14: г. Новый Уренгой, Ямало-Ненецкий АО | K14: СТК "Ямбург" | L14: LYNX | M14: - | N14: 0 | O14: - | P14: 0 | Q14: - | R14: 0 | S14: - | T14: 0 | U14: 4 | V14: 18 | W14: 2 | X14: 22 | Y14: 40
A15: 6 | C15: 8.6 | D15: 0 | E15: 0 | F15: 8.6 | G15: 174 | H15: Сахаров Григорий | I15: б/р | J15: г. Новый Уренгой, Ямало-Ненецкий АО | K15: МАУ МЦ "НОРД" | L15: SKY-DOO | M15: - | N15: 0 | O15: - | P15: 0 | Q15: - | R15: 0 | S15: - | T15: 0 | U15: 6 | V15: 15 | W15: 6 | X15: 15 | Y15: 30
A16: 7 | C16: 10 | D16: 0 | E16: 10 | F16: 0 | G16: 958 | H16: Грачев Николай | I16: мс | J16: г. Тюмень | K16: Сборная команда Тюменской области | L16: LYNX | M16: - | N16: 0 | O16: - | P16: 0 | Q16: 1 | R16: 25 | S16: - | T16: 0 | U16: - | V16: 0 | W16: - | X16: 0 | Y16: 25
A17: 8 | C17: 8.4 | D17: 0 | E17: 0 | F17: 8.4 | G17: 838 | H17: Степура Владислав | I17: б/р | J17: г. Новый Уренгой, Ямало-Ненецкий АО | K17: СТК "Факел" | L17: SKY-DOO | M17: - | N17: 0 | O17: - | P17: 0 | Q17: - | R17: 0 | S17: - | T17: 0 | U17: сх | V17: 0 | W17: 4 | X17: 18 | Y17: 18
A27: Главный судья соревнований
A28: судья Всероссийской категории: А. Б. Стеблинский (г. Тюмень; лицензия МФР А 144)
A30: Главный секретарь соревнований
A31: судья Всероссийской категории: А. Ю. Иванов (г. Москва/лицензия МФР А 105; FIM 11245)

Sheet ЛЮБИТЕЛИ ЯНАО
A2: Кубок Ямало-Ненецкого АО по кроссу на снегоходах2016/2017 года.
A3: СВОДНЫЙ ПРОТОКОЛ ЛИЧНОГО ЗАЧЕТА по сумме 3-х этапов | GB3: первый этап
A4: 1-й этап: 03 - 04 декабря 2016 года - г. Новый Уренгой, Ямало-Ненецкий АО; 2-й этап: 24 - 26 марта 2017 года - г. Муравленко, Ямало-Ненецкий АО; 3-й этап: 31 марта - 02 апреля 2017 года - г. Новый Уренгой, Ямало-Ненецкий АО. | FQ4: первый заезд личные очки | GM4: второй заезд личные очки | HJ4: Первый заезд командные очки | IG4: Второй заезд командные очки
A5: Класс "ЛЮБИТЕЛИ". | FP5: 1 | FQ5: 2 | FR5: 3 | FS5: 4 | FT5: 5 | FU5: 6 | FV5: 7 | FW5: 8 | FX5: 9 | FY5: 10 | FZ5: 11 | GA5: 12 | GB5: 13 | GC5: 14 | GD5: 15 | GE5: 16 | GF5: 17 | GG5: 18 | GH5: 19 | GI5: 20 | GJ5: 21 | GK5: сх | GL5: Sym | GM5: 1 | GN5: 2 | GO5: 3 | GP5: 4 | GQ5: 5 | GR5: 6 | GS5: 7 | GT5: 8 | GU5: 9 | GV5: 10 | GW5: 11 | GX5: 12 | GY5: 13 | GZ5: 14 | HA5: 15 | HB5: 16 | HC5: 17 | HD5: 18 | HE5: 19 | HF5: 20 | HG5: 21 | HH5: cx | HI5: sym | HJ5: 1 | HK5: 2 | HL5: 3 | HM5: 4 | HN5: 5 | HO5: 6 | HP5: 7 | HQ5: 8 | HR5: 9 | HS5: 10 | HT5: 11 | HU5: 12 | HV5: 13 | HW5: 14 | HX5: 15 | HY5: 16 | HZ5: 17 | IA5: 18 | IB5: 19 | IC5: 20 | ID5: 21 | IE5: сх | IF5: очки | IG5: 1 | IH5: 2 | II5: 3 | IJ5: 4 | IK5: 5 | IL5: 6 | IM5: 7 | IN5: 8 | IO5: 9 | IP5: 10 | IQ5: 11 | IR5: 12 | IS5: 13 | IT5: 14 | IU5: 15 | IV5: 16 | IW5: 17 | IX5: 18 | IY5: 19 | IZ5: 20 | JA5: 21 | JB5: сх | JC5: очки | JD5: =COUNT(FP5:JC5) -> 84 | JE5: Н. Стро | JF5: В. стро | JG5: место
L6: 1-й этап | P6: 2-й этап | T6: 3-й этап
A7: Место | B7: СУММА РЕЙТИНГОВЫЕ ОЧКИ | C7: 1-й этап РЕЙТИНГОВЫЕ ОЧКИ Коэф. 0,2 | D7: 2-й этап РЕЙТИНГОВЫЕ ОЧКИ Коэф. 0,2 | E7: 3-й этап РЕЙТИНГОВЫЕ ОЧКИ Коэф. 0,2 | F7: Ст. № | G7: Фамилия, Имя | H7: Раз ряд | I7: Город (край, район, область) | J7: Команда | K7: Мото | L7: I-й заезд | N7: II-й заезд | P7: I-й заезд | R7: II-й заезд | T7: I-й заезд | V7: II-й заезд | X7: Сумма очков в личном зачете | Y7: Сумма очк. в командном зачете
L8: место | M8: лич. очки | N8: место | O8: лич. очки | P8: место | Q8: лич. очки | R8: место | S8: лич. очки | T8: место | U8: лич. очки | V8: место | W8: лич. очки | AC8: первый заезд личные очки | AY8: второй заезд личные очки | BV8: Первый заезд командные очки | DM8: Второй заезд командные очки | FE8: 1 | FF8: 2 | GB8: первый этап
AB9: 1 | AC9: 2 | AD9: 3 | AE9: 4 | AF9: 5 | AG9: 6 | AH9: 7 | AI9: 8 | AJ9: 9 | AK9: 10 | AL9: 11 | AM9: 12 | AN9: 13 | AO9: 14 | AP9: 15 | AQ9: 16 | AR9: 17 | AS9: 18 | AT9: 19 | AU9: 20 | AV9: 21 | AW9: сх | AY9: 1 | AZ9: 2 | BA9: 3 | BB9: 4 | BC9: 5 | BD9: 6 | BE9: 7 | BF9: 8 | BG9: 9 | BH9: 10 | BI9: 11 | BJ9: 12 | BK9: 13 | BL9: 14 | BM9: 15 | BN9: 16 | BO9: 17 | BP9: 18 | BQ9: 19 | BR9: 20 | BT9: cx | BV9: 1 | BW9: 2 | BX9: 3 | BY9: 4 | BZ9: 5 | CA9: 6 | CB9: 7 | CC9: 8 | CD9: 9 | CE9: 10 | CF9: 11 | CG9: 12 | CH9: 13 | CI9: 14 | CJ9: 15 | CK9: 16 | CL9: 17 | CM9: 18 | CN9: 19 | CO9: 20 | CP9: 21 | CQ9: 22 | CR9: 23 | CS9: 24 | CT9: 25 | CU9: 26 | CV9: 27 | CW9: 28 | CX9: 29 | CY9: 30 | CZ9: 31 | DA9: 32 | DB9: 33 | DC9: 34 | DD9: 35 | DE9: 36 | DF9: 37 | DG9: 38 | DH9: 39 | DI9: 40 | DM9: 1 | DN9: 2 | DO9: 3 | DP9: 4 | DQ9: 5 | DR9: 6 | DS9: 7 | DT9: 8 | DU9: 9 | DV9: 10 | DW9: 11 | DX9: 12 | DY9: 13 | DZ9: 14 | EA9: 15 | EB9: 16 | EC9: 17 | ED9: 18 | EE9: 19 | EF9: 20 | EG9: 21 | EH9: 22 | EI9: 23 | EJ9: 24 | EK9: 25 | EL9: 26 | EM9: 27 | EN9: 28 | EO9: 29 | EP9: 30 | EQ9: 31 | ER9: 32 | ES9: 33 | ET9: 34 | EU9: 35 | EV9: 36 | EW9: 37 | EX9: 38 | EY9: 39 | EZ9: 40 | FH9: мин | FI9: Н. Стро | FJ9: В. стро | FK9: место | FM9: чр1 | FN9: чр2 | FQ9: первый заезд личные очки | GM9: второй заезд личные очки | HJ9: Первый заезд командные очки | IG9: Второй заезд командные очки
A10: 1 | B10: =SUM(C10+D10+E10) -> 29.6 | C10: 9.6 | D10: 10 | E10: 10 | F10: 789 | G10: Дубовик Дмитрий | H10: б/р | I10: г. Муравленко, Ямало-Ненецкий АО | J10: лично | K10: Arctic - Cat | L10: 2 | M10: 22 | N10: - | O10: 0 | P10: 1 | Q10: 25 | R10: - | S10: 0 | T10: 1 | U10: 25 | V10: 1 | W10: 25 | X10: =SUM(M10+O10+Q10+S10+U10+W10) -> 97 | Y10: =M10+O10 -> 22 | AB10: =IF(L10=1,25,0) -> 0 | AC10: =IF(L10=2,22,0) -> 22 | AD10: =IF(L10=3,20,0) -> 0 | AE10: =IF(L10=4,18,0) -> 0 | AF10: =IF(L10=5,16,0) -> 0 | AG10: =IF(L10=6,15,0) -> 0 | AH10: =IF(L10=7,14,0) -> 0 | AI10: =IF(L10=8,13,0) -> 0 | AJ10: =IF(L10=9,12,0) -> 0 | AK10: =IF(L10=10,11,0) -> 0 | AL10: =IF(L10=11,10,0) -> 0 | AM10: =IF(L10=12,9,0) -> 0 | AN10: =IF(L10=13,8,0) -> 0 | AO10: =IF(L10=14,7,0) -> 0 | AP10: =IF(L10=15,6,0) -> 0 | AQ10: =IF(L10=16,5,0) -> 0 | AR10: =IF(L10=17,4,0) -> 0 | AS10: =IF(L10=18,3,0) -> 0 | AT10: =IF(L10=19,2,0) -> 0 | AU10: =IF(L10=20,1,0) -> 0 | AV10: =IF(L10>20,0,0) -> 0 | AW10: =IF(L10="сх",0,0) -> 0 | AX10: =SUM(AB10:AV10) -> 22 | AY10: =IF(N10=1,25,0) -> 0 | AZ10: =IF(N10=2,22,0) -> 0 | BA10: =IF(N10=3,20,0) -> 0 | BB10: =IF(N10=4,18,0) -> 0 | BC10: =IF(N10=5,16,0) -> 0 | BD10: =IF(N10=6,15,0) -> 0 | BE10: =IF(N10=7,14,0) -> 0 | BF10: =IF(N10=8,13,0) -> 0 | BG10: =IF(N10=9,12,0) -> 0 | BH10: =IF(N10=10,11,0) -> 0 | BI10: =IF(N10=11,10,0) -> 0 | BJ10: =IF(N10=12,9,0) -> 0 | BK10: =IF(N10=13,8,0) -> 0 | BL10: =IF(N10=14,7,0) -> 0 | BM10: =IF(N10=15,6,0) -> 0 | BN10: =IF(N10=16,5,0) -> 0 | BO10: =IF(N10=17,4,0) -> 0 | BP10: =IF(N10=18,3,0) -> 0 | BQ10: =IF(N10=19,2,0) -> 0 | BR10: =IF(N10=20,1,0) -> 0 | BS10: =IF(N10>20,0,0) -> 0 | BT10: =IF(N10="сх",0,0) -> 0 | BU10: =SUM(AY10:BS10) -> 0 | BV10: =IF(L10=1,45,0) -> 0 | BW10: =IF(L10=2,42,0) -> 42 | BX10: =IF(L10=3,40,0) -> 0 | BY10: =IF(L10=4,38,0) -> 0 | BZ10: =IF(L10=5,36,0) -> 0 | CA10: =IF(L10=6,35,0) -> 0 | CB10: =IF(L10=7,34,0) -> 0 | CC10: =IF(L10=8,33,0) -> 0 | CD10: =IF(L10=9,32,0) -> 0 | CE10: =IF(L10=10,31,0) -> 0 | CF10: =IF(L10=11,30,0) -> 0 | CG10: =IF(L10=12,29,0) -> 0 | CH10: =IF(L10=13,28,0) -> 0 | CI10: =IF(L10=14,27,0) -> 0 | CJ10: =IF(L10=15,26,0) -> 0 | CK10: =IF(L10=16,25,0) -> 0 | CL10: =IF(L10=17,24,0) -> 0 | CM10: =IF(L10=18,23,0) -> 0 | CN10: =IF(L10=19,22,0) -> 0 | CO10: =IF(L10=20,21,0) -> 0 | CP10: =IF(L10=21,20,0) -> 0 | CQ10: =IF(L10=22,19,0) -> 0 | CR10: =IF(L10=23,18,0) -> 0 | CS10: =IF(L10=24,17,0) -> 0 | CT10: =IF(L10=25,16,0) -> 0 | CU10: =IF(L10=26,15,0) -> 0 | CV10: =IF(L10=27,14,0) -> 0 | CW10: =IF(L10=28,13,0) -> 0 | CX10: =IF(L10=29,12,0) -> 0 | CY10: =IF(L10=30,11,0) -> 0 | CZ10: =IF(L10=31,10,0) -> 0 | DA10: =IF(L10=32,9,0) -> 0 | DB10: =IF(L10=33,8,0) -> 0 | DC10: =IF(L10=34,7,0) -> 0 | DD10: =IF(L10=35,6,0) -> 0 | DE10: =IF(L10=36,5,0) -> 0 | DF10: =IF(L10=37,4,0) -> 0 | DG10: =IF(L10=38,3,0) -> 0 | DH10: =IF(L10=39,2,0) -> 0 | DI10: =IF(L10=40,1,0) -> 0 | DJ10: =IF(L10>20,0,0) -> 0 | DK10: =IF(L10="сх",0,0) -> 0 | DL10: =SUM(BV10:DK10) -> 42 | DM10: =IF(N10=1,45,0) -> 0 | DN10: =IF(N10=2,42,0) -> 0 | DO10: =IF(N10=3,40,0) -> 0 | DP10: =IF(N10=4,38,0) -> 0 | DQ10: =IF(N10=5,36,0) -> 0 | DR10: =IF(N10=6,35,0) -> 0 | DS10: =IF(N10=7,34,0) -> 0 | DT10: =IF(N10=8,33,0) -> 0 | DU10: =IF(N10=9,32,0) -> 0 | DV10: =IF(N10=10,31,0) -> 0 | DW10: =IF(N10=11,30,0) -> 0 | DX10: =IF(N10=12,29,0) -> 0 | DY10: =IF(N10=13,28,0) -> 0 | DZ10: =IF(N10=14,27,0) -> 0 | EA10: =IF(N10=15,26,0) -> 0 | EB10: =IF(N10=16,25,0) -> 0 | EC10: =IF(N10=17,24,0) -> 0 | ED10: =IF(N10=18,23,0) -> 0 | EE10: =IF(N10=19,22,0) -> 0 | EF10: =IF(N10=20,21,0) -> 0 | EG10: =IF(N10=21,20,0) -> 0 | EH10: =IF(N10=22,19,0) -> 0 | EI10: =IF(N10=23,18,0) -> 0 | EJ10: =IF(N10=24,17,0) -> 0 | EK10: =IF(N10=25,16,0) -> 0 | EL10: =IF(N10=26,15,0) -> 0 | EM10: =IF(N10=27,14,0) -> 0 | EN10: =IF(N10=28,13,0) -> 0 | EO10: =IF(N10=29,12,0) -> 0 | EP10: =IF(N10=30,11,0) -> 0 | EQ10: =IF(N10=31,10,0) -> 0 | ER10: =IF(N10=32,9,0) -> 0 | ES10: =IF(N10=33,8,0) -> 0 | ET10: =IF(N10=34,7,0) -> 0 | EU10: =IF(N10=35,6,0) -> 0 | EV10: =IF(N10=36,5,0) -> 0 | EW10: =IF(N10=37,4,0) -> 0 | EX10: =IF(N10=38,3,0) -> 0 | EY10: =IF(N10=39,2,0) -> 0 | EZ10: =IF(N10=40,1,0) -> 0 | FA10: =IF(N10>20,0,0) -> 0 | FB10: =IF(N10="сх",0,0) -> 0 | FC10: =SUM(DM10:FB10) -> 0 | FE10: =IF(L10="сх","ноль",IF(L10>0,L10,"Ноль")) -> 2 | FF10: =IF(N10="сх","ноль",IF(N10>0,N10,"Ноль")) -> - | FH10: =MIN(FE10,FF10) -> 2 | FI10: =IF(X10=#REF!,IF(N10<#REF!,#REF!,FM10),#REF!) ->  | FJ10: =IF(X10=#REF!,IF(N10<#REF!,0,1)) ->  | FK10: =IF(AND(FH10>=21,FH10<>0),FH10,IF(X10<#REF!,"СТОП",FI10+FJ10)) ->  | FM10: 15 | FN10: 16 | FP10: =IF(L10=1,25,0) -> 0 | FQ10: =IF(L10=2,22,0) -> 22 | FR10: =IF(L10=3,20,0) -> 0 | FS10: =IF(L10=4,18,0) -> 0 | FT10: =IF(L10=5,16,0) -> 0 | FU10: =IF(L10=6,15,0) -> 0 | FV10: =IF(L10=7,14,0) -> 0 | FW10: =IF(L10=8,13,0) -> 0 | FX10: =IF(L10=9,12,0) -> 0 | FY10: =IF(L10=10,11,0) -> 0 | FZ10: =IF(L10=11,10,0) -> 0 | GA10: =IF(L10=12,9,0) -> 0 | GB10: =IF(L10=13,8,0) -> 0 | GC10: =IF(L10=14,7,0) -> 0 | GD10: =IF(L10=15,6,0) -> 0 | GE10: =IF(L10=16,5,0) -> 0 | GF10: =IF(L10=17,4,0) -> 0 | GG10: =IF(L10=18,3,0) -> 0 | GH10: =IF(L10=19,2,0) -> 0 | GI10: =IF(L10=20,1,0) -> 0 | GJ10: =IF(L10>20,0,0) -> 0 | GK10: =IF(L10="сх",0,0) -> 0 | GL10: =SUM(FP10:GK10) -> 22 | GM10: =IF(N10=1,25,0) -> 0 | GN10: =IF(N10=2,22,0) -> 0 | GO10: =IF(N10=3,20,0) -> 0 | GP10: =IF(N10=4,18,0) -> 0 | GQ10: =IF(N10=5,16,0) -> 0 | GR10: =IF(N10=6,15,0) -> 0 | GS10: =IF(N10=7,14,0) -> 0 | GT10: =IF(N10=8,13,0) -> 0 | GU10: =IF(N10=9,12,0) -> 0 | GV10: =IF(N10=10,11,0) -> 0 | GW10: =IF(N10=11,10,0) -> 0 | GX10: =IF(N10=12,9,0) -> 0 | GY10: =IF(N10=13,8,0) -> 0 | GZ10: =IF(N10=14,7,0) -> 0 | HA10: =IF(N10=15,6,0) -> 0 | HB10: =IF(N10=16,5,0) -> 0 | HC10: =IF(N10=17,4,0) -> 0 | HD10: =IF(N10=18,3,0) -> 0 | HE10: =IF(N10=19,2,0) -> 0 | HF10: =IF(N10=20,1,0) -> 0 | HG10: =IF(N10>20,0,0) -> 0 | HH10: =IF(N10="сх",0,0) -> 0 | HI10: =SUM(GM10:HH10) -> 0 | HJ10: =IF(L10=1,100,0) -> 0 | HK10: =IF(L10=2,98,0) -> 98 | HL10: =IF(L10=3,95,0) -> 0 | HM10: =IF(L10=4,93,0) -> 0 | HN10: =IF(L10=5,90,0) -> 0 | HO10: =IF(L10=6,88,0) -> 0 | HP10: =IF(L10=7,85,0) -> 0 | HQ10: =IF(L10=8,83,0) -> 0 | HR10: =IF(L10=9,80,0) -> 0 | HS10: =IF(L10=10,78,0) -> 0 | HT10: =IF(L10=11,75,0) -> 0 | HU10: =IF(L10=12,73,0) -> 0 | HV10: =IF(L10=13,70,0) -> 0 | HW10: =IF(L10=14,68,0) -> 0 | HX10: =IF(L10=15,65,0) -> 0 | HY10: =IF(L10=16,63,0) -> 0 | HZ10: =IF(L10=17,60,0) -> 0 | IA10: =IF(L10=18,58,0) -> 0 | IB10: =IF(L10=19,55,0) -> 0 | IC10: =IF(L10=20,53,0) -> 0 | ID10: =IF(L10>20,0,0) -> 0 | IE10: =IF(L10="сх",0,0) -> 0 | IF10: =SUM(HJ10:IE10) -> 98 | IG10: =IF(N10=1,100,0) -> 0 | IH10: =IF(N10=2,98,0) -> 0 | II10: =IF(N10=3,95,0) -> 0 | IJ10: =IF(N10=4,93,0) -> 0 | IK10: =IF(N10=5,90,0) -> 0 | IL10: =IF(N10=6,88,0) -> 0 | IM10: =IF(N10=7,85,0) -> 0 | IN10: =IF(N10=8,83,0) -> 0 | IO10: =IF(N10=9,80,0) -> 0 | IP10: =IF(N10=10,78,0) -> 0 | IQ10: =IF(N10=11,75,0) -> 0 | IR10: =IF(N10=12,73,0) -> 0 | IS10: =IF(N10=13,70,0) -> 0 | IT10: =IF(N10=14,68,0) -> 0 | IU10: =IF(N10=15,65,0) -> 0 | IV10: =IF(N10=16,63,0) -> 0 | IW10: =IF(N10=17,60,0) -> 0 | IX10: =IF(N10=18,58,0) -> 0 | IY10: =IF(N10=19,55,0) -> 0 | IZ10: =IF(N10=20,53,0) -> 0 | JA10: =IF(N10>20,0,0) -> 0 | JB10: =IF(N10="сх",0,0) -> 0 | JC10: =SUM(IG10:JB10) -> 0
A11: 2 | B11: =SUM(C11+D11+E11) -> 27.8 | C11: 9.2 | D11: 9 | E11: 9.6 | F11: 44 | G11: Синявин Александр | H11: б/р | I11: г. Новый Уренгой, Ямало-Ненецкий АО | J11: МАУ МЦ "НОРД" | K11: Yam | L11: 3 | M11: 20 | N11: - | O11: 0 | P11: 4 | Q11: 18 | R11: - | S11: 0 | T11: 3 | U11: 20 | V11: 2 | W11: 22 | X11: =SUM(M11+O11+Q11+S11+U11+W11) -> 80 | Y11: =M11+O11 -> 20 | AB11: =IF(L11=1,25,0) -> 0 | AC11: =IF(L11=2,22,0) -> 0 | AD11: =IF(L11=3,20,0) -> 20 | AE11: =IF(L11=4,18,0) -> 0 | AF11: =IF(L11=5,16,0) -> 0 | AG11: =IF(L11=6,15,0) -> 0 | AH11: =IF(L11=7,14,0) -> 0 | AI11: =IF(L11=8,13,0) -> 0 | AJ11: =IF(L11=9,12,0) -> 0 | AK11: =IF(L11=10,11,0) -> 0 | AL11: =IF(L11=11,10,0) -> 0 | AM11: =IF(L11=12,9,0) -> 0 | AN11: =IF(L11=13,8,0) -> 0 | AO11: =IF(L11=14,7,0) -> 0 | AP11: =IF(L11=15,6,0) -> 0 | AQ11: =IF(L11=16,5,0) -> 0 | AR11: =IF(L11=17,4,0) -> 0 | AS11: =IF(L11=18,3,0) -> 0 | AT11: =IF(L11=19,2,0) -> 0 | AU11: =IF(L11=20,1,0) -> 0 | AV11: =IF(L11>20,0,0) -> 0 | AW11: =IF(L11="сх",0,0) -> 0 | AX11: 20 | AY11: =IF(N11=1,25,0) -> 0 | AZ11: =IF(N11=2,22,0) -> 0 | BA11: =IF(N11=3,20,0) -> 0 | BB11: =IF(N11=4,18,0) -> 0 | BC11: =IF(N11=5,16,0) -> 0 | BD11: =IF(N11=6,15,0) -> 0 | BE11: =IF(N11=7,14,0) -> 0 | BF11: =IF(N11=8,13,0) -> 0 | BG11: =IF(N11=9,12,0) -> 0 | BH11: =IF(N11=10,11,0) -> 0 | BI11: =IF(N11=11,10,0) -> 0 | BJ11: =IF(N11=12,9,0) -> 0 | BK11: =IF(N11=13,8,0) -> 0 | BL11: =IF(N11=14,7,0) -> 0 | BM11: =IF(N11=15,6,0) -> 0 | BN11: =IF(N11=16,5,0) -> 0 | BO11: =IF(N11=17,4,0) -> 0 | BP11: =IF(N11=18,3,0) -> 0 | BQ11: =IF(N11=19,2,0) -> 0 | BR11: =IF(N11=20,1,0) -> 0 | BS11: =IF(N11>20,0,0) -> 0 | BT11: =IF(N11="сх",0,0) -> 0 | BU11: 0 | BV11: =IF(L11=1,45,0) -> 0 | BW11: =IF(L11=2,42,0) -> 0 | BX11: =IF(L11=3,40,0) -> 40 | BY11: =IF(L11=4,38,0) -> 0 | BZ11: =IF(L11=5,36,0) -> 0 | CA11: =IF(L11=6,35,0) -> 0 | CB11: =IF(L11=7,34,0) -> 0 | CC11: =IF(L11=8,33,0) -> 0 | CD11: =IF(L11=9,32,0) -> 0 | CE11: =IF(L11=10,31,0) -> 0 | CF11: =IF(L11=11,30,0) -> 0 | CG11: =IF(L11=12,29,0) -> 0 | CH11: =IF(L11=13,28,0) -> 0 | CI11: =IF(L11=14,27,0) -> 0 | CJ11: =IF(L11=15,26,0) -> 0 | CK11: =IF(L11=16,25,0) -> 0 | CL11: =IF(L11=17,24,0) -> 0 | CM11: =IF(L11=18,23,0) -> 0 | CN11: =IF(L11=19,22,0) -> 0 | CO11: =IF(L11=20,21,0) -> 0 | CP11: =IF(L11=21,20,0) -> 0 | CQ11: =IF(L11=22,19,0) -> 0 | CR11: =IF(L11=23,18,0) -> 0 | CS11: =IF(L11=24,17,0) -> 0 | CT11: =IF(L11=25,16,0) -> 0 | CU11: =IF(L11=26,15,0) -> 0 | CV11: =IF(L11=27,14,0) -> 0 | CW11: =IF(L11=28,13,0) -> 0 | CX11: =IF(L11=29,12,0) -> 0 | CY11: =IF(L11=30,11,0) -> 0 | CZ11: =IF(L11=31,10,0) -> 0 | DA11: =IF(L11=32,9,0) -> 0 | DB11: =IF(L11=33,8,0) -> 0 | DC11: =IF(L11=34,7,0) -> 0 | DD11: =IF(L11=35,6,0) -> 0 | DE11: =IF(L11=36,5,0) -> 0 | DF11: =IF(L11=37,4,0) -> 0 | DG11: =IF(L11=38,3,0) -> 0 | DH11: =IF(L11=39,2,0) -> 0 | DI11: =IF(L11=40,1,0) -> 0 | DJ11: =IF(L11>20,0,0) -> 0 | DK11: =IF(L11="сх",0,0) -> 0 | DL11: 40 | DM11: =IF(N11=1,45,0) -> 0 | DN11: =IF(N11=2,42,0) -> 0 | DO11: =IF(N11=3,40,0) -> 0 | DP11: =IF(N11=4,38,0) -> 0 | DQ11: =IF(N11=5,36,0) -> 0 | DR11: =IF(N11=6,35,0) -> 0 | DS11: =IF(N11=7,34,0) -> 0 | DT11: =IF(N11=8,33,0) -> 0 | DU11: =IF(N11=9,32,0) -> 0 | DV11: =IF(N11=10,31,0) -> 0 | DW11: =IF(N11=11,30,0) -> 0 | DX11: =IF(N11=12,29,0) -> 0 | DY11: =IF(N11=13,28,0) -> 0 | DZ11: =IF(N11=14,27,0) -> 0 | EA11: =IF(N11=15,26,0) -> 0 | EB11: =IF(N11=16,25,0) -> 0 | EC11: =IF(N11=17,24,0) -> 0 | ED11: =IF(N11=18,23,0) -> 0 | EE11: =IF(N11=19,22,0) -> 0 | EF11: =IF(N11=20,21,0) -> 0 | EG11: =IF(N11=21,20,0) -> 0 | EH11: =IF(N11=22,19,0) -> 0 | EI11: =IF(N11=23,18,0) -> 0 | EJ11: =IF(N11=24,17,0) -> 0 | EK11: =IF(N11=25,16,0) -> 0 | EL11: =IF(N11=26,15,0) -> 0 | EM11: =IF(N11=27,14,0) -> 0 | EN11: =IF(N11=28,13,0) -> 0 | EO11: =IF(N11=29,12,0) -> 0 | EP11: =IF(N11=30,11,0) -> 0 | EQ11: =IF(N11=31,10,0) -> 0 | ER11: =IF(N11=32,9,0) -> 0 | ES11: =IF(N11=33,8,0) -> 0 | ET11: =IF(N11=34,7,0) -> 0 | EU11: =IF(N11=35,6,0) -> 0 | EV11: =IF(N11=36,5,0) -> 0 | EW11: =IF(N11=37,4,0) -> 0 | EX11: =IF(N11=38,3,0) -> 0 | EY11: =IF(N11=39,2,0) -> 0 | EZ11: =IF(N11=40,1,0) -> 0 | FA11: =IF(N11>20,0,0) -> 0 | FB11: =IF(N11="сх",0,0) -> 0 | FC11: 0 | FE11: =IF(L11="сх","ноль",IF(L11>0,L11,"Ноль")) -> 3 | FF11: =IF(N11="сх","ноль",IF(N11>0,N11,"Ноль")) -> - | FH11: 3 | FI11: =IF(X11=#REF!,IF(N11<#REF!,#REF!,FM11),#REF!) ->  | FJ11: =IF(X11=#REF!,IF(N11<#REF!,0,1)) ->  | FK11: =IF(AND(FH11>=21,FH11<>0),FH11,IF(X11<#REF!,"СТОП",FI11+FJ11)) ->  | FM11: 15 | FN11: 16 | FP11: =IF(L11=1,25,0) -> 0 | FQ11: =IF(L11=2,22,0) -> 0 | FR11: =IF(L11=3,20,0) -> 20 | FS11: =IF(L11=4,18,0) -> 0 | FT11: =IF(L11=5,16,0) -> 0 | FU11: =IF(L11=6,15,0) -> 0 | FV11: =IF(L11=7,14,0) -> 0 | FW11: =IF(L11=8,13,0) -> 0 | FX11: =IF(L11=9,12,0) -> 0 | FY11: =IF(L11=10,11,0) -> 0 | FZ11: =IF(L11=11,10,0) -> 0 | GA11: =IF(L11=12,9,0) -> 0 | GB11: =IF(L11=13,8,0) -> 0 | GC11: =IF(L11=14,7,0) -> 0 | GD11: =IF(L11=15,6,0) -> 0 | GE11: =IF(L11=16,5,0) -> 0 | GF11: =IF(L11=17,4,0) -> 0 | GG11: =IF(L11=18,3,0) -> 0 | GH11: =IF(L11=19,2,0) -> 0 | GI11: =IF(L11=20,1,0) -> 0 | GJ11: =IF(L11>20,0,0) -> 0 | GK11: =IF(L11="сх",0,0) -> 0 | GL11: 20 | GM11: =IF(N11=1,25,0) -> 0 | GN11: =IF(N11=2,22,0) -> 0 | GO11: =IF(N11=3,20,0) -> 0 | GP11: =IF(N11=4,18,0) -> 0 | GQ11: =IF(N11=5,16,0) -> 0 | GR11: =IF(N11=6,15,0) -> 0 | GS11: =IF(N11=7,14,0) -> 0 | GT11: =IF(N11=8,13,0) -> 0 | GU11: =IF(N11=9,12,0) -> 0 | GV11: =IF(N11=10,11,0) -> 0 | GW11: =IF(N11=11,10,0) -> 0 | GX11: =IF(N11=12,9,0) -> 0 | GY11: =IF(N11=13,8,0) -> 0 | GZ11: =IF(N11=14,7,0) -> 0 | HA11: =IF(N11=15,6,0) -> 0 | HB11: =IF(N11=16,5,0) -> 0 | HC11: =IF(N11=17,4,0) -> 0 | HD11: =IF(N11=18,3,0) -> 0 | HE11: =IF(N11=19,2,0) -> 0 | HF11: =IF(N11=20,1,0) -> 0 | HG11: =IF(N11>20,0,0) -> 0 | HH11: =IF(N11="сх",0,0) -> 0 | HI11: 0 | HJ11: =IF(L11=1,100,0) -> 0 | HK11: =IF(L11=2,98,0) -> 0 | HL11: =IF(L11=3,95,0) -> 95 | HM11: =IF(L11=4,93,0) -> 0 | HN11: =IF(L11=5,90,0) -> 0 | HO11: =IF(L11=6,88,0) -> 0 | HP11: =IF(L11=7,85,0) -> 0 | HQ11: =IF(L11=8,83,0) -> 0 | HR11: =IF(L11=9,80,0) -> 0 | HS11: =IF(L11=10,78,0) -> 0 | HT11: =IF(L11=11,75,0) -> 0 | HU11: =IF(L11=12,73,0) -> 0 | HV11: =IF(L11=13,70,0) -> 0 | HW11: =IF(L11=14,68,0) -> 0 | HX11: =IF(L11=15,65,0) -> 0 | HY11: =IF(L11=16,63,0) -> 0 | HZ11: =IF(L11=17,60,0) -> 0 | IA11: =IF(L11=18,58,0) -> 0 | IB11: =IF(L11=19,55,0) -> 0 | IC11: =IF(L11=20,53,0) -> 0 | ID11: =IF(L11>20,0,0) -> 0 | IE11: =IF(L11="сх",0,0) -> 0 | IF11: 95 | IG11: =IF(N11=1,100,0) -> 0 | IH11: =IF(N11=2,98,0) -> 0 | II11: =IF(N11=3,95,0) -> 0 | IJ11: =IF(N11=4,93,0) -> 0 | IK11: =IF(N11=5,90,0) -> 0 | IL11: =IF(N11=6,88,0) -> 0 | IM11: =IF(N11=7,85,0) -> 0 | IN11: =IF(N11=8,83,0) -> 0 | IO11: =IF(N11=9,80,0) -> 0 | IP11: =IF(N11=10,78,0) -> 0 | IQ11: =IF(N11=11,75,0) -> 0 | IR11: =IF(N11=12,73,0) -> 0 | IS11: =IF(N11=13,70,0) -> 0 | IT11: =IF(N11=14,68,0) -> 0 | IU11: =IF(N11=15,65,0) -> 0 | IV11: =IF(N11=16,63,0) -> 0 | IW11: =IF(N11=17,60,0) -> 0 | IX11: =IF(N11=18,58,0) -> 0 | IY11: =IF(N11=19,55,0) -> 0 | IZ11: =IF(N11=20,53,0) -> 0 | JA11: =IF(N11>20,0,0) -> 0 | JB11: =IF(N11="сх",0,0) -> 0 | JC11: 0
A12: 3 | B12: =SUM(C12+D12+E12) -> 19.2 | C12: 10 | D12: 0 | E12: 9.2 | F12: 255 | G12: Жовтоног Эдуард | H12: кмс | I12: г. Новый Уренгой, Ямало-Ненецкий АО | J12: СТК "Факел" | K12: Arctic - Cat | L12: 1 | M12: 25 | N12: - | O12: 0 | P12: н/з | Q12: 0 | R12: - | S12: 0 | T12: 2 | U12: 22 | V12: 3 | W12: 20 | X12: =SUM(M12+O12+Q12+S12+U12+W12) -> 67 | Y12: =M12+O12 -> 25 | AB12: =IF(L12=1,25,0) -> 25 | AC12: =IF(L12=2,22,0) -> 0 | AD12: =IF(L12=3,20,0) -> 0 | AE12: =IF(L12=4,18,0) -> 0 | AF12: =IF(L12=5,16,0) -> 0 | AG12: =IF(L12=6,15,0) -> 0 | AH12: =IF(L12=7,14,0) -> 0 | AI12: =IF(L12=8,13,0) -> 0 | AJ12: =IF(L12=9,12,0) -> 0 | AK12: =IF(L12=10,11,0) -> 0 | AL12: =IF(L12=11,10,0) -> 0 | AM12: =IF(L12=12,9,0) -> 0 | AN12: =IF(L12=13,8,0) -> 0 | AO12: =IF(L12=14,7,0) -> 0 | AP12: =IF(L12=15,6,0) -> 0 | AQ12: =IF(L12=16,5,0) -> 0 | AR12: =IF(L12=17,4,0) -> 0 | AS12: =IF(L12=18,3,0) -> 0 | AT12: =IF(L12=19,2,0) -> 0 | AU12: =IF(L12=20,1,0) -> 0 | AV12: =IF(L12>20,0,0) -> 0 | AW12: =IF(L12="сх",0,0) -> 0 | AX12: =SUM(AB12:AV12) -> 25 | AY12: =IF(N12=1,25,0) -> 0 | AZ12: =IF(N12=2,22,0) -> 0 | BA12: =IF(N12=3,20,0) -> 0 | BB12: =IF(N12=4,18,0) -> 0 | BC12: =IF(N12=5,16,0) -> 0 | BD12: =IF(N12=6,15,0) -> 0 | BE12: =IF(N12=7,14,0) -> 0 | BF12: =IF(N12=8,13,0) -> 0 | BG12: =IF(N12=9,12,0) -> 0 | BH12: =IF(N12=10,11,0) -> 0 | BI12: =IF(N12=11,10,0) -> 0 | BJ12: =IF(N12=12,9,0) -> 0 | BK12: =IF(N12=13,8,0) -> 0 | BL12: =IF(N12=14,7,0) -> 0 | BM12: =IF(N12=15,6,0) -> 0 | BN12: =IF(N12=16,5,0) -> 0 | BO12: =IF(N12=17,4,0) -> 0 | BP12: =IF(N12=18,3,0) -> 0 | BQ12: =IF(N12=19,2,0) -> 0 | BR12: =IF(N12=20,1,0) -> 0 | BS12: =IF(N12>20,0,0) -> 0 | BT12: =IF(N12="сх",0,0) -> 0 | BU12: =SUM(AY12:BS12) -> 0 | BV12: =IF(L12=1,45,0) -> 45 | BW12: =IF(L12=2,42,0) -> 0 | BX12: =IF(L12=3,40,0) -> 0 | BY12: =IF(L12=4,38,0) -> 0 | BZ12: =IF(L12=5,36,0) -> 0 | CA12: =IF(L12=6,35,0) -> 0 | CB12: =IF(L12=7,34,0) -> 0 | CC12: =IF(L12=8,33,0) -> 0 | CD12: =IF(L12=9,32,0) -> 0 | CE12: =IF(L12=10,31,0) -> 0 | CF12: =IF(L12=11,30,0) -> 0 | CG12: =IF(L12=12,29,0) -> 0 | CH12: =IF(L12=13,28,0) -> 0 | CI12: =IF(L12=14,27,0) -> 0 | CJ12: =IF(L12=15,26,0) -> 0 | CK12: =IF(L12=16,25,0) -> 0 | CL12: =IF(L12=17,24,0) -> 0 | CM12: =IF(L12=18,23,0) -> 0 | CN12: =IF(L12=19,22,0) -> 0 | CO12: =IF(L12=20,21,0) -> 0 | CP12: =IF(L12=21,20,0) -> 0 | CQ12: =IF(L12=22,19,0) -> 0 | CR12: =IF(L12=23,18,0) -> 0 | CS12: =IF(L12=24,17,0) -> 0 | CT12: =IF(L12=25,16,0) -> 0 | CU12: =IF(L12=26,15,0) -> 0 | CV12: =IF(L12=27,14,0) -> 0 | CW12: =IF(L12=28,13,0) -> 0 | CX12: =IF(L12=29,12,0) -> 0 | CY12: =IF(L12=30,11,0) -> 0 | CZ12: =IF(L12=31,10,0) -> 0 | DA12: =IF(L12=32,9,0) -> 0 | DB12: =IF(L12=33,8,0) -> 0 | DC12: =IF(L12=34,7,0) -> 0 | DD12: =IF(L12=35,6,0) -> 0 | DE12: =IF(L12=36,5,0) -> 0 | DF12: =IF(L12=37,4,0) -> 0 | DG12: =IF(L12=38,3,0) -> 0 | DH12: =IF(L12=39,2,0) -> 0 | DI12: =IF(L12=40,1,0) -> 0 | DJ12: =IF(L12>20,0,0) -> 0 | DK12: =IF(L12="сх",0,0) -> 0 | DL12: =SUM(BV12:DK12) -> 45 | DM12: =IF(N12=1,45,0) -> 0 | DN12: =IF(N12=2,42,0) -> 0 | DO12: =IF(N12=3,40,0) -> 0 | DP12: =IF(N12=4,38,0) -> 0 | DQ12: =IF(N12=5,36,0) -> 0 | DR12: =IF(N12=6,35,0) -> 0 | DS12: =IF(N12=7,34,0) -> 0 | DT12: =IF(N12=8,33,0) -> 0 | DU12: =IF(N12=9,32,0) -> 0 | DV12: =IF(N12=10,31,0) -> 0 | DW12: =IF(N12=11,30,0) -> 0 | DX12: =IF(N12=12,29,0) -> 0 | DY12: =IF(N12=13,28,0) -> 0 | DZ12: =IF(N12=14,27,0) -> 0 | EA12: =IF(N12=15,26,0) -> 0 | EB12: =IF(N12=16,25,0) -> 0 | EC12: =IF(N12=17,24,0) -> 0 | ED12: =IF(N12=18,23,0) -> 0 | EE12: =IF(N12=19,22,0) -> 0 | EF12: =IF(N12=20,21,0) -> 0 | EG12: =IF(N12=21,20,0) -> 0 | EH12: =IF(N12=22,19,0) -> 0 | EI12: =IF(N12=23,18,0) -> 0 | EJ12: =IF(N12=24,17,0) -> 0 | EK12: =IF(N12=25,16,0) -> 0 | EL12: =IF(N12=26,15,0) -> 0 | EM12: =IF(N12=27,14,0) -> 0 | EN12: =IF(N12=28,13,0) -> 0 | EO12: =IF(N12=29,12,0) -> 0 | EP12: =IF(N12=30,11,0) -> 0 | EQ12: =IF(N12=31,10,0) -> 0 | ER12: =IF(N12=32,9,0) -> 0 | ES12: =IF(N12=33,8,0) -> 0 | ET12: =IF(N12=34,7,0) -> 0 | EU12: =IF(N12=35,6,0) -> 0 | EV12: =IF(N12=36,5,0) -> 0 | EW12: =IF(N12=37,4,0) -> 0 | EX12: =IF(N12=38,3,0) -> 0 | EY12: =IF(N12=39,2,0) -> 0 | EZ12: =IF(N12=40,1,0) -> 0 | FA12: =IF(N12>20,0,0) -> 0 | FB12: =IF(N12="сх",0,0) -> 0 | FC12: =SUM(DM12:FB12) -> 0 | FE12: =IF(L12="сх","ноль",IF(L12>0,L12,"Ноль")) -> 1 | FF12: =IF(N12="сх","ноль",IF(N12>0,N12,"Ноль")) -> - | FH12: =MIN(FE12,FF12) -> 1 | FI12: =IF(X12=#REF!,IF(N12<#REF!,#REF!,FM12),#REF!) ->  | FJ12: =IF(X12=#REF!,IF(N12<#REF!,0,1)) ->  | FK12: =IF(AND(FH12>=21,FH12<>0),FH12,IF(X12<#REF!,"СТОП",FI12+FJ12)) ->  | FM12: 15 | FN12: 16 | FP12: =IF(L12=1,25,0) -> 25 | FQ12: =IF(L12=2,22,0) -> 0 | FR12: =IF(L12=3,20,0) -> 0 | FS12: =IF(L12=4,18,0) -> 0 | FT12: =IF(L12=5,16,0) -> 0 | FU12: =IF(L12=6,15,0) -> 0 | FV12: =IF(L12=7,14,0) -> 0 | FW12: =IF(L12=8,13,0) -> 0 | FX12: =IF(L12=9,12,0) -> 0 | FY12: =IF(L12=10,11,0) -> 0 | FZ12: =IF(L12=11,10,0) -> 0 | GA12: =IF(L12=12,9,0) -> 0 | GB12: =IF(L12=13,8,0) -> 0 | GC12: =IF(L12=14,7,0) -> 0 | GD12: =IF(L12=15,6,0) -> 0 | GE12: =IF(L12=16,5,0) -> 0 | GF12: =IF(L12=17,4,0) -> 0 | GG12: =IF(L12=18,3,0) -> 0 | GH12: =IF(L12=19,2,0) -> 0 | GI12: =IF(L12=20,1,0) -> 0 | GJ12: =IF(L12>20,0,0) -> 0 | GK12: =IF(L12="сх",0,0) -> 0 | GL12: =SUM(FP12:GK12) -> 25 | GM12: =IF(N12=1,25,0) -> 0 | GN12: =IF(N12=2,22,0) -> 0 | GO12: =IF(N12=3,20,0) -> 0 | GP12: =IF(N12=4,18,0) -> 0 | GQ12: =IF(N12=5,16,0) -> 0 | GR12: =IF(N12=6,15,0) -> 0 | GS12: =IF(N12=7,14,0) -> 0 | GT12: =IF(N12=8,13,0) -> 0 | GU12: =IF(N12=9,12,0) -> 0 | GV12: =IF(N12=10,11,0) -> 0 | GW12: =IF(N12=11,10,0) -> 0 | GX12: =IF(N12=12,9,0) -> 0 | GY12: =IF(N12=13,8,0) -> 0 | GZ12: =IF(N12=14,7,0) -> 0 | HA12: =IF(N12=15,6,0) -> 0 | HB12: =IF(N12=16,5,0) -> 0 | HC12: =IF(N12=17,4,0) -> 0 | HD12: =IF(N12=18,3,0) -> 0 | HE12: =IF(N12=19,2,0) -> 0 | HF12: =IF(N12=20,1,0) -> 0 | HG12: =IF(N12>20,0,0) -> 0 | HH12: =IF(N12="сх",0,0) -> 0 | HI12: =SUM(GM12:HH12) -> 0 | HJ12: =IF(L12=1,100,0) -> 100 | HK12: =IF(L12=2,98,0) -> 0 | HL12: =IF(L12=3,95,0) -> 0 | HM12: =IF(L12=4,93,0) -> 0 | HN12: =IF(L12=5,90,0) -> 0 | HO12: =IF(L12=6,88,0) -> 0 | HP12: =IF(L12=7,85,0) -> 0 | HQ12: =IF(L12=8,83,0) -> 0 | HR12: =IF(L12=9,80,0) -> 0 | HS12: =IF(L12=10,78,0) -> 0 | HT12: =IF(L12=11,75,0) -> 0 | HU12: =IF(L12=12,73,0) -> 0 | HV12: =IF(L12=13,70,0) -> 0 | HW12: =IF(L12=14,68,0) -> 0 | HX12: =IF(L12=15,65,0) -> 0 | HY12: =IF(L12=16,63,0) -> 0 | HZ12: =IF(L12=17,60,0) -> 0 | IA12: =IF(L12=18,58,0) -> 0 | IB12: =IF(L12=19,55,0) -> 0 | IC12: =IF(L12=20,53,0) -> 0 | ID12: =IF(L12>20,0,0) -> 0 | IE12: =IF(L12="сх",0,0) -> 0 | IF12: =SUM(HJ12:IE12) -> 100 | IG12: =IF(N12=1,100,0) -> 0 | IH12: =IF(N12=2,98,0) -> 0 | II12: =IF(N12=3,95,0) -> 0 | IJ12: =IF(N12=4,93,0) -> 0 | IK12: =IF(N12=5,90,0) -> 0 | IL12: =IF(N12=6,88,0) -> 0 | IM12: =IF(N12=7,85,0) -> 0 | IN12: =IF(N12=8,83,0) -> 0 | IO12: =IF(N12=9,80,0) -> 0 | IP12: =IF(N12=10,78,0) -> 0 | IQ12: =IF(N12=11,75,0) -> 0 | IR12: =IF(N12=12,73,0) -> 0 | IS12: =IF(N12=13,70,0) -> 0 | IT12: =IF(N12=14,68,0) -> 0 | IU12: =IF(N12=15,65,0) -> 0 | IV12: =IF(N12=16,63,0) -> 0 | IW12: =IF(N12=17,60,0) -> 0 | IX12: =IF(N12=18,58,0) -> 0 | IY12: =IF(N12=19,55,0) -> 0 | IZ12: =IF(N12=20,53,0) -> 0 | JA12: =IF(N12>20,0,0) -> 0 | JB12: =IF(N12="сх",0,0) -> 0 | JC12: =SUM(IG12:JB12) -> 0
A13: 4 | B13: =SUM(C13+D13+E13) -> 18.6 | C13: 0 | D13: 9.6 | E13: 9 | F13: 102 | G13: Прокопченко Евгений | H13: б/р | I13: г. Сургут, Ханты-Мансийский АО-Югра | J13: лично | K13: Polaris | L13: - | M13: 0 | N13: - | O13: 0 | P13: 2 | Q13: 22 | R13: - | S13: 0 | T13: 4 | U13: 18 | V13: 5 | W13: 16 | X13: =SUM(M13+O13+Q13+S13+U13+W13) -> 56 | Y13: =M13+O13 -> 0 | AB13: =IF(L13=1,25,0) -> 0 | AC13: =IF(L13=2,22,0) -> 0 | AD13: =IF(L13=3,20,0) -> 0 | AE13: =IF(L13=4,18,0) -> 0 | AF13: =IF(L13=5,16,0) -> 0 | AG13: =IF(L13=6,15,0) -> 0 | AH13: =IF(L13=7,14,0) -> 0 | AI13: =IF(L13=8,13,0) -> 0 | AJ13: =IF(L13=9,12,0) -> 0 | AK13: =IF(L13=10,11,0) -> 0 | AL13: =IF(L13=11,10,0) -> 0 | AM13: =IF(L13=12,9,0) -> 0 | AN13: =IF(L13=13,8,0) -> 0 | AO13: =IF(L13=14,7,0) -> 0 | AP13: =IF(L13=15,6,0) -> 0 | AQ13: =IF(L13=16,5,0) -> 0 | AR13: =IF(L13=17,4,0) -> 0 | AS13: =IF(L13=18,3,0) -> 0 | AT13: =IF(L13=19,2,0) -> 0 | AU13: =IF(L13=20,1,0) -> 0 | AV13: =IF(L13>20,0,0) -> 0 | AW13: =IF(L13="сх",0,0) -> 0 | AX13: 0 | AY13: =IF(N13=1,25,0) -> 0 | AZ13: =IF(N13=2,22,0) -> 0 | BA13: =IF(N13=3,20,0) -> 0 | BB13: =IF(N13=4,18,0) -> 0 | BC13: =IF(N13=5,16,0) -> 0 | BD13: =IF(N13=6,15,0) -> 0 | BE13: =IF(N13=7,14,0) -> 0 | BF13: =IF(N13=8,13,0) -> 0 | BG13: =IF(N13=9,12,0) -> 0 | BH13: =IF(N13=10,11,0) -> 0 | BI13: =IF(N13=11,10,0) -> 0 | BJ13: =IF(N13=12,9,0) -> 0 | BK13: =IF(N13=13,8,0) -> 0 | BL13: =IF(N13=14,7,0) -> 0 | BM13: =IF(N13=15,6,0) -> 0 | BN13: =IF(N13=16,5,0) -> 0 | BO13: =IF(N13=17,4,0) -> 0 | BP13: =IF(N13=18,3,0) -> 0 | BQ13: =IF(N13=19,2,0) -> 0 | BR13: =IF(N13=20,1,0) -> 0 | BS13: =IF(N13>20,0,0) -> 0 | BT13: =IF(N13="сх",0,0) -> 0 | BU13: 0 | BV13: =IF(L13=1,45,0) -> 0 | BW13: =IF(L13=2,42,0) -> 0 | BX13: =IF(L13=3,40,0) -> 0 | BY13: =IF(L13=4,38,0) -> 0 | BZ13: =IF(L13=5,36,0) -> 0 | CA13: =IF(L13=6,35,0) -> 0 | CB13: =IF(L13=7,34,0) -> 0 | CC13: =IF(L13=8,33,0) -> 0 | CD13: =IF(L13=9,32,0) -> 0 | CE13: =IF(L13=10,31,0) -> 0 | CF13: =IF(L13=11,30,0) -> 0 | CG13: =IF(L13=12,29,0) -> 0 | CH13: =IF(L13=13,28,0) -> 0 | CI13: =IF(L13=14,27,0) -> 0 | CJ13: =IF(L13=15,26,0) -> 0 | CK13: =IF(L13=16,25,0) -> 0 | CL13: =IF(L13=17,24,0) -> 0 | CM13: =IF(L13=18,23,0) -> 0 | CN13: =IF(L13=19,22,0) -> 0 | CO13: =IF(L13=20,21,0) -> 0 | CP13: =IF(L13=21,20,0) -> 0 | CQ13: =IF(L13=22,19,0) -> 0 | CR13: =IF(L13=23,18,0) -> 0 | CS13: =IF(L13=24,17,0) -> 0 | CT13: =IF(L13=25,16,0) -> 0 | CU13: =IF(L13=26,15,0) -> 0 | CV13: =IF(L13=27,14,0) -> 0 | CW13: =IF(L13=28,13,0) -> 0 | CX13: =IF(L13=29,12,0) -> 0 | CY13: =IF(L13=30,11,0) -> 0 | CZ13: =IF(L13=31,10,0) -> 0 | DA13: =IF(L13=32,9,0) -> 0 | DB13: =IF(L13=33,8,0) -> 0 | DC13: =IF(L13=34,7,0) -> 0 | DD13: =IF(L13=35,6,0) -> 0 | DE13: =IF(L13=36,5,0) -> 0 | DF13: =IF(L13=37,4,0) -> 0 | DG13: =IF(L13=38,3,0) -> 0 | DH13: =IF(L13=39,2,0) -> 0 | DI13: =IF(L13=40,1,0) -> 0 | DJ13: =IF(L13>20,0,0) -> 0 | DK13: =IF(L13="сх",0,0) -> 0 | DL13: 0 | DM13: =IF(N13=1,45,0) -> 0 | DN13: =IF(N13=2,42,0) -> 0 | DO13: =IF(N13=3,40,0) -> 0 | DP13: =IF(N13=4,38,0) -> 0 | DQ13: =IF(N13=5,36,0) -> 0 | DR13: =IF(N13=6,35,0) -> 0 | DS13: =IF(N13=7,34,0) -> 0 | DT13: =IF(N13=8,33,0) -> 0 | DU13: =IF(N13=9,32,0) -> 0 | DV13: =IF(N13=10,31,0) -> 0 | DW13: =IF(N13=11,30,0) -> 0 | DX13: =IF(N13=12,29,0) -> 0 | DY13: =IF(N13=13,28,0) -> 0 | DZ13: =IF(N13=14,27,0) -> 0 | EA13: =IF(N13=15,26,0) -> 0 | EB13: =IF(N13=16,25,0) -> 0 | EC13: =IF(N13=17,24,0) -> 0 | ED13: =IF(N13=18,23,0) -> 0 | EE13: =IF(N13=19,22,0) -> 0 | EF13: =IF(N13=20,21,0) -> 0 | EG13: =IF(N13=21,20,0) -> 0 | EH13: =IF(N13=22,19,0) -> 0 | EI13: =IF(N13=23,18,0) -> 0 | EJ13: =IF(N13=24,17,0) -> 0 | EK13: =IF(N13=25,16,0) -> 0 | EL13: =IF(N13=26,15,0) -> 0 | EM13: =IF(N13=27,14,0) -> 0 | EN13: =IF(N13=28,13,0) -> 0 | EO13: =IF(N13=29,12,0) -> 0 | EP13: =IF(N13=30,11,0) -> 0 | EQ13: =IF(N13=31,10,0) -> 0 | ER13: =IF(N13=32,9,0) -> 0 | ES13: =IF(N13=33,8,0) -> 0 | ET13: =IF(N13=34,7,0) -> 0 | EU13: =IF(N13=35,6,0) -> 0 | EV13: =IF(N13=36,5,0) -> 0 | EW13: =IF(N13=37,4,0) -> 0 | EX13: =IF(N13=38,3,0) -> 0 | EY13: =IF(N13=39,2,0) -> 0 | EZ13: =IF(N13=40,1,0) -> 0 | FA13: =IF(N13>20,0,0) -> 0 | FB13: =IF(N13="сх",0,0) -> 0 | FC13: 0 | FE13: =IF(L13="сх","ноль",IF(L13>0,L13,"Ноль")) -> - | FF13: =IF(N13="сх","ноль",IF(N13>0,N13,"Ноль")) -> - | FH13: 0 | FI13: =IF(X13=#REF!,IF(N13<#REF!,#REF!,FM13),#REF!) ->  | FJ13: =IF(X13=#REF!,IF(N13<#REF!,0,1)) ->  | FK13: =IF(AND(FH13>=21,FH13<>0),FH13,IF(X13<#REF!,"СТОП",FI13+FJ13)) ->  | FM13: 15 | FN13: 16 | FP13: =IF(L13=1,25,0) -> 0 | FQ13: =IF(L13=2,22,0) -> 0 | FR13: =IF(L13=3,20,0) -> 0 | FS13: =IF(L13=4,18,0) -> 0 | FT13: =IF(L13=5,16,0) -> 0 | FU13: =IF(L13=6,15,0) -> 0 | FV13: =IF(L13=7,14,0) -> 0 | FW13: =IF(L13=8,13,0) -> 0 | FX13: =IF(L13=9,12,0) -> 0 | FY13: =IF(L13=10,11,0) -> 0 | FZ13: =IF(L13=11,10,0) -> 0 | GA13: =IF(L13=12,9,0) -> 0 | GB13: =IF(L13=13,8,0) -> 0 | GC13: =IF(L13=14,7,0) -> 0 | GD13: =IF(L13=15,6,0) -> 0 | GE13: =IF(L13=16,5,0) -> 0 | GF13: =IF(L13=17,4,0) -> 0 | GG13: =IF(L13=18,3,0) -> 0 | GH13: =IF(L13=19,2,0) -> 0 | GI13: =IF(L13=20,1,0) -> 0 | GJ13: =IF(L13>20,0,0) -> 0 | GK13: =IF(L13="сх",0,0) -> 0 | GL13: 0 | GM13: =IF(N13=1,25,0) -> 0 | GN13: =IF(N13=2,22,0) -> 0 | GO13: =IF(N13=3,20,0) -> 0 | GP13: =IF(N13=4,18,0) -> 0 | GQ13: =IF(N13=5,16,0) -> 0 | GR13: =IF(N13=6,15,0) -> 0 | GS13: =IF(N13=7,14,0) -> 0 | GT13: =IF(N13=8,13,0) -> 0 | GU13: =IF(N13=9,12,0) -> 0 | GV13: =IF(N13=10,11,0) -> 0 | GW13: =IF(N13=11,10,0) -> 0 | GX13: =IF(N13=12,9,0) -> 0 | GY13: =IF(N13=13,8,0) -> 0 | GZ13: =IF(N13=14,7,0) -> 0 | HA13: =IF(N13=15,6,0) -> 0 | HB13: =IF(N13=16,5,0) -> 0 | HC13: =IF(N13=17,4,0) -> 0 | HD13: =IF(N13=18,3,0) -> 0 | HE13: =IF(N13=19,2,0) -> 0 | HF13: =IF(N13=20,1,0) -> 0 | HG13: =IF(N13>20,0,0) -> 0 | HH13: =IF(N13="сх",0,0) -> 0 | HI13: 0 | HJ13: =IF(L13=1,100,0) -> 0 | HK13: =IF(L13=2,98,0) -> 0 | HL13: =IF(L13=3,95,0) -> 0 | HM13: =IF(L13=4,93,0) -> 0 | HN13: =IF(L13=5,90,0) -> 0 | HO13: =IF(L13=6,88,0) -> 0 | HP13: =IF(L13=7,85,0) -> 0 | HQ13: =IF(L13=8,83,0) -> 0 | HR13: =IF(L13=9,80,0) -> 0 | HS13: =IF(L13=10,78,0) -> 0 | HT13: =IF(L13=11,75,0) -> 0 | HU13: =IF(L13=12,73,0) -> 0 | HV13: =IF(L13=13,70,0) -> 0 | HW13: =IF(L13=14,68,0) -> 0 | HX13: =IF(L13=15,65,0) -> 0 | HY13: =IF(L13=16,63,0) -> 0 | HZ13: =IF(L13=17,60,0) -> 0 | IA13: =IF(L13=18,58,0) -> 0 | IB13: =IF(L13=19,55,0) -> 0 | IC13: =IF(L13=20,53,0) -> 0 | ID13: =IF(L13>20,0,0) -> 0 | IE13: =IF(L13="сх",0,0) -> 0 | IF13: 0 | IG13: =IF(N13=1,100,0) -> 0 | IH13: =IF(N13=2,98,0) -> 0 | II13: =IF(N13=3,95,0) -> 0 | IJ13: =IF(N13=4,93,0) -> 0 | IK13: =IF(N13=5,90,0) -> 0 | IL13: =IF(N13=6,88,0) -> 0 | IM13: =IF(N13=7,85,0) -> 0 | IN13: =IF(N13=8,83,0) -> 0 | IO13: =IF(N13=9,80,0) -> 0 | IP13: =IF(N13=10,78,0) -> 0 | IQ13: =IF(N13=11,75,0) -> 0 | IR13: =IF(N13=12,73,0) -> 0 | IS13: =IF(N13=13,70,0) -> 0 | IT13: =IF(N13=14,68,0) -> 0 | IU13: =IF(N13=15,65,0) -> 0 | IV13: =IF(N13=16,63,0) -> 0 | IW13: =IF(N13=17,60,0) -> 0 | IX13: =IF(N13=18,58,0) -> 0 | IY13: =IF(N13=19,55,0) -> 0 | IZ13: =IF(N13=20,53,0) -> 0 | JA13: =IF(N13>20,0,0) -> 0 | JB13: =IF(N13="сх",0,0) -> 0 | JC13: 0
A14: 5 | B14: =SUM(C14+D14+E14) -> 17.8 | C14: 0 | D14: 9.2 | E14: 8.6 | F14: 18 | G14: Белехов Александр | H14: б/р | I14: г. Сургут, Ханты-Мансийский АО-Югра | J14: лично | K14: Polaris | L14: - | M14: 0 | N14: - | O14: 0 | P14: 3 | Q14: 20 | R14: - | S14: 0 | T14: 5 | U14: 16 | V14: сх | W14: 0 | X14: =SUM(M14+O14+Q14+S14+U14+W14) -> 36 | Y14: 0 | AY14: 0 | AZ14: 0 | BA14: 0 | BB14: 0 | BC14: 0 | BD14: 0 | BE14: 0 | BF14: 0 | BG14: 0 | BH14: 0 | BI14: 0 | BJ14: 0 | BK14: 0 | BL14: 0 | BM14: 0 | BN14: 0 | BO14: 0 | BP14: 0 | BQ14: 0 | BR14: 0 | BS14: 0 | BT14: 0 | BU14: 0 | DM14: 0 | DN14: 0 | DO14: 0 | DP14: 0 | DQ14: 0 | DR14: 0 | DS14: 0 | DT14: 0 | DU14: 0 | DV14: 0 | DW14: 0 | DX14: 0 | DY14: 0 | DZ14: 0 | EA14: 0 | EB14: 0 | EC14: 0 | ED14: 0 | EE14: 0 | EF14: 0 | EG14: 0 | EH14: 0 | EI14: 0 | EJ14: 0 | EK14: 0 | EL14: 0 | EM14: 0 | EN14: 0 | EO14: 0 | EP14: 0 | EQ14: 0 | ER14: 0 | ES14: 0 | ET14: 0 | EU14: 0 | EV14: 0 | EW14: 0 | EX14: 0 | EY14: 0 | EZ14: 0 | FA14: 0 | FB14: 0 | FC14: 0 | FF14: - | GM14: 0 | GN14: 0 | GO14: 0 | GP14: 0 | GQ14: 0 | GR14: 0 | GS14: 0 | GT14: 0 | GU14: 0 | GV14: 0 | GW14: 0 | GX14: 0 | GY14: 0 | GZ14: 0 | HA14: 0 | HB14: 0 | HC14: 0 | HD14: 0 | HE14: 0 | HF14: 0 | HG14: 0 | HH14: 0 | HI14: 0 | IG14: 0 | IH14: 0 | II14: 0 | IJ14: 0 | IK14: 0 | IL14: 0 | IM14: 0 | IN14: 0 | IO14: 0 | IP14: 0 | IQ14: 0 | IR14: 0 | IS14: 0 | IT14: 0 | IU14: 0 | IV14: 0 | IW14: 0 | IX14: 0 | IY14: 0 | IZ14: 0 | JA14: 0 | JB14: 0 | JC14: 0
A15: 6 | B15: =SUM(C15+D15+E15) -> 8.8 | C15: 0 | D15: 0 | E15: 8.8 | F15: 125 | G15: Григорьев Евгений | H15: б/р | I15: г. Новый Уренгой, Ямало-Ненецкий АО | J15: МАУ МЦ "НОРД" | K15: Yam | L15: - | M15: 0 | N15: - | O15: 0 | P15: - | Q15: 0 | R15: - | S15: 0 | T15: 6 | U15: 15 | V15: 4 | W15: 18 | X15: =SUM(M15+O15+Q15+S15+U15+W15) -> 33 | Y15: 0 | AY15: 0 | AZ15: 0 | BA15: 0 | BB15: 0 | BC15: 0 | BD15: 0 | BE15: 0 | BF15: 0 | BG15: 0 | BH15: 0 | BI15: 0 | BJ15: 0 | BK15: 0 | BL15: 0 | BM15: 0 | BN15: 0 | BO15: 0 | BP15: 0 | BQ15: 0 | BR15: 0 | BS15: 0 | BT15: 0 | BU15: 0 | DM15: 0 | DN15: 0 | DO15: 0 | DP15: 0 | DQ15: 0 | DR15: 0 | DS15: 0 | DT15: 0 | DU15: 0 | DV15: 0 | DW15: 0 | DX15: 0 | DY15: 0 | DZ15: 0 | EA15: 0 | EB15: 0 | EC15: 0 | ED15: 0 | EE15: 0 | EF15: 0 | EG15: 0 | EH15: 0 | EI15: 0 | EJ15: 0 | EK15: 0 | EL15: 0 | EM15: 0 | EN15: 0 | EO15: 0 | EP15: 0 | EQ15: 0 | ER15: 0 | ES15: 0 | ET15: 0 | EU15: 0 | EV15: 0 | EW15: 0 | EX15: 0 | EY15: 0 | EZ15: 0 | FA15: 0 | FB15: 0 | FC15: 0 | FF15: - | GM15: 0 | GN15: 0 | GO15: 0 | GP15: 0 | GQ15: 0 | GR15: 0 | GS15: 0 | GT15: 0 | GU15: 0 | GV15: 0 | GW15: 0 | GX15: 0 | GY15: 0 | GZ15: 0 | HA15: 0 | HB15: 0 | HC15: 0 | HD15: 0 | HE15: 0 | HF15: 0 | HG15: 0 | HH15: 0 | HI15: 0 | IG15: 0 | IH15: 0 | II15: 0 | IJ15: 0 | IK15: 0 | IL15: 0 | IM15: 0 | IN15: 0 | IO15: 0 | IP15: 0 | IQ15: 0 | IR15: 0 | IS15: 0 | IT15: 0 | IU15: 0 | IV15: 0 | IW15: 0 | IX15: 0 | IY15: 0 | IZ15: 0 | JA15: 0 | JB15: 0 | JC15: 0
A16: 7 | B16: =SUM(C16+D16+E16) -> 9 | C16: 9 | D16: 0 | E16: 0 | F16: 884 | G16: Васюнин Вадим | H16: б/р | I16: г. Надым, Ямало-Ненецкий АО | J16: МК "Поршень" | K16: BBI | L16: 4 | M16: 18 | N16: - | O16: 0 | P16: - | Q16: 0 | R16: - | S16: 0 | T16: - | U16: 0 | V16: - | W16: 0 | X16: =SUM(M16+O16+Q16+S16+U16+W16) -> 18 | Y16: 18 | AY16: 0 | AZ16: 0 | BA16: 0 | BB16: 0 | BC16: 0 | BD16: 0 | BE16: 0 | BF16: 0 | BG16: 0 | BH16: 0 | BI16: 0 | BJ16: 0 | BK16: 0 | BL16: 0 | BM16: 0 | BN16: 0 | BO16: 0 | BP16: 0 | BQ16: 0 | BR16: 0 | BS16: 0 | BT16: 0 | BU16: 0 | DM16: 0 | DN16: 0 | DO16: 0 | DP16: 0 | DQ16: 0 | DR16: 0 | DS16: 0 | DT16: 0 | DU16: 0 | DV16: 0 | DW16: 0 | DX16: 0 | DY16: 0 | DZ16: 0 | EA16: 0 | EB16: 0 | EC16: 0 | ED16: 0 | EE16: 0 | EF16: 0 | EG16: 0 | EH16: 0 | EI16: 0 | EJ16: 0 | EK16: 0 | EL16: 0 | EM16: 0 | EN16: 0 | EO16: 0 | EP16: 0 | EQ16: 0 | ER16: 0 | ES16: 0 | ET16: 0 | EU16: 0 | EV16: 0 | EW16: 0 | EX16: 0 | EY16: 0 | EZ16: 0 | FA16: 0 | FB16: 0 | FC16: 0 | FF16: - | GM16: 0 | GN16: 0 | GO16: 0 | GP16: 0 | GQ16: 0 | GR16: 0 | GS16: 0 | GT16: 0 | GU16: 0 | GV16: 0 | GW16: 0 | GX16: 0 | GY16: 0 | GZ16: 0 | HA16: 0 | HB16: 0 | HC16: 0 | HD16: 0 | HE16: 0 | HF16: 0 | HG16: 0 | HH16: 0 | HI16: 0 | IG16: 0 | IH16: 0 | II16: 0 | IJ16: 0 | IK16: 0 | IL16: 0 | IM16: 0 | IN16: 0 | IO16: 0 | IP16: 0 | IQ16: 0 | IR16: 0 | IS16: 0 | IT16: 0 | IU16: 0 | IV16: 0 | IW16: 0 | IX16: 0 | IY16: 0 | IZ16: 0 | JA16: 0 | JB16: 0 | JC16: 0
A17: 8 | B17: =SUM(C17+D17+E17) -> 8.8 | C17: 0 | D17: 8.8 | E17: 0 | F17: 33 | G17: Аксенов Максим | H17: б/р | I17: г. Муравленко, Ямало-Ненецкий АО | J17: лично | K17: Polaris | L17: - | M17: 0 | N17: - | O17: 0 | P17: 5 | Q17: 16 | R17: - | S17: 0 | T17: - | U17: 0 | V17: - | W17: 0 | X17: =SUM(M17+O17+Q17+S17+U17+W17) -> 16
A18: 9 | B18: =SUM(C18+D18+E18) -> 8.8 | C18: 8.8 | D18: 0 | E18: 0 | F18: 883 | G18: Копейкин Алексей | H18: б/р | I18: г. Надым, Ямало-Ненецкий АО | J18: лично | K18: Yam | L18: 5 | M18: 16 | N18: - | O18: 0 | P18: - | Q18: 0 | R18: - | S18: 0 | T18: - | U18: 0 | V18: - | W18: 0 | X18: =SUM(M18+O18+Q18+S18+U18+W18) -> 16
A19: 10 | B19: =SUM(C19+D19+E19) -> 8.6 | C19: 0 | D19: 8.6 | E19: 0 | F19: 7 | G19: Бекиров Михаил | H19: б/р | I19: г. Муравленко, Ямало-Ненецкий АО | J19: лично | K19: Arctic - Cat | L19: - | M19: 0 | N19: - | O19: 0 | P19: 6 | Q19: 15 | R19: - | S19: 0 | T19: - | U19: 0 | V19: - | W19: 0 | X19: =SUM(M19+O19+Q19+S19+U19+W19) -> 15
A20: 11 | B20: =SUM(C20+D20+E20) -> 8.4 | C20: 0 | D20: 8.4 | E20: 0 | F20: 5 | G20: Хохлов Евгений | H20: б/р | I20: г. Муравленко, Ямало-Ненецкий АО | J20: лично | K20: Arctic - Cat | L20: - | M20: 0 | N20: - | O20: 0 | P20: 7 | Q20: 14 | R20: - | S20: 0 | T20: - | U20: 0 | V20: - | W20: 0 | X20: =SUM(M20+O20+Q20+S20+U20+W20) -> 14
A26: Главный судья соревнований
A27: судья Всероссийской категории: А. Б. Стеблинский (г. Тюмень; лицензия МФР А 144)
A29: Главный секретарь соревнований
A30: судья Всероссийской категории: А. Ю. Иванов (г. Москва/лицензия МФР А 105; FIM 11245)

Sheet Мальчики 1
A2: Показательные выступления в рамках Кубка ЯНАО по кроссу на снегоходах 2016/2017 года.
A3: СВОДНЫЙ ПРОТОКОЛ ЛИЧНОГО ЗАЧЕТА по сумме 3-х этапов. | FS3: первый этап
A4: 1-й этап: 03 - 04 декабря 2016 года - г. Новый Уренгой, Ямало-Ненецкий АО; 2-й этап: 24 - 26 марта 2017 года - г. Муравленко, Ямало-Ненецкий АО; 3-й этап: 31 марта - 02 апреля 2017 года - г. Новый Уренгой, Ямало-Ненецкий АО. | FH4: первый заезд личные очки | GD4: второй заезд личные очки | HA4: Первый заезд командные очки | HX4: Второй заезд командные очки
A5: Класс "Мальчики 1". | FG5: 1 | FH5: 2 | FI5: 3 | FJ5: 4 | FK5: 5 | FL5: 6 | FM5: 7 | FN5: 8 | FO5: 9 | FP5: 10 | FQ5: 11 | FR5: 12 | FS5: 13 | FT5: 14 | FU5: 15 | FV5: 16 | FW5: 17 | FX5: 18 | FY5: 19 | FZ5: 20 | GA5: 21 | GB5: сх | GC5: Sym | GD5: 1 | GE5: 2 | GF5: 3 | GG5: 4 | GH5: 5 | GI5: 6 | GJ5: 7 | GK5: 8 | GL5: 9 | GM5: 10 | GN5: 11 | GO5: 12 | GP5: 13 | GQ5: 14 | GR5: 15 | GS5: 16 | GT5: 17 | GU5: 18 | GV5: 19 | GW5: 20 | GX5: 21 | GY5: cx | GZ5: sym | HA5: 1 | HB5: 2 | HC5: 3 | HD5: 4 | HE5: 5 | HF5: 6 | HG5: 7 | HH5: 8 | HI5: 9 | HJ5: 10 | HK5: 11 | HL5: 12 | HM5: 13 | HN5: 14 | HO5: 15 | HP5: 16 | HQ5: 17 | HR5: 18 | HS5: 19 | HT5: 20 | HU5: 21 | HV5: сх | HW5: очки | HX5: 1 | HY5: 2 | HZ5: 3 | IA5: 4 | IB5: 5 | IC5: 6 | ID5: 7 | IE5: 8 | IF5: 9 | IG5: 10 | IH5: 11 | II5: 12 | IJ5: 13 | IK5: 14 | IL5: 15 | IM5: 16 | IN5: 17 | IO5: 18 | IP5: 19 | IQ5: 20 | IR5: 21 | IS5: сх | IT5: очки | IU5: =COUNT(FG5:IT5) -> 84 | IV5: Н. Стро | IW5: В. стро | IX5: место
A7: Место | B7: СУММА РЕЙТИНГОВЫЕ ОЧКИ | C7: 1-й этап РЕЙТИНГОВЫЕ ОЧКИ Коэф. 0,1 | D7: 2-й этап РЕЙТИНГОВЫЕ ОЧКИ Коэф. 0,1 | E7: 3-й этап РЕЙТИНГОВЫЕ ОЧКИ Коэф. 0,1 | F7: Ст. № | G7: Фамилия, Имя | H7: Раз ряд | I7: Город (край, район, область) | J7: Команда | K7: Мото | L7: ОЧКИ 1-й этап | M7: ОЧКИ 2-й этап | N7: ОЧКИ 3-й этап | O7: Сумма очков в личном зачете | P7: Сумма очк. в командном зачете
T8: первый заезд личные очки | AP8: второй заезд личные очки | BM8: Первый заезд командные очки | DD8: Второй заезд командные очки | EV8: 1 | EW8: 2 | FS8: первый этап
S9: 1 | T9: 2 | U9: 3 | V9: 4 | W9: 5 | X9: 6 | Y9: 7 | Z9: 8 | AA9: 9 | AB9: 10 | AC9: 11 | AD9: 12 | AE9: 13 | AF9: 14 | AG9: 15 | AH9: 16 | AI9: 17 | AJ9: 18 | AK9: 19 | AL9: 20 | AM9: 21 | AN9: сх | AP9: 1 | AQ9: 2 | AR9: 3 | AS9: 4 | AT9: 5 | AU9: 6 | AV9: 7 | AW9: 8 | AX9: 9 | AY9: 10 | AZ9: 11 | BA9: 12 | BB9: 13 | BC9: 14 | BD9: 15 | BE9: 16 | BF9: 17 | BG9: 18 | BH9: 19 | BI9: 20 | BK9: cx | BM9: 1 | BN9: 2 | BO9: 3 | BP9: 4 | BQ9: 5 | BR9: 6 | BS9: 7 | BT9: 8 | BU9: 9 | BV9: 10 | BW9: 11 | BX9: 12 | BY9: 13 | BZ9: 14 | CA9: 15 | CB9: 16 | CC9: 17 | CD9: 18 | CE9: 19 | CF9: 20 | CG9: 21 | CH9: 22 | CI9: 23 | CJ9: 24 | CK9: 25 | CL9: 26 | CM9: 27 | CN9: 28 | CO9: 29 | CP9: 30 | CQ9: 31 | CR9: 32 | CS9: 33 | CT9: 34 | CU9: 35 | CV9: 36 | CW9: 37 | CX9: 38 | CY9: 39 | CZ9: 40 | DD9: 1 | DE9: 2 | DF9: 3 | DG9: 4 | DH9: 5 | DI9: 6 | DJ9: 7 | DK9: 8 | DL9: 9 | DM9: 10 | DN9: 11 | DO9: 12 | DP9: 13 | DQ9: 14 | DR9: 15 | DS9: 16 | DT9: 17 | DU9: 18 | DV9: 19 | DW9: 20 | DX9: 21 | DY9: 22 | DZ9: 23 | EA9: 24 | EB9: 25 | EC9: 26 | ED9: 27 | EE9: 28 | EF9: 29 | EG9: 30 | EH9: 31 | EI9: 32 | EJ9: 33 | EK9: 34 | EL9: 35 | EM9: 36 | EN9: 37 | EO9: 38 | EP9: 39 | EQ9: 40 | EY9: мин | EZ9: Н. Стро | FA9: В. стро | FB9: место | FD9: чр1 | FE9: чр2 | FH9: первый заезд личные очки | GD9: второй заезд личные очки | HA9: Первый заезд командные очки | HX9: Второй заезд командные очки
A10: 1 | B10: =SUM(C10+D10+E10) -> 14 | C10: 4.8 | D10: 4.4 | E10: 4.8 | F10: 7 | G10: Насыров Даниэль | H10: б/р | I10: г. Новый Уренгой, Ямало-Ненецкий АО | J10: СТК "Факел" | K10: LYNX | L10: 22 | M10: 16 | N10: 22 | O10: =SUM(L10+M10+N10) -> 60 | P10: =#REF!+#REF! ->  | S10: =IF(#REF!=1,25,0) ->  | T10: =IF(#REF!=2,22,0) ->  | U10: =IF(#REF!=3,20,0) ->  | V10: =IF(#REF!=4,18,0) ->  | W10: =IF(#REF!=5,16,0) ->  | X10: =IF(#REF!=6,15,0) ->  | Y10: =IF(#REF!=7,14,0) ->  | Z10: =IF(#REF!=8,13,0) ->  | AA10: =IF(#REF!=9,12,0) ->  | AB10: =IF(#REF!=10,11,0) ->  | AC10: =IF(#REF!=11,10,0) ->  | AD10: =IF(#REF!=12,9,0) ->  | AE10: =IF(#REF!=13,8,0) ->  | AF10: =IF(#REF!=14,7,0) ->  | AG10: =IF(#REF!=15,6,0) ->  | AH10: =IF(#REF!=16,5,0) ->  | AI10: =IF(#REF!=17,4,0) ->  | AJ10: =IF(#REF!=18,3,0) ->  | AK10: =IF(#REF!=19,2,0) ->  | AL10: =IF(#REF!=20,1,0) ->  | AM10: =IF(#REF!>20,0,0) ->  | AN10: =IF(#REF!="сх",0,0) ->  | AO10: =SUM(S10:AM10) ->  | AP10: =IF(#REF!=1,25,0) ->  | AQ10: =IF(#REF!=2,22,0) ->  | AR10: =IF(#REF!=3,20,0) ->  | AS10: =IF(#REF!=4,18,0) ->  | AT10: =IF(#REF!=5,16,0) ->  | AU10: =IF(#REF!=6,15,0) ->  | AV10: =IF(#REF!=7,14,0) ->  | AW10: =IF(#REF!=8,13,0) ->  | AX10: =IF(#REF!=9,12,0) ->  | AY10: =IF(#REF!=10,11,0) ->  | AZ10: =IF(#REF!=11,10,0) ->  | BA10: =IF(#REF!=12,9,0) ->  | BB10: =IF(#REF!=13,8,0) ->  | BC10: =IF(#REF!=14,7,0) ->  | BD10: =IF(#REF!=15,6,0) ->  | BE10: =IF(#REF!=16,5,0) ->  | BF10: =IF(#REF!=17,4,0) ->  | BG10: =IF(#REF!=18,3,0) ->  | BH10: =IF(#REF!=19,2,0) ->  | BI10: =IF(#REF!=20,1,0) ->  | BJ10: =IF(#REF!>20,0,0) ->  | BK10: =IF(#REF!="сх",0,0) ->  | BL10: =SUM(AP10:BJ10) ->  | BM10: =IF(#REF!=1,45,0) ->  | BN10: =IF(#REF!=2,42,0) ->  | BO10: =IF(#REF!=3,40,0) ->  | BP10: =IF(#REF!=4,38,0) ->  | BQ10: =IF(#REF!=5,36,0) ->  | BR10: =IF(#REF!=6,35,0) ->  | BS10: =IF(#REF!=7,34,0) ->  | BT10: =IF(#REF!=8,33,0) ->  | BU10: =IF(#REF!=9,32,0) ->  | BV10: =IF(#REF!=10,31,0) ->  | BW10: =IF(#REF!=11,30,0) ->  | BX10: =IF(#REF!=12,29,0) ->  | BY10: =IF(#REF!=13,28,0) ->  | BZ10: =IF(#REF!=14,27,0) ->  | CA10: =IF(#REF!=15,26,0) ->  | CB10: =IF(#REF!=16,25,0) ->  | CC10: =IF(#REF!=17,24,0) ->  | CD10: =IF(#REF!=18,23,0) ->  | CE10: =IF(#REF!=19,22,0) ->  | CF10: =IF(#REF!=20,21,0) ->  | CG10: =IF(#REF!=21,20,0) ->  | CH10: =IF(#REF!=22,19,0) ->  | CI10: =IF(#REF!=23,18,0) ->  | CJ10: =IF(#REF!=24,17,0) ->  | CK10: =IF(#REF!=25,16,0) ->  | CL10: =IF(#REF!=26,15,0) ->  | CM10: =IF(#REF!=27,14,0) ->  | CN10: =IF(#REF!=28,13,0) ->  | CO10: =IF(#REF!=29,12,0) ->  | CP10: =IF(#REF!=30,11,0) ->  | CQ10: =IF(#REF!=31,10,0) ->  | CR10: =IF(#REF!=32,9,0) ->  | CS10: =IF(#REF!=33,8,0) ->  | CT10: =IF(#REF!=34,7,0) ->  | CU10: =IF(#REF!=35,6,0) ->  | CV10: =IF(#REF!=36,5,0) ->  | CW10: =IF(#REF!=37,4,0) ->  | CX10: =IF(#REF!=38,3,0) ->  | CY10: =IF(#REF!=39,2,0) ->  | CZ10: =IF(#REF!=40,1,0) ->  | DA10: =IF(#REF!>20,0,0) ->  | DB10: =IF(#REF!="сх",0,0) ->  | DC10: =SUM(BM10:DB10) ->  | DD10: =IF(#REF!=1,45,0) ->  | DE10: =IF(#REF!=2,42,0) ->  | DF10: =IF(#REF!=3,40,0) ->  | DG10: =IF(#REF!=4,38,0) ->  | DH10: =IF(#REF!=5,36,0) ->  | DI10: =IF(#REF!=6,35,0) ->  | DJ10: =IF(#REF!=7,34,0) ->  | DK10: =IF(#REF!=8,33,0) ->  | DL10: =IF(#REF!=9,32,0) ->  | DM10: =IF(#REF!=10,31,0) ->  | DN10: =IF(#REF!=11,30,0) ->  | DO10: =IF(#REF!=12,29,0) ->  | DP10: =IF(#REF!=13,28,0) ->  | DQ10: =IF(#REF!=14,27,0) ->  | DR10: =IF(#REF!=15,26,0) ->  | DS10: =IF(#REF!=16,25,0) ->  | DT10: =IF(#REF!=17,24,0) ->  | DU10: =IF(#REF!=18,23,0) ->  | DV10: =IF(#REF!=19,22,0) ->  | DW10: =IF(#REF!=20,21,0) ->  | DX10: =IF(#REF!=21,20,0) ->  | DY10: =IF(#REF!=22,19,0) ->  | DZ10: =IF(#REF!=23,18,0) ->  | EA10: =IF(#REF!=24,17,0) ->  | EB10: =IF(#REF!=25,16,0) ->  | EC10: =IF(#REF!=26,15,0) ->  | ED10: =IF(#REF!=27,14,0) ->  | EE10: =IF(#REF!=28,13,0) ->  | EF10: =IF(#REF!=29,12,0) ->  | EG10: =IF(#REF!=30,11,0) ->  | EH10: =IF(#REF!=31,10,0) ->  | EI10: =IF(#REF!=32,9,0) ->  | EJ10: =IF(#REF!=33,8,0) ->  | EK10: =IF(#REF!=34,7,0) ->  | EL10: =IF(#REF!=35,6,0) ->  | EM10: =IF(#REF!=36,5,0) ->  | EN10: =IF(#REF!=37,4,0) ->  | EO10: =IF(#REF!=38,3,0) ->  | EP10: =IF(#REF!=39,2,0) ->  | EQ10: =IF(#REF!=40,1,0) ->  | ER10: =IF(#REF!>20,0,0) ->  | ES10: =IF(#REF!="сх",0,0) ->  | ET10: =SUM(DD10:ES10) ->  | EV10: =IF(#REF!="сх","ноль",IF(#REF!>0,#REF!,"Ноль")) ->  | EW10: =IF(#REF!="сх","ноль",IF(#REF!>0,#REF!,"Ноль")) ->  | EY10: =MIN(EV10,EW10) ->  | EZ10: =IF(O10=#REF!,IF(#REF!<#REF!,#REF!,FD10),#REF!) ->  | FA10: =IF(O10=#REF!,IF(#REF!<#REF!,0,1)) ->  | FB10: =IF(AND(EY10>=21,EY10<>0),EY10,IF(O10<#REF!,"СТОП",EZ10+FA10)) ->  | FD10: 15 | FE10: 16 | FG10: =IF(#REF!=1,25,0) ->  | FH10: =IF(#REF!=2,22,0) ->  | FI10: =IF(#REF!=3,20,0) ->  | FJ10: =IF(#REF!=4,18,0) ->  | FK10: =IF(#REF!=5,16,0) ->  | FL10: =IF(#REF!=6,15,0) ->  | FM10: =IF(#REF!=7,14,0) ->  | FN10: =IF(#REF!=8,13,0) ->  | FO10: =IF(#REF!=9,12,0) ->  | FP10: =IF(#REF!=10,11,0) ->  | FQ10: =IF(#REF!=11,10,0) ->  | FR10: =IF(#REF!=12,9,0) ->  | FS10: =IF(#REF!=13,8,0) ->  | FT10: =IF(#REF!=14,7,0) ->  | FU10: =IF(#REF!=15,6,0) ->  | FV10: =IF(#REF!=16,5,0) ->  | FW10: =IF(#REF!=17,4,0) ->  | FX10: =IF(#REF!=18,3,0) ->  | FY10: =IF(#REF!=19,2,0) ->  | FZ10: =IF(#REF!=20,1,0) ->  | GA10: =IF(#REF!>20,0,0) ->  | GB10: =IF(#REF!="сх",0,0) ->  | GC10: =SUM(FG10:GB10) ->  | GD10: =IF(#REF!=1,25,0) ->  | GE10: =IF(#REF!=2,22,0) ->  | GF10: =IF(#REF!=3,20,0) ->  | GG10: =IF(#REF!=4,18,0) ->  | GH10: =IF(#REF!=5,16,0) ->  | GI10: =IF(#REF!=6,15,0) ->  | GJ10: =IF(#REF!=7,14,0) ->  | GK10: =IF(#REF!=8,13,0) ->  | GL10: =IF(#REF!=9,12,0) ->  | GM10: =IF(#REF!=10,11,0) ->  | GN10: =IF(#REF!=11,10,0) ->  | GO10: =IF(#REF!=12,9,0) ->  | GP10: =IF(#REF!=13,8,0) ->  | GQ10: =IF(#REF!=14,7,0) ->  | GR10: =IF(#REF!=15,6,0) ->  | GS10: =IF(#REF!=16,5,0) ->  | GT10: =IF(#REF!=17,4,0) ->  | GU10: =IF(#REF!=18,3,0) ->  | GV10: =IF(#REF!=19,2,0) ->  | GW10: =IF(#REF!=20,1,0) ->  | GX10: =IF(#REF!>20,0,0) ->  | GY10: =IF(#REF!="сх",0,0) ->  | GZ10: =SUM(GD10:GY10) ->  | HA10: =IF(#REF!=1,100,0) ->  | HB10: =IF(#REF!=2,98,0) ->  | HC10: =IF(#REF!=3,95,0) ->  | HD10: =IF(#REF!=4,93,0) ->  | HE10: =IF(#REF!=5,90,0) ->  | HF10: =IF(#REF!=6,88,0) ->  | HG10: =IF(#REF!=7,85,0) ->  | HH10: =IF(#REF!=8,83,0) ->  | HI10: =IF(#REF!=9,80,0) ->  | HJ10: =IF(#REF!=10,78,0) ->  | HK10: =IF(#REF!=11,75,0) ->  | HL10: =IF(#REF!=12,73,0) ->  | HM10: =IF(#REF!=13,70,0) ->  | HN10: =IF(#REF!=14,68,0) ->  | HO10: =IF(#REF!=15,65,0) ->  | HP10: =IF(#REF!=16,63,0) ->  | HQ10: =IF(#REF!=17,60,0) ->  | HR10: =IF(#REF!=18,58,0) ->  | HS10: =IF(#REF!=19,55,0) ->  | HT10: =IF(#REF!=20,53,0) ->  | HU10: =IF(#REF!>20,0,0) ->  | HV10: =IF(#REF!="сх",0,0) ->  | HW10: =SUM(HA10:HV10) ->  | HX10: =IF(#REF!=1,100,0) ->  | HY10: =IF(#REF!=2,98,0) ->  | HZ10: =IF(#REF!=3,95,0) ->  | IA10: =IF(#REF!=4,93,0) ->  | IB10: =IF(#REF!=5,90,0) ->  | IC10: =IF(#REF!=6,88,0) ->  | ID10: =IF(#REF!=7,85,0) ->  | IE10: =IF(#REF!=8,83,0) ->  | IF10: =IF(#REF!=9,80,0) ->  | IG10: =IF(#REF!=10,78,0) ->  | IH10: =IF(#REF!=11,75,0) ->  | II10: =IF(#REF!=12,73,0) ->  | IJ10: =IF(#REF!=13,70,0) ->  | IK10: =IF(#REF!=14,68,0) ->  | IL10: =IF(#REF!=15,65,0) ->  | IM10: =IF(#REF!=16,63,0) ->  | IN10: =IF(#REF!=17,60,0) ->  | IO10: =IF(#REF!=18,58,0) ->  | IP10: =IF(#REF!=19,55,0) ->  | IQ10: =IF(#REF!=20,53,0) ->  | IR10: =IF(#REF!>20,0,0) ->  | IS10: =IF(#REF!="сх",0,0) ->  | IT10: =SUM(HX10:IS10) -> 
A11: 2 | B11: =SUM(C11+D11+E11) -> 13.3 | C11: 4.6 | D11: 4.5 | E11: 4.2 | F11: 5 | G11: Дубовик Степан | H11: б/р | I11: г. Новый Уренгой, Ямало-Ненецкий АО | J11: СТК "Факел" | K11: Arctic Cat | L11: 20 | M11: 18 | N11: 14 | O11: =SUM(L11+M11+N11) -> 52 | P11: =#REF!+#REF! ->  | S11: =IF(#REF!=1,25,0) ->  | T11: =IF(#REF!=2,22,0) ->  | U11: =IF(#REF!=3,20,0) ->  | V11: =IF(#REF!=4,18,0) ->  | W11: =IF(#REF!=5,16,0) ->  | X11: =IF(#REF!=6,15,0) ->  | Y11: =IF(#REF!=7,14,0) ->  | Z11: =IF(#REF!=8,13,0) ->  | AA11: =IF(#REF!=9,12,0) ->  | AB11: =IF(#REF!=10,11,0) ->  | AC11: =IF(#REF!=11,10,0) ->  | AD11: =IF(#REF!=12,9,0) ->  | AE11: =IF(#REF!=13,8,0) ->  | AF11: =IF(#REF!=14,7,0) ->  | AG11: =IF(#REF!=15,6,0) ->  | AH11: =IF(#REF!=16,5,0) ->  | AI11: =IF(#REF!=17,4,0) ->  | AJ11: =IF(#REF!=18,3,0) ->  | AK11: =IF(#REF!=19,2,0) ->  | AL11: =IF(#REF!=20,1,0) ->  | AM11: =IF(#REF!>20,0,0) ->  | AN11: =IF(#REF!="сх",0,0) ->  | AO11: =SUM(S11:AM11) ->  | AP11: =IF(#REF!=1,25,0) ->  | AQ11: =IF(#REF!=2,22,0) ->  | AR11: =IF(#REF!=3,20,0) ->  | AS11: =IF(#REF!=4,18,0) ->  | AT11: =IF(#REF!=5,16,0) ->  | AU11: =IF(#REF!=6,15,0) ->  | AV11: =IF(#REF!=7,14,0) ->  | AW11: =IF(#REF!=8,13,0) ->  | AX11: =IF(#REF!=9,12,0) ->  | AY11: =IF(#REF!=10,11,0) ->  | AZ11: =IF(#REF!=11,10,0) ->  | BA11: =IF(#REF!=12,9,0) ->  | BB11: =IF(#REF!=13,8,0) ->  | BC11: =IF(#REF!=14,7,0) ->  | BD11: =IF(#REF!=15,6,0) ->  | BE11: =IF(#REF!=16,5,0) ->  | BF11: =IF(#REF!=17,4,0) ->  | BG11: =IF(#REF!=18,3,0) ->  | BH11: =IF(#REF!=19,2,0) ->  | BI11: =IF(#REF!=20,1,0) ->  | BJ11: =IF(#REF!>20,0,0) ->  | BK11: =IF(#REF!="сх",0,0) ->  | BL11: =SUM(AP11:BJ11) ->  | BM11: =IF(#REF!=1,45,0) ->  | BN11: =IF(#REF!=2,42,0) ->  | BO11: =IF(#REF!=3,40,0) ->  | BP11: =IF(#REF!=4,38,0) ->  | BQ11: =IF(#REF!=5,36,0) ->  | BR11: =IF(#REF!=6,35,0) ->  | BS11: =IF(#REF!=7,34,0) ->  | BT11: =IF(#REF!=8,33,0) ->  | BU11: =IF(#REF!=9,32,0) ->  | BV11: =IF(#REF!=10,31,0) ->  | BW11: =IF(#REF!=11,30,0) ->  | BX11: =IF(#REF!=12,29,0) ->  | BY11: =IF(#REF!=13,28,0) ->  | BZ11: =IF(#REF!=14,27,0) ->  | CA11: =IF(#REF!=15,26,0) ->  | CB11: =IF(#REF!=16,25,0) ->  | CC11: =IF(#REF!=17,24,0) ->  | CD11: =IF(#REF!=18,23,0) ->  | CE11: =IF(#REF!=19,22,0) ->  | CF11: =IF(#REF!=20,21,0) ->  | CG11: =IF(#REF!=21,20,0) ->  | CH11: =IF(#REF!=22,19,0) ->  | CI11: =IF(#REF!=23,18,0) ->  | CJ11: =IF(#REF!=24,17,0) ->  | CK11: =IF(#REF!=25,16,0) ->  | CL11: =IF(#REF!=26,15,0) ->  | CM11: =IF(#REF!=27,14,0) ->  | CN11: =IF(#REF!=28,13,0) ->  | CO11: =IF(#REF!=29,12,0) ->  | CP11: =IF(#REF!=30,11,0) ->  | CQ11: =IF(#REF!=31,10,0) ->  | CR11: =IF(#REF!=32,9,0) ->  | CS11: =IF(#REF!=33,8,0) ->  | CT11: =IF(#REF!=34,7,0) ->  | CU11: =IF(#REF!=35,6,0) ->  | CV11: =IF(#REF!=36,5,0) ->  | CW11: =IF(#REF!=37,4,0) ->  | CX11: =IF(#REF!=38,3,0) ->  | CY11: =IF(#REF!=39,2,0) ->  | CZ11: =IF(#REF!=40,1,0) ->  | DA11: =IF(#REF!>20,0,0) ->  | DB11: =IF(#REF!="сх",0,0) ->  | DC11: =SUM(BM11:DB11) ->  | DD11: =IF(#REF!=1,45,0) ->  | DE11: =IF(#REF!=2,42,0) ->  | DF11: =IF(#REF!=3,40,0) ->  | DG11: =IF(#REF!=4,38,0) ->  | DH11: =IF(#REF!=5,36,0) ->  | DI11: =IF(#REF!=6,35,0) ->  | DJ11: =IF(#REF!=7,34,0) ->  | DK11: =IF(#REF!=8,33,0) ->  | DL11: =IF(#REF!=9,32,0) ->  | DM11: =IF(#REF!=10,31,0) ->  | DN11: =IF(#REF!=11,30,0) ->  | DO11: =IF(#REF!=12,29,0) ->  | DP11: =IF(#REF!=13,28,0) ->  | DQ11: =IF(#REF!=14,27,0) ->  | DR11: =IF(#REF!=15,26,0) ->  | DS11: =IF(#REF!=16,25,0) ->  | DT11: =IF(#REF!=17,24,0) ->  | DU11: =IF(#REF!=18,23,0) ->  | DV11: =IF(#REF!=19,22,0) ->  | DW11: =IF(#REF!=20,21,0) ->  | DX11: =IF(#REF!=21,20,0) ->  | DY11: =IF(#REF!=22,19,0) ->  | DZ11: =IF(#REF!=23,18,0) ->  | EA11: =IF(#REF!=24,17,0) ->  | EB11: =IF(#REF!=25,16,0) ->  | EC11: =IF(#REF!=26,15,0) ->  | ED11: =IF(#REF!=27,14,0) ->  | EE11: =IF(#REF!=28,13,0) ->  | EF11: =IF(#REF!=29,12,0) ->  | EG11: =IF(#REF!=30,11,0) ->  | EH11: =IF(#REF!=31,10,0) ->  | EI11: =IF(#REF!=32,9,0) ->  | EJ11: =IF(#REF!=33,8,0) ->  | EK11: =IF(#REF!=34,7,0) ->  | EL11: =IF(#REF!=35,6,0) ->  | EM11: =IF(#REF!=36,5,0) ->  | EN11: =IF(#REF!=37,4,0) ->  | EO11: =IF(#REF!=38,3,0) ->  | EP11: =IF(#REF!=39,2,0) ->  | EQ11: =IF(#REF!=40,1,0) ->  | ER11: =IF(#REF!>20,0,0) ->  | ES11: =IF(#REF!="сх",0,0) ->  | ET11: =SUM(DD11:ES11) ->  | EV11: =IF(#REF!="сх","ноль",IF(#REF!>0,#REF!,"Ноль")) ->  | EW11: =IF(#REF!="сх","ноль",IF(#REF!>0,#REF!,"Ноль")) ->  | EY11: =MIN(EV11,EW11) ->  | EZ11: =IF(O11=#REF!,IF(#REF!<#REF!,#REF!,FD11),#REF!) ->  | FA11: =IF(O11=#REF!,IF(#REF!<#REF!,0,1)) ->  | FB11: =IF(AND(EY11>=21,EY11<>0),EY11,IF(O11<#REF!,"СТОП",EZ11+FA11)) ->  | FD11: 15 | FE11: 16 | FG11: =IF(#REF!=1,25,0) ->  | FH11: =IF(#REF!=2,22,0) ->  | FI11: =IF(#REF!=3,20,0) ->  | FJ11: =IF(#REF!=4,18,0) ->  | FK11: =IF(#REF!=5,16,0) ->  | FL11: =IF(#REF!=6,15,0) ->  | FM11: =IF(#REF!=7,14,0) ->  | FN11: =IF(#REF!=8,13,0) ->  | FO11: =IF(#REF!=9,12,0) ->  | FP11: =IF(#REF!=10,11,0) ->  | FQ11: =IF(#REF!=11,10,0) ->  | FR11: =IF(#REF!=12,9,0) ->  | FS11: =IF(#REF!=13,8,0) ->  | FT11: =IF(#REF!=14,7,0) ->  | FU11: =IF(#REF!=15,6,0) ->  | FV11: =IF(#REF!=16,5,0) ->  | FW11: =IF(#REF!=17,4,0) ->  | FX11: =IF(#REF!=18,3,0) ->  | FY11: =IF(#REF!=19,2,0) ->  | FZ11: =IF(#REF!=20,1,0) ->  | GA11: =IF(#REF!>20,0,0) ->  | GB11: =IF(#REF!="сх",0,0) ->  | GC11: =SUM(FG11:GB11) ->  | GD11: =IF(#REF!=1,25,0) ->  | GE11: =IF(#REF!=2,22,0) ->  | GF11: =IF(#REF!=3,20,0) ->  | GG11: =IF(#REF!=4,18,0) ->  | GH11: =IF(#REF!=5,16,0) ->  | GI11: =IF(#REF!=6,15,0) ->  | GJ11: =IF(#REF!=7,14,0) ->  | GK11: =IF(#REF!=8,13,0) ->  | GL11: =IF(#REF!=9,12,0) ->  | GM11: =IF(#REF!=10,11,0) ->  | GN11: =IF(#REF!=11,10,0) ->  | GO11: =IF(#REF!=12,9,0) ->  | GP11: =IF(#REF!=13,8,0) ->  | GQ11: =IF(#REF!=14,7,0) ->  | GR11: =IF(#REF!=15,6,0) ->  | GS11: =IF(#REF!=16,5,0) ->  | GT11: =IF(#REF!=17,4,0) ->  | GU11: =IF(#REF!=18,3,0) ->  | GV11: =IF(#REF!=19,2,0) ->  | GW11: =IF(#REF!=20,1,0) ->  | GX11: =IF(#REF!>20,0,0) ->  | GY11: =IF(#REF!="сх",0,0) ->  | GZ11: =SUM(GD11:GY11) ->  | HA11: =IF(#REF!=1,100,0) ->  | HB11: =IF(#REF!=2,98,0) ->  | HC11: =IF(#REF!=3,95,0) ->  | HD11: =IF(#REF!=4,93,0) ->  | HE11: =IF(#REF!=5,90,0) ->  | HF11: =IF(#REF!=6,88,0) ->  | HG11: =IF(#REF!=7,85,0) ->  | HH11: =IF(#REF!=8,83,0) ->  | HI11: =IF(#REF!=9,80,0) ->  | HJ11: =IF(#REF!=10,78,0) ->  | HK11: =IF(#REF!=11,75,0) ->  | HL11: =IF(#REF!=12,73,0) ->  | HM11: =IF(#REF!=13,70,0) ->  | HN11: =IF(#REF!=14,68,0) ->  | HO11: =IF(#REF!=15,65,0) ->  | HP11: =IF(#REF!=16,63,0) ->  | HQ11: =IF(#REF!=17,60,0) ->  | HR11: =IF(#REF!=18,58,0) ->  | HS11: =IF(#REF!=19,55,0) ->  | HT11: =IF(#REF!=20,53,0) ->  | HU11: =IF(#REF!>20,0,0) ->  | HV11: =IF(#REF!="сх",0,0) ->  | HW11: =SUM(HA11:HV11) ->  | HX11: =IF(#REF!=1,100,0) ->  | HY11: =IF(#REF!=2,98,0) ->  | HZ11: =IF(#REF!=3,95,0) ->  | IA11: =IF(#REF!=4,93,0) ->  | IB11: =IF(#REF!=5,90,0) ->  | IC11: =IF(#REF!=6,88,0) ->  | ID11: =IF(#REF!=7,85,0) ->  | IE11: =IF(#REF!=8,83,0) ->  | IF11: =IF(#REF!=9,80,0) ->  | IG11: =IF(#REF!=10,78,0) ->  | IH11: =IF(#REF!=11,75,0) ->  | II11: =IF(#REF!=12,73,0) ->  | IJ11: =IF(#REF!=13,70,0) ->  | IK11: =IF(#REF!=14,68,0) ->  | IL11: =IF(#REF!=15,65,0) ->  | IM11: =IF(#REF!=16,63,0) ->  | IN11: =IF(#REF!=17,60,0) ->  | IO11: =IF(#REF!=18,58,0) ->  | IP11: =IF(#REF!=19,55,0) ->  | IQ11: =IF(#REF!=20,53,0) ->  | IR11: =IF(#REF!>20,0,0) ->  | IS11: =IF(#REF!="сх",0,0) ->  | IT11: =SUM(HX11:IS11) -> 
A12: 3 | B12: =SUM(C12+D12+E12) -> 9.3 | C12: 0 | D12: 5 | E12: 4.3 | F12: 01 | G12: Вобликов Никита | H12: б/р | I12: г. Муравленко, Ямало-Ненецкий АО | J12: "Миг" | K12: Arctic-Cat | L12: 0 | M12: 25 | N12: 15 | O12: =SUM(L12+M12+N12) -> 40
A13: 4 | B13: =SUM(C13+D13+E13) -> 9.2 | C13: 0 | D13: 4.8 | E13: 4.4 | F13: 02 | G13: Аксаметов Родион | H13: б/р | I13: г. Муравленко, Ямало-Ненецкий АО | J13: "Миг" | K13: Arctic-Cat | L13: 0 | M13: 22 | N13: 16 | O13: =SUM(L13+M13+N13) -> 38
A14: 5 | B14: =SUM(C14+D14+E14) -> 9.1 | C14: 0 | D14: 4.6 | E14: 4.5 | F14: 03 | G14: Арчибасов Артем | H14: б/р | I14: г. Муравленко, Ямало-Ненецкий АО | J14: "Миг" | K14: Arctic-Cat | L14: 0 | M14: 20 | N14: 18 | O14: =SUM(L14+M14+N14) -> 38
A15: 6 | B15: =SUM(C15+D15+E15) -> 8.8 | C15: 0 | D15: 4.2 | E15: 4.6 | F15: 04 | G15: Русанов Данил | H15: б/р | I15: г. Муравленко, Ямало-Ненецкий АО | J15: "Миг" | K15: Arctic-Cat | L15: 0 | M15: 14 | N15: 20 | O15: =SUM(L15+M15+N15) -> 34
A16: 7 | B16: =SUM(C16+D16+E16) -> 4.2 | E16: 4.2 | F16: 13 | G16: Марков Матвей | H16: б/р | I16: г. Новый Уренгой, Ямало-Ненецкий АО | J16: СТК "Факел" | K16: Arctic-Cat | L16: 0 | M16: 0 | N16: 0 | O16: =SUM(L16+M16+N16) -> 0
A17: 8 | B17: =SUM(C17+D17+E17) -> 8.6 | C17: 4.5 | D17: 0 | E17: 4.1 | F17: 22 | G17: Сергеев Владислав | H17: б/р | I17: г. Новый Уренгой, Ямало-Ненецкий АО | J17: СТК "Факел" | K17: LYNX | L17: 18 | M17: 0 | N17: 13 | O17: =SUM(L17+M17+N17) -> 31
A18: 9 | B18: =SUM(C18+D18+E18) -> 8.7 | C18: 4.4 | D18: 4.3 | E18: 0 | F18: 4 | G18: Бармин Ярослав | H18: б/р | I18: г. Новый Уренгой, Ямало-Ненецкий АО | J18: СТК "Ямбург" | K18: Тайга 120 | L18: 16 | M18: 15 | N18: 0 | O18: =SUM(L18+M18+N18) -> 31
A19: 10 | B19: =SUM(C19+D19+E19) -> 5 | C19: 0 | D19: 0 | E19: 5 | F19: 13 | G19: Марков Матвей | H19: б/р | I19: г. Новый Уренгой, Ямало-Ненецкий АО | J19: СТК "Факел" | K19: Arctic-Cat | L19: 0 | M19: 0 | N19: 25 | O19: =SUM(L19+M19+N19) -> 25
A20: 11 | B20: =SUM(C20+D20+E20) -> 5 | C20: 5 | D20: 0 | E20: 0 | F20: 13 | G20: Чернюк Дмитрий | H20: б/р | I20: г. Новый Уренгой, Ямало-Ненецкий АО | J20: СТК "Факел" | K20: LYNX | L20: 25 | M20: 0 | N20: 0 | O20: =SUM(L20+M20+N20) -> 25
A21: 12 | B21: =SUM(C21+D21+E21) -> 8 | C21: 0 | D21: 4.1 | E21: 3.9 | F21: 23 | G21: Дмитриев Даниил | H21: б/р | I21: г. Новый Уренгой, Ямало-Ненецкий АО | J21: МАУ МЦ "НОРД" | K21: Arctic-Cat | L21: 0 | M21: 13 | N21: 11 | O21: =SUM(L21+M21+N21) -> 24
A22: 13 | B22: =SUM(C22+D22+E22) -> 4 | C22: 0 | D22: 0 | E22: 4 | F22: 6 | G22: Журавлев Иван | H22: б/р | I22: г. Надым, Ямало-Ненецкий АО | J22: СТК "Форсаж" | K22: Yam | L22: 0 | M22: 0 | N22: 12 | O22: =SUM(L22+M22+N22) -> 12
A28: Главный судья соревнований
A29: судья Всероссийской категории: А. Б. Стеблинский (г. Тюмень; лицензия МФР А 144)
A31: Главный секретарь соревнований
A32: судья Всероссийской категории: А. Ю. Иванов (г. Москва/лицензия МФР А 105; FIM 11245)

Sheet Мальчики 2
A2: Показательные выступления в рамках Кубка ЯНАО по кроссу на снегоходах 2016/2017 года.
A3: СВОДНЫЙ ПРОТОКОЛ ЛИЧНОГО ЗАЧЕТА по сумме 3-х этапов. | FS3: первый этап
A4: 1-й этап: 03 - 04 декабря 2016 года - г. Новый Уренгой, Ямало-Ненецкий АО; 2-й этап: 24 - 26 марта 2017 года - г. Муравленко, Ямало-Ненецкий АО; 3-й этап: 31 марта - 02 апреля 2017 года - г. Новый Уренгой, Ямало-Ненецкий АО. | FH4: первый заезд личные очки | GD4: второй заезд личные очки | HA4: Первый заезд командные очки | HX4: Второй заезд командные очки
A5: Класс "Мальчики 2". | FG5: 1 | FH5: 2 | FI5: 3 | FJ5: 4 | FK5: 5 | FL5: 6 | FM5: 7 | FN5: 8 | FO5: 9 | FP5: 10 | FQ5: 11 | FR5: 12 | FS5: 13 | FT5: 14 | FU5: 15 | FV5: 16 | FW5: 17 | FX5: 18 | FY5: 19 | FZ5: 20 | GA5: 21 | GB5: сх | GC5: Sym | GD5: 1 | GE5: 2 | GF5: 3 | GG5: 4 | GH5: 5 | GI5: 6 | GJ5: 7 | GK5: 8 | GL5: 9 | GM5: 10 | GN5: 11 | GO5: 12 | GP5: 13 | GQ5: 14 | GR5: 15 | GS5: 16 | GT5: 17 | GU5: 18 | GV5: 19 | GW5: 20 | GX5: 21 | GY5: cx | GZ5: sym | HA5: 1 | HB5: 2 | HC5: 3 | HD5: 4 | HE5: 5 | HF5: 6 | HG5: 7 | HH5: 8 | HI5: 9 | HJ5: 10 | HK5: 11 | HL5: 12 | HM5: 13 | HN5: 14 | HO5: 15 | HP5: 16 | HQ5: 17 | HR5: 18 | HS5: 19 | HT5: 20 | HU5: 21 | HV5: сх | HW5: очки | HX5: 1 | HY5: 2 | HZ5: 3 | IA5: 4 | IB5: 5 | IC5: 6 | ID5: 7 | IE5: 8 | IF5: 9 | IG5: 10 | IH5: 11 | II5: 12 | IJ5: 13 | IK5: 14 | IL5: 15 | IM5: 16 | IN5: 17 | IO5: 18 | IP5: 19 | IQ5: 20 | IR5: 21 | IS5: сх | IT5: очки | IU5: =COUNT(FG5:IT5) -> 84 | IV5: Н. Стро | IW5: В. стро | IX5: место
A7: Место | B7: СУММА РЕЙТИНГОВЫЕ ОЧКИ | C7: 1-й этап РЕЙТИНГОВЫЕ ОЧКИ Коэф. 0,1 | D7: 2-й этап РЕЙТИНГОВЫЕ ОЧКИ Коэф. 0,1 | E7: 3-й этап РЕЙТИНГОВЫЕ ОЧКИ Коэф. 0,1 | F7: Ст. № | G7: Фамилия, Имя | H7: Раз ряд | I7: Город (край, район, область) | J7: Команда | K7: Мото | L7: ОЧКИ 1-й этап | M7: ОЧКИ 2-й этап | N7: ОЧКИ 3-й этап | O7: Сумма очков в личном зачете | P7: Сумма очк. в командном зачете
T8: первый заезд личные очки | AP8: второй заезд личные очки | BM8: Первый заезд командные очки | DD8: Второй заезд командные очки | EV8: 1 | EW8: 2 | FS8: первый этап
S9: 1 | T9: 2 | U9: 3 | V9: 4 | W9: 5 | X9: 6 | Y9: 7 | Z9: 8 | AA9: 9 | AB9: 10 | AC9: 11 | AD9: 12 | AE9: 13 | AF9: 14 | AG9: 15 | AH9: 16 | AI9: 17 | AJ9: 18 | AK9: 19 | AL9: 20 | AM9: 21 | AN9: сх | AP9: 1 | AQ9: 2 | AR9: 3 | AS9: 4 | AT9: 5 | AU9: 6 | AV9: 7 | AW9: 8 | AX9: 9 | AY9: 10 | AZ9: 11 | BA9: 12 | BB9: 13 | BC9: 14 | BD9: 15 | BE9: 16 | BF9: 17 | BG9: 18 | BH9: 19 | BI9: 20 | BK9: cx | BM9: 1 | BN9: 2 | BO9: 3 | BP9: 4 | BQ9: 5 | BR9: 6 | BS9: 7 | BT9: 8 | BU9: 9 | BV9: 10 | BW9: 11 | BX9: 12 | BY9: 13 | BZ9: 14 | CA9: 15 | CB9: 16 | CC9: 17 | CD9: 18 | CE9: 19 | CF9: 20 | CG9: 21 | CH9: 22 | CI9: 23 | CJ9: 24 | CK9: 25 | CL9: 26 | CM9: 27 | CN9: 28 | CO9: 29 | CP9: 30 | CQ9: 31 | CR9: 32 | CS9: 33 | CT9: 34 | CU9: 35 | CV9: 36 | CW9: 37 | CX9: 38 | CY9: 39 | CZ9: 40 | DD9: 1 | DE9: 2 | DF9: 3 | DG9: 4 | DH9: 5 | DI9: 6 | DJ9: 7 | DK9: 8 | DL9: 9 | DM9: 10 | DN9: 11 | DO9: 12 | DP9: 13 | DQ9: 14 | DR9: 15 | DS9: 16 | DT9: 17 | DU9: 18 | DV9: 19 | DW9: 20 | DX9: 21 | DY9: 22 | DZ9: 23 | EA9: 24 | EB9: 25 | EC9: 26 | ED9: 27 | EE9: 28 | EF9: 29 | EG9: 30 | EH9: 31 | EI9: 32 | EJ9: 33 | EK9: 34 | EL9: 35 | EM9: 36 | EN9: 37 | EO9: 38 | EP9: 39 | EQ9: 40 | EY9: мин | EZ9: Н. Стро | FA9: В. стро | FB9: место | FD9: чр1 | FE9: чр2 | FH9: первый заезд личные очки | GD9: второй заезд личные очки | HA9: Первый заезд командные очки | HX9: Второй заезд командные очки
A10: 1 | B10: =SUM(E10+D10+C10) -> 15 | C10: 5 | D10: 5 | E10: 5 | F10: 33 | G10: Захаров Александр | H10: б/р | I10: г. Новый Уренгой, Ямало-Ненецкий АО | J10: СТК "Факел" | K10: LYNX | L10: 25 | M10: 25 | N10: 25 | O10: =SUM(L10+M10+N10) -> 75 | P10: =#REF!+#REF! ->  | S10: =IF(#REF!=1,25,0) ->  | T10: =IF(#REF!=2,22,0) ->  | U10: =IF(#REF!=3,20,0) ->  | V10: =IF(#REF!=4,18,0) ->  | W10: =IF(#REF!=5,16,0) ->  | X10: =IF(#REF!=6,15,0) ->  | Y10: =IF(#REF!=7,14,0) ->  | Z10: =IF(#REF!=8,13,0) ->  | AA10: =IF(#REF!=9,12,0) ->  | AB10: =IF(#REF!=10,11,0) ->  | AC10: =IF(#REF!=11,10,0) ->  | AD10: =IF(#REF!=12,9,0) ->  | AE10: =IF(#REF!=13,8,0) ->  | AF10: =IF(#REF!=14,7,0) ->  | AG10: =IF(#REF!=15,6,0) ->  | AH10: =IF(#REF!=16,5,0) ->  | AI10: =IF(#REF!=17,4,0) ->  | AJ10: =IF(#REF!=18,3,0) ->  | AK10: =IF(#REF!=19,2,0) ->  | AL10: =IF(#REF!=20,1,0) ->  | AM10: =IF(#REF!>20,0,0) ->  | AN10: =IF(#REF!="сх",0,0) ->  | AO10: =SUM(S10:AM10) ->  | AP10: =IF(#REF!=1,25,0) ->  | AQ10: =IF(#REF!=2,22,0) ->  | AR10: =IF(#REF!=3,20,0) ->  | AS10: =IF(#REF!=4,18,0) ->  | AT10: =IF(#REF!=5,16,0) ->  | AU10: =IF(#REF!=6,15,0) ->  | AV10: =IF(#REF!=7,14,0) ->  | AW10: =IF(#REF!=8,13,0) ->  | AX10: =IF(#REF!=9,12,0) ->  | AY10: =IF(#REF!=10,11,0) ->  | AZ10: =IF(#REF!=11,10,0) ->  | BA10: =IF(#REF!=12,9,0) ->  | BB10: =IF(#REF!=13,8,0) ->  | BC10: =IF(#REF!=14,7,0) ->  | BD10: =IF(#REF!=15,6,0) ->  | BE10: =IF(#REF!=16,5,0) ->  | BF10: =IF(#REF!=17,4,0) ->  | BG10: =IF(#REF!=18,3,0) ->  | BH10: =IF(#REF!=19,2,0) ->  | BI10: =IF(#REF!=20,1,0) ->  | BJ10: =IF(#REF!>20,0,0) ->  | BK10: =IF(#REF!="сх",0,0) ->  | BL10: =SUM(AP10:BJ10) ->  | BM10: =IF(#REF!=1,45,0) ->  | BN10: =IF(#REF!=2,42,0) ->  | BO10: =IF(#REF!=3,40,0) ->  | BP10: =IF(#REF!=4,38,0) ->  | BQ10: =IF(#REF!=5,36,0) ->  | BR10: =IF(#REF!=6,35,0) ->  | BS10: =IF(#REF!=7,34,0) ->  | BT10: =IF(#REF!=8,33,0) ->  | BU10: =IF(#REF!=9,32,0) ->  | BV10: =IF(#REF!=10,31,0) ->  | BW10: =IF(#REF!=11,30,0) ->  | BX10: =IF(#REF!=12,29,0) ->  | BY10: =IF(#REF!=13,28,0) ->  | BZ10: =IF(#REF!=14,27,0) ->  | CA10: =IF(#REF!=15,26,0) ->  | CB10: =IF(#REF!=16,25,0) ->  | CC10: =IF(#REF!=17,24,0) ->  | CD10: =IF(#REF!=18,23,0) ->  | CE10: =IF(#REF!=19,22,0) ->  | CF10: =IF(#REF!=20,21,0) ->  | CG10: =IF(#REF!=21,20,0) ->  | CH10: =IF(#REF!=22,19,0) ->  | CI10: =IF(#REF!=23,18,0) ->  | CJ10: =IF(#REF!=24,17,0) ->  | CK10: =IF(#REF!=25,16,0) ->  | CL10: =IF(#REF!=26,15,0) ->  | CM10: =IF(#REF!=27,14,0) ->  | CN10: =IF(#REF!=28,13,0) ->  | CO10: =IF(#REF!=29,12,0) ->  | CP10: =IF(#REF!=30,11,0) ->  | CQ10: =IF(#REF!=31,10,0) ->  | CR10: =IF(#REF!=32,9,0) ->  | CS10: =IF(#REF!=33,8,0) ->  | CT10: =IF(#REF!=34,7,0) ->  | CU10: =IF(#REF!=35,6,0) ->  | CV10: =IF(#REF!=36,5,0) ->  | CW10: =IF(#REF!=37,4,0) ->  | CX10: =IF(#REF!=38,3,0) ->  | CY10: =IF(#REF!=39,2,0) ->  | CZ10: =IF(#REF!=40,1,0) ->  | DA10: =IF(#REF!>20,0,0) ->  | DB10: =IF(#REF!="сх",0,0) ->  | DC10: =SUM(BM10:DB10) ->  | DD10: =IF(#REF!=1,45,0) ->  | DE10: =IF(#REF!=2,42,0) ->  | DF10: =IF(#REF!=3,40,0) ->  | DG10: =IF(#REF!=4,38,0) ->  | DH10: =IF(#REF!=5,36,0) ->  | DI10: =IF(#REF!=6,35,0) ->  | DJ10: =IF(#REF!=7,34,0) ->  | DK10: =IF(#REF!=8,33,0) ->  | DL10: =IF(#REF!=9,32,0) ->  | DM10: =IF(#REF!=10,31,0) ->  | DN10: =IF(#REF!=11,30,0) ->  | DO10: =IF(#REF!=12,29,0) ->  | DP10: =IF(#REF!=13,28,0) ->  | DQ10: =IF(#REF!=14,27,0) ->  | DR10: =IF(#REF!=15,26,0) ->  | DS10: =IF(#REF!=16,25,0) ->  | DT10: =IF(#REF!=17,24,0) ->  | DU10: =IF(#REF!=18,23,0) ->  | DV10: =IF(#REF!=19,22,0) ->  | DW10: =IF(#REF!=20,21,0) ->  | DX10: =IF(#REF!=21,20,0) ->  | DY10: =IF(#REF!=22,19,0) ->  | DZ10: =IF(#REF!=23,18,0) ->  | EA10: =IF(#REF!=24,17,0) ->  | EB10: =IF(#REF!=25,16,0) ->  | EC10: =IF(#REF!=26,15,0) ->  | ED10: =IF(#REF!=27,14,0) ->  | EE10: =IF(#REF!=28,13,0) ->  | EF10: =IF(#REF!=29,12,0) ->  | EG10: =IF(#REF!=30,11,0) ->  | EH10: =IF(#REF!=31,10,0) ->  | EI10: =IF(#REF!=32,9,0) ->  | EJ10: =IF(#REF!=33,8,0) ->  | EK10: =IF(#REF!=34,7,0) ->  | EL10: =IF(#REF!=35,6,0) ->  | EM10: =IF(#REF!=36,5,0) ->  | EN10: =IF(#REF!=37,4,0) ->  | EO10: =IF(#REF!=38,3,0) ->  | EP10: =IF(#REF!=39,2,0) ->  | EQ10: =IF(#REF!=40,1,0) ->  | ER10: =IF(#REF!>20,0,0) ->  | ES10: =IF(#REF!="сх",0,0) ->  | ET10: =SUM(DD10:ES10) ->  | EV10: =IF(#REF!="сх","ноль",IF(#REF!>0,#REF!,"Ноль")) ->  | EW10: =IF(#REF!="сх","ноль",IF(#REF!>0,#REF!,"Ноль")) ->  | EY10: =MIN(EV10,EW10) ->  | EZ10: =IF(O10=#REF!,IF(#REF!<#REF!,#REF!,FD10),#REF!) ->  | FA10: =IF(O10=#REF!,IF(#REF!<#REF!,0,1)) ->  | FB10: =IF(AND(EY10>=21,EY10<>0),EY10,IF(O10<#REF!,"СТОП",EZ10+FA10)) ->  | FD10: 15 | FE10: 16 | FG10: =IF(#REF!=1,25,0) ->  | FH10: =IF(#REF!=2,22,0) ->  | FI10: =IF(#REF!=3,20,0) ->  | FJ10: =IF(#REF!=4,18,0) ->  | FK10: =IF(#REF!=5,16,0) ->  | FL10: =IF(#REF!=6,15,0) ->  | FM10: =IF(#REF!=7,14,0) ->  | FN10: =IF(#REF!=8,13,0) ->  | FO10: =IF(#REF!=9,12,0) ->  | FP10: =IF(#REF!=10,11,0) ->  | FQ10: =IF(#REF!=11,10,0) ->  | FR10: =IF(#REF!=12,9,0) ->  | FS10: =IF(#REF!=13,8,0) ->  | FT10: =IF(#REF!=14,7,0) ->  | FU10: =IF(#REF!=15,6,0) ->  | FV10: =IF(#REF!=16,5,0) ->  | FW10: =IF(#REF!=17,4,0) ->  | FX10: =IF(#REF!=18,3,0) ->  | FY10: =IF(#REF!=19,2,0) ->  | FZ10: =IF(#REF!=20,1,0) ->  | GA10: =IF(#REF!>20,0,0) ->  | GB10: =IF(#REF!="сх",0,0) ->  | GC10: =SUM(FG10:GB10) ->  | GD10: =IF(#REF!=1,25,0) ->  | GE10: =IF(#REF!=2,22,0) ->  | GF10: =IF(#REF!=3,20,0) ->  | GG10: =IF(#REF!=4,18,0) ->  | GH10: =IF(#REF!=5,16,0) ->  | GI10: =IF(#REF!=6,15,0) ->  | GJ10: =IF(#REF!=7,14,0) ->  | GK10: =IF(#REF!=8,13,0) ->  | GL10: =IF(#REF!=9,12,0) ->  | GM10: =IF(#REF!=10,11,0) ->  | GN10: =IF(#REF!=11,10,0) ->  | GO10: =IF(#REF!=12,9,0) ->  | GP10: =IF(#REF!=13,8,0) ->  | GQ10: =IF(#REF!=14,7,0) ->  | GR10: =IF(#REF!=15,6,0) ->  | GS10: =IF(#REF!=16,5,0) ->  | GT10: =IF(#REF!=17,4,0) ->  | GU10: =IF(#REF!=18,3,0) ->  | GV10: =IF(#REF!=19,2,0) ->  | GW10: =IF(#REF!=20,1,0) ->  | GX10: =IF(#REF!>20,0,0) ->  | GY10: =IF(#REF!="сх",0,0) ->  | GZ10: =SUM(GD10:GY10) ->  | HA10: =IF(#REF!=1,100,0) ->  | HB10: =IF(#REF!=2,98,0) ->  | HC10: =IF(#REF!=3,95,0) ->  | HD10: =IF(#REF!=4,93,0) ->  | HE10: =IF(#REF!=5,90,0) ->  | HF10: =IF(#REF!=6,88,0) ->  | HG10: =IF(#REF!=7,85,0) ->  | HH10: =IF(#REF!=8,83,0) ->  | HI10: =IF(#REF!=9,80,0) ->  | HJ10: =IF(#REF!=10,78,0) ->  | HK10: =IF(#REF!=11,75,0) ->  | HL10: =IF(#REF!=12,73,0) ->  | HM10: =IF(#REF!=13,70,0) ->  | HN10: =IF(#REF!=14,68,0) ->  | HO10: =IF(#REF!=15,65,0) ->  | HP10: =IF(#REF!=16,63,0) ->  | HQ10: =IF(#REF!=17,60,0) ->  | HR10: =IF(#REF!=18,58,0) ->  | HS10: =IF(#REF!=19,55,0) ->  | HT10: =IF(#REF!=20,53,0) ->  | HU10: =IF(#REF!>20,0,0) ->  | HV10: =IF(#REF!="сх",0,0) ->  | HW10: =SUM(HA10:HV10) ->  | HX10: =IF(#REF!=1,100,0) ->  | HY10: =IF(#REF!=2,98,0) ->  | HZ10: =IF(#REF!=3,95,0) ->  | IA10: =IF(#REF!=4,93,0) ->  | IB10: =IF(#REF!=5,90,0) ->  | IC10: =IF(#REF!=6,88,0) ->  | ID10: =IF(#REF!=7,85,0) ->  | IE10: =IF(#REF!=8,83,0) ->  | IF10: =IF(#REF!=9,80,0) ->  | IG10: =IF(#REF!=10,78,0) ->  | IH10: =IF(#REF!=11,75,0) ->  | II10: =IF(#REF!=12,73,0) ->  | IJ10: =IF(#REF!=13,70,0) ->  | IK10: =IF(#REF!=14,68,0) ->  | IL10: =IF(#REF!=15,65,0) ->  | IM10: =IF(#REF!=16,63,0) ->  | IN10: =IF(#REF!=17,60,0) ->  | IO10: =IF(#REF!=18,58,0) ->  | IP10: =IF(#REF!=19,55,0) ->  | IQ10: =IF(#REF!=20,53,0) ->  | IR10: =IF(#REF!>20,0,0) ->  | IS10: =IF(#REF!="сх",0,0) ->  | IT10: =SUM(HX10:IS10) -> 
A11: 2 | B11: =SUM(E11+D11+C11) -> 13.2 | C11: 4.6 | D11: 4.4 | E11: 4.2 | F11: 5 | G11: Зайцев Максим | H11: б/р | I11: г. Новый Уренгой, Ямало-Ненецкий АО | J11: СТК "Факел" | K11: LYNX | L11: 20 | M11: 16 | N11: 15 | O11: =SUM(L11+M11+N11) -> 51 | P11: =#REF!+#REF! ->  | S11: =IF(#REF!=1,25,0) ->  | T11: =IF(#REF!=2,22,0) ->  | U11: =IF(#REF!=3,20,0) ->  | V11: =IF(#REF!=4,18,0) ->  | W11: =IF(#REF!=5,16,0) ->  | X11: =IF(#REF!=6,15,0) ->  | Y11: =IF(#REF!=7,14,0) ->  | Z11: =IF(#REF!=8,13,0) ->  | AA11: =IF(#REF!=9,12,0) ->  | AB11: =IF(#REF!=10,11,0) ->  | AC11: =IF(#REF!=11,10,0) ->  | AD11: =IF(#REF!=12,9,0) ->  | AE11: =IF(#REF!=13,8,0) ->  | AF11: =IF(#REF!=14,7,0) ->  | AG11: =IF(#REF!=15,6,0) ->  | AH11: =IF(#REF!=16,5,0) ->  | AI11: =IF(#REF!=17,4,0) ->  | AJ11: =IF(#REF!=18,3,0) ->  | AK11: =IF(#REF!=19,2,0) ->  | AL11: =IF(#REF!=20,1,0) ->  | AM11: =IF(#REF!>20,0,0) ->  | AN11: =IF(#REF!="сх",0,0) ->  | AP11: =IF(#REF!=1,25,0) ->  | AQ11: =IF(#REF!=2,22,0) ->  | AR11: =IF(#REF!=3,20,0) ->  | AS11: =IF(#REF!=4,18,0) ->  | AT11: =IF(#REF!=5,16,0) ->  | AU11: =IF(#REF!=6,15,0) ->  | AV11: =IF(#REF!=7,14,0) ->  | AW11: =IF(#REF!=8,13,0) ->  | AX11: =IF(#REF!=9,12,0) ->  | AY11: =IF(#REF!=10,11,0) ->  | AZ11: =IF(#REF!=11,10,0) ->  | BA11: =IF(#REF!=12,9,0) ->  | BB11: =IF(#REF!=13,8,0) ->  | BC11: =IF(#REF!=14,7,0) ->  | BD11: =IF(#REF!=15,6,0) ->  | BE11: =IF(#REF!=16,5,0) ->  | BF11: =IF(#REF!=17,4,0) ->  | BG11: =IF(#REF!=18,3,0) ->  | BH11: =IF(#REF!=19,2,0) ->  | BI11: =IF(#REF!=20,1,0) ->  | BJ11: =IF(#REF!>20,0,0) ->  | BK11: =IF(#REF!="сх",0,0) ->  | BM11: =IF(#REF!=1,45,0) ->  | BN11: =IF(#REF!=2,42,0) ->  | BO11: =IF(#REF!=3,40,0) ->  | BP11: =IF(#REF!=4,38,0) ->  | BQ11: =IF(#REF!=5,36,0) ->  | BR11: =IF(#REF!=6,35,0) ->  | BS11: =IF(#REF!=7,34,0) ->  | BT11: =IF(#REF!=8,33,0) ->  | BU11: =IF(#REF!=9,32,0) ->  | BV11: =IF(#REF!=10,31,0) ->  | BW11: =IF(#REF!=11,30,0) ->  | BX11: =IF(#REF!=12,29,0) ->  | BY11: =IF(#REF!=13,28,0) ->  | BZ11: =IF(#REF!=14,27,0) ->  | CA11: =IF(#REF!=15,26,0) ->  | CB11: =IF(#REF!=16,25,0) ->  | CC11: =IF(#REF!=17,24,0) ->  | CD11: =IF(#REF!=18,23,0) ->  | CE11: =IF(#REF!=19,22,0) ->  | CF11: =IF(#REF!=20,21,0) ->  | CG11: =IF(#REF!=21,20,0) ->  | CH11: =IF(#REF!=22,19,0) ->  | CI11: =IF(#REF!=23,18,0) ->  | CJ11: =IF(#REF!=24,17,0) ->  | CK11: =IF(#REF!=25,16,0) ->  | CL11: =IF(#REF!=26,15,0) ->  | CM11: =IF(#REF!=27,14,0) ->  | CN11: =IF(#REF!=28,13,0) ->  | CO11: =IF(#REF!=29,12,0) ->  | CP11: =IF(#REF!=30,11,0) ->  | CQ11: =IF(#REF!=31,10,0) ->  | CR11: =IF(#REF!=32,9,0) ->  | CS11: =IF(#REF!=33,8,0) ->  | CT11: =IF(#REF!=34,7,0) ->  | CU11: =IF(#REF!=35,6,0) ->  | CV11: =IF(#REF!=36,5,0) ->  | CW11: =IF(#REF!=37,4,0) ->  | CX11: =IF(#REF!=38,3,0) ->  | CY11: =IF(#REF!=39,2,0) ->  | CZ11: =IF(#REF!=40,1,0) ->  | DA11: =IF(#REF!>20,0,0) ->  | DB11: =IF(#REF!="сх",0,0) ->  | DD11: =IF(#REF!=1,45,0) ->  | DE11: =IF(#REF!=2,42,0) ->  | DF11: =IF(#REF!=3,40,0) ->  | DG11: =IF(#REF!=4,38,0) ->  | DH11: =IF(#REF!=5,36,0) ->  | DI11: =IF(#REF!=6,35,0) ->  | DJ11: =IF(#REF!=7,34,0) ->  | DK11: =IF(#REF!=8,33,0) ->  | DL11: =IF(#REF!=9,32,0) ->  | DM11: =IF(#REF!=10,31,0) ->  | DN11: =IF(#REF!=11,30,0) ->  | DO11: =IF(#REF!=12,29,0) ->  | DP11: =IF(#REF!=13,28,0) ->  | DQ11: =IF(#REF!=14,27,0) ->  | DR11: =IF(#REF!=15,26,0) ->  | DS11: =IF(#REF!=16,25,0) ->  | DT11: =IF(#REF!=17,24,0) ->  | DU11: =IF(#REF!=18,23,0) ->  | DV11: =IF(#REF!=19,22,0) ->  | DW11: =IF(#REF!=20,21,0) ->  | DX11: =IF(#REF!=21,20,0) ->  | DY11: =IF(#REF!=22,19,0) ->  | DZ11: =IF(#REF!=23,18,0) ->  | EA11: =IF(#REF!=24,17,0) ->  | EB11: =IF(#REF!=25,16,0) ->  | EC11: =IF(#REF!=26,15,0) ->  | ED11: =IF(#REF!=27,14,0) ->  | EE11: =IF(#REF!=28,13,0) ->  | EF11: =IF(#REF!=29,12,0) ->  | EG11: =IF(#REF!=30,11,0) ->  | EH11: =IF(#REF!=31,10,0) ->  | EI11: =IF(#REF!=32,9,0) ->  | EJ11: =IF(#REF!=33,8,0) ->  | EK11: =IF(#REF!=34,7,0) ->  | EL11: =IF(#REF!=35,6,0) ->  | EM11: =IF(#REF!=36,5,0) ->  | EN11: =IF(#REF!=37,4,0) ->  | EO11: =IF(#REF!=38,3,0) ->  | EP11: =IF(#REF!=39,2,0) ->  | EQ11: =IF(#REF!=40,1,0) ->  | ER11: =IF(#REF!>20,0,0) ->  | ES11: =IF(#REF!="сх",0,0) ->  | EV11: =IF(#REF!="сх","ноль",IF(#REF!>0,#REF!,"Ноль")) ->  | EW11: =IF(#REF!="сх","ноль",IF(#REF!>0,#REF!,"Ноль")) ->  | EZ11: =IF(O11=#REF!,IF(#REF!<#REF!,#REF!,FD11),#REF!) ->  | FA11: =IF(O11=#REF!,IF(#REF!<#REF!,0,1)) ->  | FB11: =IF(AND(EY11>=21,EY11<>0),EY11,IF(O11<#REF!,"СТОП",EZ11+FA11)) ->  | FD11: 15 | FE11: 16 | FG11: =IF(#REF!=1,25,0) ->  | FH11: =IF(#REF!=2,22,0) ->  | FI11: =IF(#REF!=3,20,0) ->  | FJ11: =IF(#REF!=4,18,0) ->  | FK11: =IF(#REF!=5,16,0) ->  | FL11: =IF(#REF!=6,15,0) ->  | FM11: =IF(#REF!=7,14,0) ->  | FN11: =IF(#REF!=8,13,0) ->  | FO11: =IF(#REF!=9,12,0) ->  | FP11: =IF(#REF!=10,11,0) ->  | FQ11: =IF(#REF!=11,10,0) ->  | FR11: =IF(#REF!=12,9,0) ->  | FS11: =IF(#REF!=13,8,0) ->  | FT11: =IF(#REF!=14,7,0) ->  | FU11: =IF(#REF!=15,6,0) ->  | FV11: =IF(#REF!=16,5,0) ->  | FW11: =IF(#REF!=17,4,0) ->  | FX11: =IF(#REF!=18,3,0) ->  | FY11: =IF(#REF!=19,2,0) ->  | FZ11: =IF(#REF!=20,1,0) ->  | GA11: =IF(#REF!>20,0,0) ->  | GB11: =IF(#REF!="сх",0,0) ->  | GD11: =IF(#REF!=1,25,0) ->  | GE11: =IF(#REF!=2,22,0) ->  | GF11: =IF(#REF!=3,20,0) ->  | GG11: =IF(#REF!=4,18,0) ->  | GH11: =IF(#REF!=5,16,0) ->  | GI11: =IF(#REF!=6,15,0) ->  | GJ11: =IF(#REF!=7,14,0) ->  | GK11: =IF(#REF!=8,13,0) ->  | GL11: =IF(#REF!=9,12,0) ->  | GM11: =IF(#REF!=10,11,0) ->  | GN11: =IF(#REF!=11,10,0) ->  | GO11: =IF(#REF!=12,9,0) ->  | GP11: =IF(#REF!=13,8,0) ->  | GQ11: =IF(#REF!=14,7,0) ->  | GR11: =IF(#REF!=15,6,0) ->  | GS11: =IF(#REF!=16,5,0) ->  | GT11: =IF(#REF!=17,4,0) ->  | GU11: =IF(#REF!=18,3,0) ->  | GV11: =IF(#REF!=19,2,0) ->  | GW11: =IF(#REF!=20,1,0) ->  | GX11: =IF(#REF!>20,0,0) ->  | GY11: =IF(#REF!="сх",0,0) ->  | HA11: =IF(#REF!=1,100,0) ->  | HB11: =IF(#REF!=2,98,0) ->  | HC11: =IF(#REF!=3,95,0) ->  | HD11: =IF(#REF!=4,93,0) ->  | HE11: =IF(#REF!=5,90,0) ->  | HF11: =IF(#REF!=6,88,0) ->  | HG11: =IF(#REF!=7,85,0) ->  | HH11: =IF(#REF!=8,83,0) ->  | HI11: =IF(#REF!=9,80,0) ->  | HJ11: =IF(#REF!=10,78,0) ->  | HK11: =IF(#REF!=11,75,0) ->  | HL11: =IF(#REF!=12,73,0) ->  | HM11: =IF(#REF!=13,70,0) ->  | HN11: =IF(#REF!=14,68,0) ->  | HO11: =IF(#REF!=15,65,0) ->  | HP11: =IF(#REF!=16,63,0) ->  | HQ11: =IF(#REF!=17,60,0) ->  | HR11: =IF(#REF!=18,58,0) ->  | HS11: =IF(#REF!=19,55,0) ->  | HT11: =IF(#REF!=20,53,0) ->  | HU11: =IF(#REF!>20,0,0) ->  | HV11: =IF(#REF!="сх",0,0) ->  | HX11: =IF(#REF!=1,100,0) ->  | HY11: =IF(#REF!=2,98,0) ->  | HZ11: =IF(#REF!=3,95,0) ->  | IA11: =IF(#REF!=4,93,0) ->  | IB11: =IF(#REF!=5,90,0) ->  | IC11: =IF(#REF!=6,88,0) ->  | ID11: =IF(#REF!=7,85,0) ->  | IE11: =IF(#REF!=8,83,0) ->  | IF11: =IF(#REF!=9,80,0) ->  | IG11: =IF(#REF!=10,78,0) ->  | IH11: =IF(#REF!=11,75,0) ->  | II11: =IF(#REF!=12,73,0) ->  | IJ11: =IF(#REF!=13,70,0) ->  | IK11: =IF(#REF!=14,68,0) ->  | IL11: =IF(#REF!=15,65,0) ->  | IM11: =IF(#REF!=16,63,0) ->  | IN11: =IF(#REF!=17,60,0) ->  | IO11: =IF(#REF!=18,58,0) ->  | IP11: =IF(#REF!=19,55,0) ->  | IQ11: =IF(#REF!=20,53,0) ->  | IR11: =IF(#REF!>20,0,0) ->  | IS11: =IF(#REF!="сх",0,0) -> 
A12: 3 | B12: =SUM(E12+D12+C12) -> 9.6 | C12: 0 | D12: 4.8 | E12: 4.8 | F12: 23 | G12: Синявин Андрей | H12: б/р | I12: г. Новый Уренгой, Ямало-Ненецкий АО | J12: МАУ МЦ "НОРД" | K12: Arctic-Cat | L12: 0 | M12: 22 | N12: 22 | O12: =SUM(L12+M12+N12) -> 44
A13: 4 | B13: =SUM(E13+D13+C13) -> 9.1 | C13: 0 | D13: 4.5 | E13: 4.6 | F13: 14 | G13: Жовтоног Максим | H13: б/р | I13: г. Надым, Ямало-Ненецкий | J13: СТК "Форсаж" | K13: Polaris | L13: 0 | M13: 20 | N13: 20 | O13: =SUM(L13+M13+N13) -> 40
A14: 5 | B14: =SUM(E14+D14+C14) -> 9 | C14: 0 | D14: 4.6 | E14: 4.4 | F14: 13 | G14: Чернюк Дмитрий | H14: б/р | I14: г. Новый Уренгой, Ямало-Ненецкий АО | J14: СТК "Факел" | K14: Arctic-Cat | L14: 0 | M14: 18 | N14: 17 | O14: =SUM(L14+M14+N14) -> 35
A15: 6 | B15: =SUM(E15+D15+C15) -> 8.6 | C15: 0 | D15: 4.3 | E15: 4.3 | F15: 7 | G15: Хриспенс Кирилл | H15: б/р | I15: г. Новый Уренгой, Ямало-Ненецкий АО | J15: СТК "Факел" | K15: Arctic-Cat | L15: 0 | M15: 15 | N15: 16 | O15: =SUM(L15+M15+N15) -> 31
A16: 7 | B16: =SUM(E16+D16+C16) -> 4.8 | C16: 4.8 | D16: 0 | E16: 0 | F16: 8 | G16: Николайчук Александр | H16: б/р | I16: г. Новый Уренгой, Ямало-Ненецкий АО | J16: СТК "Факел" | K16: LYNX | L16: 22 | M16: 0 | N16: 0 | O16: =SUM(L16+M16+N16) -> 22
A17: 8 | B17: =SUM(E17+D17+C17) -> 4.5 | C17: 0 | D17: 0 | E17: 4.5 | F17: 2 | G17: Бармин Ярослав | H17: б/р | I17: г. Новый Уренгой, Ямало-Ненецкий АО | J17: СТК "Ямбург" | K17: Тайга | L17: 0 | M17: 0 | N17: 18 | O17: =SUM(L17+M17+N17) -> 18
A18: 9 | B18: =SUM(E18+D18+C18) -> 4.5 | C18: 4.5 | D18: 0 | E18: 0 | F18: 11 | G18: Немыкин Алексей | H18: б/р | I18: г. Новый Уренгой, Ямало-Ненецкий АО | J18: СТК "Факел" | K18: LYNX | L18: 18 | M18: 0 | N18: 0 | O18: =SUM(L18+M18+N18) -> 18
A20: Главный судья соревнований
A21: судья Всероссийской категории: А. Б. Стеблинский (г. Тюмень; лицензия МФР А 144)
A23: Главный секретарь соревнований
A24: судья Всероссийской категории: А. Ю. Иванов (г. Москва/лицензия МФР А 105; FIM 11245)

Sheet Мальчики 3
A2: Показательные выступления в рамках Кубка ЯНАО по кроссу на снегоходах 2016/2017 года.
A3: СВОДНЫЙ ПРОТОКОЛ ЛИЧНОГО ЗАЧЕТА по сумме 3-х этапов. | FV3: первый этап
A4: 1-й этап: 03 - 04 декабря 2016 года - г. Новый Уренгой, Ямало-Ненецкий АО; 2-й этап: 24 - 26 марта 2017 года - г. Муравленко, Ямало-Ненецкий АО; 3-й этап: 31 марта - 02 апреля 2017 года - г. Новый Уренгой, Ямало-Ненецкий АО. | FK4: первый заезд личные очки | GG4: второй заезд личные очки | HD4: Первый заезд командные очки | IA4: Второй заезд командные очки
A5: Класс "Мальчики 3". | FJ5: 1 | FK5: 2 | FL5: 3 | FM5: 4 | FN5: 5 | FO5: 6 | FP5: 7 | FQ5: 8 | FR5: 9 | FS5: 10 | FT5: 11 | FU5: 12 | FV5: 13 | FW5: 14 | FX5: 15 | FY5: 16 | FZ5: 17 | GA5: 18 | GB5: 19 | GC5: 20 | GD5: 21 | GE5: сх | GF5: Sym | GG5: 1 | GH5: 2 | GI5: 3 | GJ5: 4 | GK5: 5 | GL5: 6 | GM5: 7 | GN5: 8 | GO5: 9 | GP5: 10 | GQ5: 11 | GR5: 12 | GS5: 13 | GT5: 14 | GU5: 15 | GV5: 16 | GW5: 17 | GX5: 18 | GY5: 19 | GZ5: 20 | HA5: 21 | HB5: cx | HC5: sym | HD5: 1 | HE5: 2 | HF5: 3 | HG5: 4 | HH5: 5 | HI5: 6 | HJ5: 7 | HK5: 8 | HL5: 9 | HM5: 10 | HN5: 11 | HO5: 12 | HP5: 13 | HQ5: 14 | HR5: 15 | HS5: 16 | HT5: 17 | HU5: 18 | HV5: 19 | HW5: 20 | HX5: 21 | HY5: сх | HZ5: очки | IA5: 1 | IB5: 2 | IC5: 3 | ID5: 4 | IE5: 5 | IF5: 6 | IG5: 7 | IH5: 8 | II5: 9 | IJ5: 10 | IK5: 11 | IL5: 12 | IM5: 13 | IN5: 14 | IO5: 15 | IP5: 16 | IQ5: 17 | IR5: 18 | IS5: 19 | IT5: 20 | IU5: 21 | IV5: сх | IW5: очки | IX5: =COUNT(FJ5:IW5) -> 84 | IY5: Н. Стро | IZ5: В. стро | JA5: место
N6: 3-й этап
A7: Место | B7: СУММА РЕЙТИНГОВЫЕ ОЧКИ | C7: 1-й этап РЕЙТИНГОВЫЕ ОЧКИ Коэф. 0,1 | D7: 2-й этап РЕЙТИНГОВЫЕ ОЧКИ Коэф. 0,1 | E7: 3-й этап РЕЙТИНГОВЫЕ ОЧКИ Коэф. 0,1 | F7: Ст. № | G7: Фамилия, Имя | H7: Раз ряд | I7: Город (край, район, область) | J7: Команда | K7: Мото | L7: ОЧКИ 1-й этап | M7: ОЧКИ 2-й этап | N7: место 1-й заезд | O7: ОЧКИ 1-й заезд | P7: место 2-й заезд | Q7: ОЧКИ 2-й заезд | R7: Сумма очков в личном зачете | S7: Сумма очк. в командном зачете
W8: первый заезд личные очки | AS8: второй заезд личные очки | BP8: Первый заезд командные очки | DG8: Второй заезд командные очки | EY8: 1 | EZ8: 2 | FV8: первый этап
V9: 1 | W9: 2 | X9: 3 | Y9: 4 | Z9: 5 | AA9: 6 | AB9: 7 | AC9: 8 | AD9: 9 | AE9: 10 | AF9: 11 | AG9: 12 | AH9: 13 | AI9: 14 | AJ9: 15 | AK9: 16 | AL9: 17 | AM9: 18 | AN9: 19 | AO9: 20 | AP9: 21 | AQ9: сх | AS9: 1 | AT9: 2 | AU9: 3 | AV9: 4 | AW9: 5 | AX9: 6 | AY9: 7 | AZ9: 8 | BA9: 9 | BB9: 10 | BC9: 11 | BD9: 12 | BE9: 13 | BF9: 14 | BG9: 15 | BH9: 16 | BI9: 17 | BJ9: 18 | BK9: 19 | BL9: 20 | BN9: cx | BP9: 1 | BQ9: 2 | BR9: 3 | BS9: 4 | BT9: 5 | BU9: 6 | BV9: 7 | BW9: 8 | BX9: 9 | BY9: 10 | BZ9: 11 | CA9: 12 | CB9: 13 | CC9: 14 | CD9: 15 | CE9: 16 | CF9: 17 | CG9: 18 | CH9: 19 | CI9: 20 | CJ9: 21 | CK9: 22 | CL9: 23 | CM9: 24 | CN9: 25 | CO9: 26 | CP9: 27 | CQ9: 28 | CR9: 29 | CS9: 30 | CT9: 31 | CU9: 32 | CV9: 33 | CW9: 34 | CX9: 35 | CY9: 36 | CZ9: 37 | DA9: 38 | DB9: 39 | DC9: 40 | DG9: 1 | DH9: 2 | DI9: 3 | DJ9: 4 | DK9: 5 | DL9: 6 | DM9: 7 | DN9: 8 | DO9: 9 | DP9: 10 | DQ9: 11 | DR9: 12 | DS9: 13 | DT9: 14 | DU9: 15 | DV9: 16 | DW9: 17 | DX9: 18 | DY9: 19 | DZ9: 20 | EA9: 21 | EB9: 22 | EC9: 23 | ED9: 24 | EE9: 25 | EF9: 26 | EG9: 27 | EH9: 28 | EI9: 29 | EJ9: 30 | EK9: 31 | EL9: 32 | EM9: 33 | EN9: 34 | EO9: 35 | EP9: 36 | EQ9: 37 | ER9: 38 | ES9: 39 | ET9: 40 | FB9: мин | FC9: Н. Стро | FD9: В. стро | FE9: место | FG9: чр1 | FH9: чр2 | FK9: первый заезд личные очки | GG9: второй заезд личные очки | HD9: Первый заезд командные очки | IA9: Второй заезд командные очки
A10: 1 | B10: =SUM(C10+D10+E10) -> 14.2 | C10: 5 | D10: 4.2 | E10: 5 | F10: 99 | G10: Скиданов Лев | H10: I | I10: г. Новый Уренгой, Ямало-Ненецкий АО | J10: СТК "Факел" | K10: LYNX | L10: 25 | M10: 14 | N10: 1 | O10: 25 | P10: 1 | Q10: 25 | R10: =SUM(L10+M10+O10+Q10) -> 89 | S10: =#REF!+#REF! ->  | V10: =IF(#REF!=1,25,0) ->  | W10: =IF(#REF!=2,22,0) ->  | X10: =IF(#REF!=3,20,0) ->  | Y10: =IF(#REF!=4,18,0) ->  | Z10: =IF(#REF!=5,16,0) ->  | AA10: =IF(#REF!=6,15,0) ->  | AB10: =IF(#REF!=7,14,0) ->  | AC10: =IF(#REF!=8,13,0) ->  | AD10: =IF(#REF!=9,12,0) ->  | AE10: =IF(#REF!=10,11,0) ->  | AF10: =IF(#REF!=11,10,0) ->  | AG10: =IF(#REF!=12,9,0) ->  | AH10: =IF(#REF!=13,8,0) ->  | AI10: =IF(#REF!=14,7,0) ->  | AJ10: =IF(#REF!=15,6,0) ->  | AK10: =IF(#REF!=16,5,0) ->  | AL10: =IF(#REF!=17,4,0) ->  | AM10: =IF(#REF!=18,3,0) ->  | AN10: =IF(#REF!=19,2,0) ->  | AO10: =IF(#REF!=20,1,0) ->  | AP10: =IF(#REF!>20,0,0) ->  | AQ10: =IF(#REF!="сх",0,0) ->  | AR10: =SUM(V10:AP10) ->  | AS10: =IF(#REF!=1,25,0) ->  | AT10: =IF(#REF!=2,22,0) ->  | AU10: =IF(#REF!=3,20,0) ->  | AV10: =IF(#REF!=4,18,0) ->  | AW10: =IF(#REF!=5,16,0) ->  | AX10: =IF(#REF!=6,15,0) ->  | AY10: =IF(#REF!=7,14,0) ->  | AZ10: =IF(#REF!=8,13,0) ->  | BA10: =IF(#REF!=9,12,0) ->  | BB10: =IF(#REF!=10,11,0) ->  | BC10: =IF(#REF!=11,10,0) ->  | BD10: =IF(#REF!=12,9,0) ->  | BE10: =IF(#REF!=13,8,0) ->  | BF10: =IF(#REF!=14,7,0) ->  | BG10: =IF(#REF!=15,6,0) ->  | BH10: =IF(#REF!=16,5,0) ->  | BI10: =IF(#REF!=17,4,0) ->  | BJ10: =IF(#REF!=18,3,0) ->  | BK10: =IF(#REF!=19,2,0) ->  | BL10: =IF(#REF!=20,1,0) ->  | BM10: =IF(#REF!>20,0,0) ->  | BN10: =IF(#REF!="сх",0,0) ->  | BO10: =SUM(AS10:BM10) ->  | BP10: =IF(#REF!=1,45,0) ->  | BQ10: =IF(#REF!=2,42,0) ->  | BR10: =IF(#REF!=3,40,0) ->  | BS10: =IF(#REF!=4,38,0) ->  | BT10: =IF(#REF!=5,36,0) ->  | BU10: =IF(#REF!=6,35,0) ->  | BV10: =IF(#REF!=7,34,0) ->  | BW10: =IF(#REF!=8,33,0) ->  | BX10: =IF(#REF!=9,32,0) ->  | BY10: =IF(#REF!=10,31,0) ->  | BZ10: =IF(#REF!=11,30,0) ->  | CA10: =IF(#REF!=12,29,0) ->  | CB10: =IF(#REF!=13,28,0) ->  | CC10: =IF(#REF!=14,27,0) ->  | CD10: =IF(#REF!=15,26,0) ->  | CE10: =IF(#REF!=16,25,0) ->  | CF10: =IF(#REF!=17,24,0) ->  | CG10: =IF(#REF!=18,23,0) ->  | CH10: =IF(#REF!=19,22,0) ->  | CI10: =IF(#REF!=20,21,0) ->  | CJ10: =IF(#REF!=21,20,0) ->  | CK10: =IF(#REF!=22,19,0) ->  | CL10: =IF(#REF!=23,18,0) ->  | CM10: =IF(#REF!=24,17,0) ->  | CN10: =IF(#REF!=25,16,0) ->  | CO10: =IF(#REF!=26,15,0) ->  | CP10: =IF(#REF!=27,14,0) ->  | CQ10: =IF(#REF!=28,13,0) ->  | CR10: =IF(#REF!=29,12,0) ->  | CS10: =IF(#REF!=30,11,0) ->  | CT10: =IF(#REF!=31,10,0) ->  | CU10: =IF(#REF!=32,9,0) ->  | CV10: =IF(#REF!=33,8,0) ->  | CW10: =IF(#REF!=34,7,0) ->  | CX10: =IF(#REF!=35,6,0) ->  | CY10: =IF(#REF!=36,5,0) ->  | CZ10: =IF(#REF!=37,4,0) ->  | DA10: =IF(#REF!=38,3,0) ->  | DB10: =IF(#REF!=39,2,0) ->  | DC10: =IF(#REF!=40,1,0) ->  | DD10: =IF(#REF!>20,0,0) ->  | DE10: =IF(#REF!="сх",0,0) ->  | DF10: =SUM(BP10:DE10) ->  | DG10: =IF(#REF!=1,45,0) ->  | DH10: =IF(#REF!=2,42,0) ->  | DI10: =IF(#REF!=3,40,0) ->  | DJ10: =IF(#REF!=4,38,0) ->  | DK10: =IF(#REF!=5,36,0) ->  | DL10: =IF(#REF!=6,35,0) ->  | DM10: =IF(#REF!=7,34,0) ->  | DN10: =IF(#REF!=8,33,0) ->  | DO10: =IF(#REF!=9,32,0) ->  | DP10: =IF(#REF!=10,31,0) ->  | DQ10: =IF(#REF!=11,30,0) ->  | DR10: =IF(#REF!=12,29,0) ->  | DS10: =IF(#REF!=13,28,0) ->  | DT10: =IF(#REF!=14,27,0) ->  | DU10: =IF(#REF!=15,26,0) ->  | DV10: =IF(#REF!=16,25,0) ->  | DW10: =IF(#REF!=17,24,0) ->  | DX10: =IF(#REF!=18,23,0) ->  | DY10: =IF(#REF!=19,22,0) ->  | DZ10: =IF(#REF!=20,21,0) ->  | EA10: =IF(#REF!=21,20,0) ->  | EB10: =IF(#REF!=22,19,0) ->  | EC10: =IF(#REF!=23,18,0) ->  | ED10: =IF(#REF!=24,17,0) ->  | EE10: =IF(#REF!=25,16,0) ->  | EF10: =IF(#REF!=26,15,0) ->  | EG10: =IF(#REF!=27,14,0) ->  | EH10: =IF(#REF!=28,13,0) ->  | EI10: =IF(#REF!=29,12,0) ->  | EJ10: =IF(#REF!=30,11,0) ->  | EK10: =IF(#REF!=31,10,0) ->  | EL10: =IF(#REF!=32,9,0) ->  | EM10: =IF(#REF!=33,8,0) ->  | EN10: =IF(#REF!=34,7,0) ->  | EO10: =IF(#REF!=35,6,0) ->  | EP10: =IF(#REF!=36,5,0) ->  | EQ10: =IF(#REF!=37,4,0) ->  | ER10: =IF(#REF!=38,3,0) ->  | ES10: =IF(#REF!=39,2,0) ->  | ET10: =IF(#REF!=40,1,0) ->  | EU10: =IF(#REF!>20,0,0) ->  | EV10: =IF(#REF!="сх",0,0) ->  | EW10: =SUM(DG10:EV10) ->  | EY10: =IF(#REF!="сх","ноль",IF(#REF!>0,#REF!,"Ноль")) ->  | EZ10: =IF(#REF!="сх","ноль",IF(#REF!>0,#REF!,"Ноль")) ->  | FB10: =MIN(EY10,EZ10) ->  | FC10: =IF(R10=#REF!,IF(#REF!<#REF!,#REF!,FG10),#REF!) ->  | FD10: =IF(R10=#REF!,IF(#REF!<#REF!,0,1)) ->  | FE10: =IF(AND(FB10>=21,FB10<>0),FB10,IF(R10<#REF!,"СТОП",FC10+FD10)) ->  | FG10: 15 | FH10: 16 | FJ10: =IF(#REF!=1,25,0) ->  | FK10: =IF(#REF!=2,22,0) ->  | FL10: =IF(#REF!=3,20,0) ->  | FM10: =IF(#REF!=4,18,0) ->  | FN10: =IF(#REF!=5,16,0) ->  | FO10: =IF(#REF!=6,15,0) ->  | FP10: =IF(#REF!=7,14,0) ->  | FQ10: =IF(#REF!=8,13,0) ->  | FR10: =IF(#REF!=9,12,0) ->  | FS10: =IF(#REF!=10,11,0) ->  | FT10: =IF(#REF!=11,10,0) ->  | FU10: =IF(#REF!=12,9,0) ->  | FV10: =IF(#REF!=13,8,0) ->  | FW10: =IF(#REF!=14,7,0) ->  | FX10: =IF(#REF!=15,6,0) ->  | FY10: =IF(#REF!=16,5,0) ->  | FZ10: =IF(#REF!=17,4,0) ->  | GA10: =IF(#REF!=18,3,0) ->  | GB10: =IF(#REF!=19,2,0) ->  | GC10: =IF(#REF!=20,1,0) ->  | GD10: =IF(#REF!>20,0,0) ->  | GE10: =IF(#REF!="сх",0,0) ->  | GF10: =SUM(FJ10:GE10) ->  | GG10: =IF(#REF!=1,25,0) ->  | GH10: =IF(#REF!=2,22,0) ->  | GI10: =IF(#REF!=3,20,0) ->  | GJ10: =IF(#REF!=4,18,0) ->  | GK10: =IF(#REF!=5,16,0) ->  | GL10: =IF(#REF!=6,15,0) ->  | GM10: =IF(#REF!=7,14,0) ->  | GN10: =IF(#REF!=8,13,0) ->  | GO10: =IF(#REF!=9,12,0) ->  | GP10: =IF(#REF!=10,11,0) ->  | GQ10: =IF(#REF!=11,10,0) ->  | GR10: =IF(#REF!=12,9,0) ->  | GS10: =IF(#REF!=13,8,0) ->  | GT10: =IF(#REF!=14,7,0) ->  | GU10: =IF(#REF!=15,6,0) ->  | GV10: =IF(#REF!=16,5,0) ->  | GW10: =IF(#REF!=17,4,0) ->  | GX10: =IF(#REF!=18,3,0) ->  | GY10: =IF(#REF!=19,2,0) ->  | GZ10: =IF(#REF!=20,1,0) ->  | HA10: =IF(#REF!>20,0,0) ->  | HB10: =IF(#REF!="сх",0,0) ->  | HC10: =SUM(GG10:HB10) ->  | HD10: =IF(#REF!=1,100,0) ->  | HE10: =IF(#REF!=2,98,0) ->  | HF10: =IF(#REF!=3,95,0) ->  | HG10: =IF(#REF!=4,93,0) ->  | HH10: =IF(#REF!=5,90,0) ->  | HI10: =IF(#REF!=6,88,0) ->  | HJ10: =IF(#REF!=7,85,0) ->  | HK10: =IF(#REF!=8,83,0) ->  | HL10: =IF(#REF!=9,80,0) ->  | HM10: =IF(#REF!=10,78,0) ->  | HN10: =IF(#REF!=11,75,0) ->  | HO10: =IF(#REF!=12,73,0) ->  | HP10: =IF(#REF!=13,70,0) ->  | HQ10: =IF(#REF!=14,68,0) ->  | HR10: =IF(#REF!=15,65,0) ->  | HS10: =IF(#REF!=16,63,0) ->  | HT10: =IF(#REF!=17,60,0) ->  | HU10: =IF(#REF!=18,58,0) ->  | HV10: =IF(#REF!=19,55,0) ->  | HW10: =IF(#REF!=20,53,0) ->  | HX10: =IF(#REF!>20,0,0) ->  | HY10: =IF(#REF!="сх",0,0) ->  | HZ10: =SUM(HD10:HY10) ->  | IA10: =IF(#REF!=1,100,0) ->  | IB10: =IF(#REF!=2,98,0) ->  | IC10: =IF(#REF!=3,95,0) ->  | ID10: =IF(#REF!=4,93,0) ->  | IE10: =IF(#REF!=5,90,0) ->  | IF10: =IF(#REF!=6,88,0) ->  | IG10: =IF(#REF!=7,85,0) ->  | IH10: =IF(#REF!=8,83,0) ->  | II10: =IF(#REF!=9,80,0) ->  | IJ10: =IF(#REF!=10,78,0) ->  | IK10: =IF(#REF!=11,75,0) ->  | IL10: =IF(#REF!=12,73,0) ->  | IM10: =IF(#REF!=13,70,0) ->  | IN10: =IF(#REF!=14,68,0) ->  | IO10: =IF(#REF!=15,65,0) ->  | IP10: =IF(#REF!=16,63,0) ->  | IQ10: =IF(#REF!=17,60,0) ->  | IR10: =IF(#REF!=18,58,0) ->  | IS10: =IF(#REF!=19,55,0) ->  | IT10: =IF(#REF!=20,53,0) ->  | IU10: =IF(#REF!>20,0,0) ->  | IV10: =IF(#REF!="сх",0,0) ->  | IW10: =SUM(IA10:IV10) -> 
A11: 2 | B11: =SUM(C11+D11+E11) -> 14.4 | C11: 4.8 | D11: 5 | E11: 4.6 | F11: 88 | G11: Кряков Александр | H11: б/р | I11: г. Новый Уренгой, Ямало-Ненецкий АО | J11: лично | K11: LYNX | L11: 22 | M11: 25 | N11: 2 | O11: 22 | P11: 4 | Q11: 18 | R11: =SUM(L11+M11+O11+Q11) -> 87 | S11: =#REF!+#REF! ->  | V11: =IF(#REF!=1,25,0) ->  | W11: =IF(#REF!=2,22,0) ->  | X11: =IF(#REF!=3,20,0) ->  | Y11: =IF(#REF!=4,18,0) ->  | Z11: =IF(#REF!=5,16,0) ->  | AA11: =IF(#REF!=6,15,0) ->  | AB11: =IF(#REF!=7,14,0) ->  | AC11: =IF(#REF!=8,13,0) ->  | AD11: =IF(#REF!=9,12,0) ->  | AE11: =IF(#REF!=10,11,0) ->  | AF11: =IF(#REF!=11,10,0) ->  | AG11: =IF(#REF!=12,9,0) ->  | AH11: =IF(#REF!=13,8,0) ->  | AI11: =IF(#REF!=14,7,0) ->  | AJ11: =IF(#REF!=15,6,0) ->  | AK11: =IF(#REF!=16,5,0) ->  | AL11: =IF(#REF!=17,4,0) ->  | AM11: =IF(#REF!=18,3,0) ->  | AN11: =IF(#REF!=19,2,0) ->  | AO11: =IF(#REF!=20,1,0) ->  | AP11: =IF(#REF!>20,0,0) ->  | AQ11: =IF(#REF!="сх",0,0) ->  | AR11: =SUM(V11:AP11) ->  | AS11: =IF(#REF!=1,25,0) ->  | AT11: =IF(#REF!=2,22,0) ->  | AU11: =IF(#REF!=3,20,0) ->  | AV11: =IF(#REF!=4,18,0) ->  | AW11: =IF(#REF!=5,16,0) ->  | AX11: =IF(#REF!=6,15,0) ->  | AY11: =IF(#REF!=7,14,0) ->  | AZ11: =IF(#REF!=8,13,0) ->  | BA11: =IF(#REF!=9,12,0) ->  | BB11: =IF(#REF!=10,11,0) ->  | BC11: =IF(#REF!=11,10,0) ->  | BD11: =IF(#REF!=12,9,0) ->  | BE11: =IF(#REF!=13,8,0) ->  | BF11: =IF(#REF!=14,7,0) ->  | BG11: =IF(#REF!=15,6,0) ->  | BH11: =IF(#REF!=16,5,0) ->  | BI11: =IF(#REF!=17,4,0) ->  | BJ11: =IF(#REF!=18,3,0) ->  | BK11: =IF(#REF!=19,2,0) ->  | BL11: =IF(#REF!=20,1,0) ->  | BM11: =IF(#REF!>20,0,0) ->  | BN11: =IF(#REF!="сх",0,0) ->  | BO11: =SUM(AS11:BM11) ->  | BP11: =IF(#REF!=1,45,0) ->  | BQ11: =IF(#REF!=2,42,0) ->  | BR11: =IF(#REF!=3,40,0) ->  | BS11: =IF(#REF!=4,38,0) ->  | BT11: =IF(#REF!=5,36,0) ->  | BU11: =IF(#REF!=6,35,0) ->  | BV11: =IF(#REF!=7,34,0) ->  | BW11: =IF(#REF!=8,33,0) ->  | BX11: =IF(#REF!=9,32,0) ->  | BY11: =IF(#REF!=10,31,0) ->  | BZ11: =IF(#REF!=11,30,0) ->  | CA11: =IF(#REF!=12,29,0) ->  | CB11: =IF(#REF!=13,28,0) ->  | CC11: =IF(#REF!=14,27,0) ->  | CD11: =IF(#REF!=15,26,0) ->  | CE11: =IF(#REF!=16,25,0) ->  | CF11: =IF(#REF!=17,24,0) ->  | CG11: =IF(#REF!=18,23,0) ->  | CH11: =IF(#REF!=19,22,0) ->  | CI11: =IF(#REF!=20,21,0) ->  | CJ11: =IF(#REF!=21,20,0) ->  | CK11: =IF(#REF!=22,19,0) ->  | CL11: =IF(#REF!=23,18,0) ->  | CM11: =IF(#REF!=24,17,0) ->  | CN11: =IF(#REF!=25,16,0) ->  | CO11: =IF(#REF!=26,15,0) ->  | CP11: =IF(#REF!=27,14,0) ->  | CQ11: =IF(#REF!=28,13,0) ->  | CR11: =IF(#REF!=29,12,0) ->  | CS11: =IF(#REF!=30,11,0) ->  | CT11: =IF(#REF!=31,10,0) ->  | CU11: =IF(#REF!=32,9,0) ->  | CV11: =IF(#REF!=33,8,0) ->  | CW11: =IF(#REF!=34,7,0) ->  | CX11: =IF(#REF!=35,6,0) ->  | CY11: =IF(#REF!=36,5,0) ->  | CZ11: =IF(#REF!=37,4,0) ->  | DA11: =IF(#REF!=38,3,0) ->  | DB11: =IF(#REF!=39,2,0) ->  | DC11: =IF(#REF!=40,1,0) ->  | DD11: =IF(#REF!>20,0,0) ->  | DE11: =IF(#REF!="сх",0,0) ->  | DF11: =SUM(BP11:DE11) ->  | DG11: =IF(#REF!=1,45,0) ->  | DH11: =IF(#REF!=2,42,0) ->  | DI11: =IF(#REF!=3,40,0) ->  | DJ11: =IF(#REF!=4,38,0) ->  | DK11: =IF(#REF!=5,36,0) ->  | DL11: =IF(#REF!=6,35,0) ->  | DM11: =IF(#REF!=7,34,0) ->  | DN11: =IF(#REF!=8,33,0) ->  | DO11: =IF(#REF!=9,32,0) ->  | DP11: =IF(#REF!=10,31,0) ->  | DQ11: =IF(#REF!=11,30,0) ->  | DR11: =IF(#REF!=12,29,0) ->  | DS11: =IF(#REF!=13,28,0) ->  | DT11: =IF(#REF!=14,27,0) ->  | DU11: =IF(#REF!=15,26,0) ->  | DV11: =IF(#REF!=16,25,0) ->  | DW11: =IF(#REF!=17,24,0) ->  | DX11: =IF(#REF!=18,23,0) ->  | DY11: =IF(#REF!=19,22,0) ->  | DZ11: =IF(#REF!=20,21,0) ->  | EA11: =IF(#REF!=21,20,0) ->  | EB11: =IF(#REF!=22,19,0) ->  | EC11: =IF(#REF!=23,18,0) ->  | ED11: =IF(#REF!=24,17,0) ->  | EE11: =IF(#REF!=25,16,0) ->  | EF11: =IF(#REF!=26,15,0) ->  | EG11: =IF(#REF!=27,14,0) ->  | EH11: =IF(#REF!=28,13,0) ->  | EI11: =IF(#REF!=29,12,0) ->  | EJ11: =IF(#REF!=30,11,0) ->  | EK11: =IF(#REF!=31,10,0) ->  | EL11: =IF(#REF!=32,9,0) ->  | EM11: =IF(#REF!=33,8,0) ->  | EN11: =IF(#REF!=34,7,0) ->  | EO11: =IF(#REF!=35,6,0) ->  | EP11: =IF(#REF!=36,5,0) ->  | EQ11: =IF(#REF!=37,4,0) ->  | ER11: =IF(#REF!=38,3,0) ->  | ES11: =IF(#REF!=39,2,0) ->  | ET11: =IF(#REF!=40,1,0) ->  | EU11: =IF(#REF!>20,0,0) ->  | EV11: =IF(#REF!="сх",0,0) ->  | EW11: =SUM(DG11:EV11) ->  | EY11: =IF(#REF!="сх","ноль",IF(#REF!>0,#REF!,"Ноль")) ->  | EZ11: =IF(#REF!="сх","ноль",IF(#REF!>0,#REF!,"Ноль")) ->  | FB11: =MIN(EY11,EZ11) ->  | FC11: =IF(R11=#REF!,IF(#REF!<#REF!,#REF!,FG11),#REF!) ->  | FD11: =IF(R11=#REF!,IF(#REF!<#REF!,0,1)) ->  | FE11: =IF(AND(FB11>=21,FB11<>0),FB11,IF(R11<#REF!,"СТОП",FC11+FD11)) ->  | FG11: 15 | FH11: 16 | FJ11: =IF(#REF!=1,25,0) ->  | FK11: =IF(#REF!=2,22,0) ->  | FL11: =IF(#REF!=3,20,0) ->  | FM11: =IF(#REF!=4,18,0) ->  | FN11: =IF(#REF!=5,16,0) ->  | FO11: =IF(#REF!=6,15,0) ->  | FP11: =IF(#REF!=7,14,0) ->  | FQ11: =IF(#REF!=8,13,0) ->  | FR11: =IF(#REF!=9,12,0) ->  | FS11: =IF(#REF!=10,11,0) ->  | FT11: =IF(#REF!=11,10,0) ->  | FU11: =IF(#REF!=12,9,0) ->  | FV11: =IF(#REF!=13,8,0) ->  | FW11: =IF(#REF!=14,7,0) ->  | FX11: =IF(#REF!=15,6,0) ->  | FY11: =IF(#REF!=16,5,0) ->  | FZ11: =IF(#REF!=17,4,0) ->  | GA11: =IF(#REF!=18,3,0) ->  | GB11: =IF(#REF!=19,2,0) ->  | GC11: =IF(#REF!=20,1,0) ->  | GD11: =IF(#REF!>20,0,0) ->  | GE11: =IF(#REF!="сх",0,0) ->  | GF11: =SUM(FJ11:GE11) ->  | GG11: =IF(#REF!=1,25,0) ->  | GH11: =IF(#REF!=2,22,0) ->  | GI11: =IF(#REF!=3,20,0) ->  | GJ11: =IF(#REF!=4,18,0) ->  | GK11: =IF(#REF!=5,16,0) ->  | GL11: =IF(#REF!=6,15,0) ->  | GM11: =IF(#REF!=7,14,0) ->  | GN11: =IF(#REF!=8,13,0) ->  | GO11: =IF(#REF!=9,12,0) ->  | GP11: =IF(#REF!=10,11,0) ->  | GQ11: =IF(#REF!=11,10,0) ->  | GR11: =IF(#REF!=12,9,0) ->  | GS11: =IF(#REF!=13,8,0) ->  | GT11: =IF(#REF!=14,7,0) ->  | GU11: =IF(#REF!=15,6,0) ->  | GV11: =IF(#REF!=16,5,0) ->  | GW11: =IF(#REF!=17,4,0) ->  | GX11: =IF(#REF!=18,3,0) ->  | GY11: =IF(#REF!=19,2,0) ->  | GZ11: =IF(#REF!=20,1,0) ->  | HA11: =IF(#REF!>20,0,0) ->  | HB11: =IF(#REF!="сх",0,0) ->  | HC11: =SUM(GG11:HB11) ->  | HD11: =IF(#REF!=1,100,0) ->  | HE11: =IF(#REF!=2,98,0) ->  | HF11: =IF(#REF!=3,95,0) ->  | HG11: =IF(#REF!=4,93,0) ->  | HH11: =IF(#REF!=5,90,0) ->  | HI11: =IF(#REF!=6,88,0) ->  | HJ11: =IF(#REF!=7,85,0) ->  | HK11: =IF(#REF!=8,83,0) ->  | HL11: =IF(#REF!=9,80,0) ->  | HM11: =IF(#REF!=10,78,0) ->  | HN11: =IF(#REF!=11,75,0) ->  | HO11: =IF(#REF!=12,73,0) ->  | HP11: =IF(#REF!=13,70,0) ->  | HQ11: =IF(#REF!=14,68,0) ->  | HR11: =IF(#REF!=15,65,0) ->  | HS11: =IF(#REF!=16,63,0) ->  | HT11: =IF(#REF!=17,60,0) ->  | HU11: =IF(#REF!=18,58,0) ->  | HV11: =IF(#REF!=19,55,0) ->  | HW11: =IF(#REF!=20,53,0) ->  | HX11: =IF(#REF!>20,0,0) ->  | HY11: =IF(#REF!="сх",0,0) ->  | HZ11: =SUM(HD11:HY11) ->  | IA11: =IF(#REF!=1,100,0) ->  | IB11: =IF(#REF!=2,98,0) ->  | IC11: =IF(#REF!=3,95,0) ->  | ID11: =IF(#REF!=4,93,0) ->  | IE11: =IF(#REF!=5,90,0) ->  | IF11: =IF(#REF!=6,88,0) ->  | IG11: =IF(#REF!=7,85,0) ->  | IH11: =IF(#REF!=8,83,0) ->  | II11: =IF(#REF!=9,80,0) ->  | IJ11: =IF(#REF!=10,78,0) ->  | IK11: =IF(#REF!=11,75,0) ->  | IL11: =IF(#REF!=12,73,0) ->  | IM11: =IF(#REF!=13,70,0) ->  | IN11: =IF(#REF!=14,68,0) ->  | IO11: =IF(#REF!=15,65,0) ->  | IP11: =IF(#REF!=16,63,0) ->  | IQ11: =IF(#REF!=17,60,0) ->  | IR11: =IF(#REF!=18,58,0) ->  | IS11: =IF(#REF!=19,55,0) ->  | IT11: =IF(#REF!=20,53,0) ->  | IU11: =IF(#REF!>20,0,0) ->  | IV11: =IF(#REF!="сх",0,0) ->  | IW11: =SUM(IA11:IV11) -> 
A12: 3 | B12: =SUM(C12+D12+E12) -> 13.8 | C12: 4.4 | D12: 4.6 | E12: 4.8 | F12: 173 | G12: Синявин Роман | H12: б/р | I12: г. Новый Уренгой, Ямало-Ненецкий АО | J12: МАУ МЦ "НОРД" | K12: KTM | L12: 16 | M12: 20 | N12: 3 | O12: 20 | P12: 2 | Q12: 22 | R12: =SUM(L12+M12+O12+Q12) -> 78 | S12: =#REF!+#REF! ->  | V12: =IF(#REF!=1,25,0) ->  | W12: =IF(#REF!=2,22,0) ->  | X12: =IF(#REF!=3,20,0) ->  | Y12: =IF(#REF!=4,18,0) ->  | Z12: =IF(#REF!=5,16,0) ->  | AA12: =IF(#REF!=6,15,0) ->  | AB12: =IF(#REF!=7,14,0) ->  | AC12: =IF(#REF!=8,13,0) ->  | AD12: =IF(#REF!=9,12,0) ->  | AE12: =IF(#REF!=10,11,0) ->  | AF12: =IF(#REF!=11,10,0) ->  | AG12: =IF(#REF!=12,9,0) ->  | AH12: =IF(#REF!=13,8,0) ->  | AI12: =IF(#REF!=14,7,0) ->  | AJ12: =IF(#REF!=15,6,0) ->  | AK12: =IF(#REF!=16,5,0) ->  | AL12: =IF(#REF!=17,4,0) ->  | AM12: =IF(#REF!=18,3,0) ->  | AN12: =IF(#REF!=19,2,0) ->  | AO12: =IF(#REF!=20,1,0) ->  | AP12: =IF(#REF!>20,0,0) ->  | AQ12: =IF(#REF!="сх",0,0) ->  | AS12: =IF(#REF!=1,25,0) ->  | AT12: =IF(#REF!=2,22,0) ->  | AU12: =IF(#REF!=3,20,0) ->  | AV12: =IF(#REF!=4,18,0) ->  | AW12: =IF(#REF!=5,16,0) ->  | AX12: =IF(#REF!=6,15,0) ->  | AY12: =IF(#REF!=7,14,0) ->  | AZ12: =IF(#REF!=8,13,0) ->  | BA12: =IF(#REF!=9,12,0) ->  | BB12: =IF(#REF!=10,11,0) ->  | BC12: =IF(#REF!=11,10,0) ->  | BD12: =IF(#REF!=12,9,0) ->  | BE12: =IF(#REF!=13,8,0) ->  | BF12: =IF(#REF!=14,7,0) ->  | BG12: =IF(#REF!=15,6,0) ->  | BH12: =IF(#REF!=16,5,0) ->  | BI12: =IF(#REF!=17,4,0) ->  | BJ12: =IF(#REF!=18,3,0) ->  | BK12: =IF(#REF!=19,2,0) ->  | BL12: =IF(#REF!=20,1,0) ->  | BM12: =IF(#REF!>20,0,0) ->  | BN12: =IF(#REF!="сх",0,0) ->  | BP12: =IF(#REF!=1,45,0) ->  | BQ12: =IF(#REF!=2,42,0) ->  | BR12: =IF(#REF!=3,40,0) ->  | BS12: =IF(#REF!=4,38,0) ->  | BT12: =IF(#REF!=5,36,0) ->  | BU12: =IF(#REF!=6,35,0) ->  | BV12: =IF(#REF!=7,34,0) ->  | BW12: =IF(#REF!=8,33,0) ->  | BX12: =IF(#REF!=9,32,0) ->  | BY12: =IF(#REF!=10,31,0) ->  | BZ12: =IF(#REF!=11,30,0) ->  | CA12: =IF(#REF!=12,29,0) ->  | CB12: =IF(#REF!=13,28,0) ->  | CC12: =IF(#REF!=14,27,0) ->  | CD12: =IF(#REF!=15,26,0) ->  | CE12: =IF(#REF!=16,25,0) ->  | CF12: =IF(#REF!=17,24,0) ->  | CG12: =IF(#REF!=18,23,0) ->  | CH12: =IF(#REF!=19,22,0) ->  | CI12: =IF(#REF!=20,21,0) ->  | CJ12: =IF(#REF!=21,20,0) ->  | CK12: =IF(#REF!=22,19,0) ->  | CL12: =IF(#REF!=23,18,0) ->  | CM12: =IF(#REF!=24,17,0) ->  | CN12: =IF(#REF!=25,16,0) ->  | CO12: =IF(#REF!=26,15,0) ->  | CP12: =IF(#REF!=27,14,0) ->  | CQ12: =IF(#REF!=28,13,0) ->  | CR12: =IF(#REF!=29,12,0) ->  | CS12: =IF(#REF!=30,11,0) ->  | CT12: =IF(#REF!=31,10,0) ->  | CU12: =IF(#REF!=32,9,0) ->  | CV12: =IF(#REF!=33,8,0) ->  | CW12: =IF(#REF!=34,7,0) ->  | CX12: =IF(#REF!=35,6,0) ->  | CY12: =IF(#REF!=36,5,0) ->  | CZ12: =IF(#REF!=37,4,0) ->  | DA12: =IF(#REF!=38,3,0) ->  | DB12: =IF(#REF!=39,2,0) ->  | DC12: =IF(#REF!=40,1,0) ->  | DD12: =IF(#REF!>20,0,0) ->  | DE12: =IF(#REF!="сх",0,0) ->  | DG12: =IF(#REF!=1,45,0) ->  | DH12: =IF(#REF!=2,42,0) ->  | DI12: =IF(#REF!=3,40,0) ->  | DJ12: =IF(#REF!=4,38,0) ->  | DK12: =IF(#REF!=5,36,0) ->  | DL12: =IF(#REF!=6,35,0) ->  | DM12: =IF(#REF!=7,34,0) ->  | DN12: =IF(#REF!=8,33,0) ->  | DO12: =IF(#REF!=9,32,0) ->  | DP12: =IF(#REF!=10,31,0) ->  | DQ12: =IF(#REF!=11,30,0) ->  | DR12: =IF(#REF!=12,29,0) ->  | DS12: =IF(#REF!=13,28,0) ->  | DT12: =IF(#REF!=14,27,0) ->  | DU12: =IF(#REF!=15,26,0) ->  | DV12: =IF(#REF!=16,25,0) ->  | DW12: =IF(#REF!=17,24,0) ->  | DX12: =IF(#REF!=18,23,0) ->  | DY12: =IF(#REF!=19,22,0) ->  | DZ12: =IF(#REF!=20,21,0) ->  | EA12: =IF(#REF!=21,20,0) ->  | EB12: =IF(#REF!=22,19,0) ->  | EC12: =IF(#REF!=23,18,0) ->  | ED12: =IF(#REF!=24,17,0) ->  | EE12: =IF(#REF!=25,16,0) ->  | EF12: =IF(#REF!=26,15,0) ->  | EG12: =IF(#REF!=27,14,0) ->  | EH12: =IF(#REF!=28,13,0) ->  | EI12: =IF(#REF!=29,12,0) ->  | EJ12: =IF(#REF!=30,11,0) ->  | EK12: =IF(#REF!=31,10,0) ->  | EL12: =IF(#REF!=32,9,0) ->  | EM12: =IF(#REF!=33,8,0) ->  | EN12: =IF(#REF!=34,7,0) ->  | EO12: =IF(#REF!=35,6,0) ->  | EP12: =IF(#REF!=36,5,0) ->  | EQ12: =IF(#REF!=37,4,0) ->  | ER12: =IF(#REF!=38,3,0) ->  | ES12: =IF(#REF!=39,2,0) ->  | ET12: =IF(#REF!=40,1,0) ->  | EU12: =IF(#REF!>20,0,0) ->  | EV12: =IF(#REF!="сх",0,0) ->  | EY12: =IF(#REF!="сх","ноль",IF(#REF!>0,#REF!,"Ноль")) ->  | EZ12: =IF(#REF!="сх","ноль",IF(#REF!>0,#REF!,"Ноль")) ->  | FC12: =IF(R12=#REF!,IF(#REF!<#REF!,#REF!,FG12),#REF!) ->  | FD12: =IF(R12=#REF!,IF(#REF!<#REF!,0,1)) ->  | FE12: =IF(AND(FB12>=21,FB12<>0),FB12,IF(R12<#REF!,"СТОП",FC12+FD12)) ->  | FG12: 15 | FH12: 16 | FJ12: =IF(#REF!=1,25,0) ->  | FK12: =IF(#REF!=2,22,0) ->  | FL12: =IF(#REF!=3,20,0) ->  | FM12: =IF(#REF!=4,18,0) ->  | FN12: =IF(#REF!=5,16,0) ->  | FO12: =IF(#REF!=6,15,0) ->  | FP12: =IF(#REF!=7,14,0) ->  | FQ12: =IF(#REF!=8,13,0) ->  | FR12: =IF(#REF!=9,12,0) ->  | FS12: =IF(#REF!=10,11,0) ->  | FT12: =IF(#REF!=11,10,0) ->  | FU12: =IF(#REF!=12,9,0) ->  | FV12: =IF(#REF!=13,8,0) ->  | FW12: =IF(#REF!=14,7,0) ->  | FX12: =IF(#REF!=15,6,0) ->  | FY12: =IF(#REF!=16,5,0) ->  | FZ12: =IF(#REF!=17,4,0) ->  | GA12: =IF(#REF!=18,3,0) ->  | GB12: =IF(#REF!=19,2,0) ->  | GC12: =IF(#REF!=20,1,0) ->  | GD12: =IF(#REF!>20,0,0) ->  | GE12: =IF(#REF!="сх",0,0) ->  | GG12: =IF(#REF!=1,25,0) ->  | GH12: =IF(#REF!=2,22,0) ->  | GI12: =IF(#REF!=3,20,0) ->  | GJ12: =IF(#REF!=4,18,0) ->  | GK12: =IF(#REF!=5,16,0) ->  | GL12: =IF(#REF!=6,15,0) ->  | GM12: =IF(#REF!=7,14,0) ->  | GN12: =IF(#REF!=8,13,0) ->  | GO12: =IF(#REF!=9,12,0) ->  | GP12: =IF(#REF!=10,11,0) ->  | GQ12: =IF(#REF!=11,10,0) ->  | GR12: =IF(#REF!=12,9,0) ->  | GS12: =IF(#REF!=13,8,0) ->  | GT12: =IF(#REF!=14,7,0) ->  | GU12: =IF(#REF!=15,6,0) ->  | GV12: =IF(#REF!=16,5,0) ->  | GW12: =IF(#REF!=17,4,0) ->  | GX12: =IF(#REF!=18,3,0) ->  | GY12: =IF(#REF!=19,2,0) ->  | GZ12: =IF(#REF!=20,1,0) ->  | HA12: =IF(#REF!>20,0,0) ->  | HB12: =IF(#REF!="сх",0,0) ->  | HD12: =IF(#REF!=1,100,0) ->  | HE12: =IF(#REF!=2,98,0) ->  | HF12: =IF(#REF!=3,95,0) ->  | HG12: =IF(#REF!=4,93,0) ->  | HH12: =IF(#REF!=5,90,0) ->  | HI12: =IF(#REF!=6,88,0) ->  | HJ12: =IF(#REF!=7,85,0) ->  | HK12: =IF(#REF!=8,83,0) ->  | HL12: =IF(#REF!=9,80,0) ->  | HM12: =IF(#REF!=10,78,0) ->  | HN12: =IF(#REF!=11,75,0) ->  | HO12: =IF(#REF!=12,73,0) ->  | HP12: =IF(#REF!=13,70,0) ->  | HQ12: =IF(#REF!=14,68,0) ->  | HR12: =IF(#REF!=15,65,0) ->  | HS12: =IF(#REF!=16,63,0) ->  | HT12: =IF(#REF!=17,60,0) ->  | HU12: =IF(#REF!=18,58,0) ->  | HV12: =IF(#REF!=19,55,0) ->  | HW12: =IF(#REF!=20,53,0) ->  | HX12: =IF(#REF!>20,0,0) ->  | HY12: =IF(#REF!="сх",0,0) ->  | IA12: =IF(#REF!=1,100,0) ->  | IB12: =IF(#REF!=2,98,0) ->  | IC12: =IF(#REF!=3,95,0) ->  | ID12: =IF(#REF!=4,93,0) ->  | IE12: =IF(#REF!=5,90,0) ->  | IF12: =IF(#REF!=6,88,0) ->  | IG12: =IF(#REF!=7,85,0) ->  | IH12: =IF(#REF!=8,83,0) ->  | II12: =IF(#REF!=9,80,0) ->  | IJ12: =IF(#REF!=10,78,0) ->  | IK12: =IF(#REF!=11,75,0) ->  | IL12: =IF(#REF!=12,73,0) ->  | IM12: =IF(#REF!=13,70,0) ->  | IN12: =IF(#REF!=14,68,0) ->  | IO12: =IF(#REF!=15,65,0) ->  | IP12: =IF(#REF!=16,63,0) ->  | IQ12: =IF(#REF!=17,60,0) ->  | IR12: =IF(#REF!=18,58,0) ->  | IS12: =IF(#REF!=19,55,0) ->  | IT12: =IF(#REF!=20,53,0) ->  | IU12: =IF(#REF!>20,0,0) ->  | IV12: =IF(#REF!="сх",0,0) -> 
A13: 4 | B13: =SUM(C13+D13+E13) -> 13.8 | C13: 4.6 | D13: 4.8 | E13: 4.4 | F13: 55 | G13: Пархоменко Данила | H13: б/р | I13: г. Новый Уренгой, Ямало-Ненецкий АО | J13: СТК "Факел" | K13: LYNX | L13: 20 | M13: 22 | N13: 5 | O13: 16 | P13: 6 | Q13: 15 | R13: =SUM(L13+M13+O13+Q13) -> 73 | S13: =#REF!+#REF! ->  | V13: =IF(#REF!=1,25,0) ->  | W13: =IF(#REF!=2,22,0) ->  | X13: =IF(#REF!=3,20,0) ->  | Y13: =IF(#REF!=4,18,0) ->  | Z13: =IF(#REF!=5,16,0) ->  | AA13: =IF(#REF!=6,15,0) ->  | AB13: =IF(#REF!=7,14,0) ->  | AC13: =IF(#REF!=8,13,0) ->  | AD13: =IF(#REF!=9,12,0) ->  | AE13: =IF(#REF!=10,11,0) ->  | AF13: =IF(#REF!=11,10,0) ->  | AG13: =IF(#REF!=12,9,0) ->  | AH13: =IF(#REF!=13,8,0) ->  | AI13: =IF(#REF!=14,7,0) ->  | AJ13: =IF(#REF!=15,6,0) ->  | AK13: =IF(#REF!=16,5,0) ->  | AL13: =IF(#REF!=17,4,0) ->  | AM13: =IF(#REF!=18,3,0) ->  | AN13: =IF(#REF!=19,2,0) ->  | AO13: =IF(#REF!=20,1,0) ->  | AP13: =IF(#REF!>20,0,0) ->  | AQ13: =IF(#REF!="сх",0,0) ->  | AR13: =SUM(V13:AP13) ->  | AS13: =IF(#REF!=1,25,0) ->  | AT13: =IF(#REF!=2,22,0) ->  | AU13: =IF(#REF!=3,20,0) ->  | AV13: =IF(#REF!=4,18,0) ->  | AW13: =IF(#REF!=5,16,0) ->  | AX13: =IF(#REF!=6,15,0) ->  | AY13: =IF(#REF!=7,14,0) ->  | AZ13: =IF(#REF!=8,13,0) ->  | BA13: =IF(#REF!=9,12,0) ->  | BB13: =IF(#REF!=10,11,0) ->  | BC13: =IF(#REF!=11,10,0) ->  | BD13: =IF(#REF!=12,9,0) ->  | BE13: =IF(#REF!=13,8,0) ->  | BF13: =IF(#REF!=14,7,0) ->  | BG13: =IF(#REF!=15,6,0) ->  | BH13: =IF(#REF!=16,5,0) ->  | BI13: =IF(#REF!=17,4,0) ->  | BJ13: =IF(#REF!=18,3,0) ->  | BK13: =IF(#REF!=19,2,0) ->  | BL13: =IF(#REF!=20,1,0) ->  | BM13: =IF(#REF!>20,0,0) ->  | BN13: =IF(#REF!="сх",0,0) ->  | BO13: =SUM(AS13:BM13) ->  | BP13: =IF(#REF!=1,45,0) ->  | BQ13: =IF(#REF!=2,42,0) ->  | BR13: =IF(#REF!=3,40,0) ->  | BS13: =IF(#REF!=4,38,0) ->  | BT13: =IF(#REF!=5,36,0) ->  | BU13: =IF(#REF!=6,35,0) ->  | BV13: =IF(#REF!=7,34,0) ->  | BW13: =IF(#REF!=8,33,0) ->  | BX13: =IF(#REF!=9,32,0) ->  | BY13: =IF(#REF!=10,31,0) ->  | BZ13: =IF(#REF!=11,30,0) ->  | CA13: =IF(#REF!=12,29,0) ->  | CB13: =IF(#REF!=13,28,0) ->  | CC13: =IF(#REF!=14,27,0) ->  | CD13: =IF(#REF!=15,26,0) ->  | CE13: =IF(#REF!=16,25,0) ->  | CF13: =IF(#REF!=17,24,0) ->  | CG13: =IF(#REF!=18,23,0) ->  | CH13: =IF(#REF!=19,22,0) ->  | CI13: =IF(#REF!=20,21,0) ->  | CJ13: =IF(#REF!=21,20,0) ->  | CK13: =IF(#REF!=22,19,0) ->  | CL13: =IF(#REF!=23,18,0) ->  | CM13: =IF(#REF!=24,17,0) ->  | CN13: =IF(#REF!=25,16,0) ->  | CO13: =IF(#REF!=26,15,0) ->  | CP13: =IF(#REF!=27,14,0) ->  | CQ13: =IF(#REF!=28,13,0) ->  | CR13: =IF(#REF!=29,12,0) ->  | CS13: =IF(#REF!=30,11,0) ->  | CT13: =IF(#REF!=31,10,0) ->  | CU13: =IF(#REF!=32,9,0) ->  | CV13: =IF(#REF!=33,8,0) ->  | CW13: =IF(#REF!=34,7,0) ->  | CX13: =IF(#REF!=35,6,0) ->  | CY13: =IF(#REF!=36,5,0) ->  | CZ13: =IF(#REF!=37,4,0) ->  | DA13: =IF(#REF!=38,3,0) ->  | DB13: =IF(#REF!=39,2,0) ->  | DC13: =IF(#REF!=40,1,0) ->  | DD13: =IF(#REF!>20,0,0) ->  | DE13: =IF(#REF!="сх",0,0) ->  | DF13: =SUM(BP13:DE13) ->  | DG13: =IF(#REF!=1,45,0) ->  | DH13: =IF(#REF!=2,42,0) ->  | DI13: =IF(#REF!=3,40,0) ->  | DJ13: =IF(#REF!=4,38,0) ->  | DK13: =IF(#REF!=5,36,0) ->  | DL13: =IF(#REF!=6,35,0) ->  | DM13: =IF(#REF!=7,34,0) ->  | DN13: =IF(#REF!=8,33,0) ->  | DO13: =IF(#REF!=9,32,0) ->  | DP13: =IF(#REF!=10,31,0) ->  | DQ13: =IF(#REF!=11,30,0) ->  | DR13: =IF(#REF!=12,29,0) ->  | DS13: =IF(#REF!=13,28,0) ->  | DT13: =IF(#REF!=14,27,0) ->  | DU13: =IF(#REF!=15,26,0) ->  | DV13: =IF(#REF!=16,25,0) ->  | DW13: =IF(#REF!=17,24,0) ->  | DX13: =IF(#REF!=18,23,0) ->  | DY13: =IF(#REF!=19,22,0) ->  | DZ13: =IF(#REF!=20,21,0) ->  | EA13: =IF(#REF!=21,20,0) ->  | EB13: =IF(#REF!=22,19,0) ->  | EC13: =IF(#REF!=23,18,0) ->  | ED13: =IF(#REF!=24,17,0) ->  | EE13: =IF(#REF!=25,16,0) ->  | EF13: =IF(#REF!=26,15,0) ->  | EG13: =IF(#REF!=27,14,0) ->  | EH13: =IF(#REF!=28,13,0) ->  | EI13: =IF(#REF!=29,12,0) ->  | EJ13: =IF(#REF!=30,11,0) ->  | EK13: =IF(#REF!=31,10,0) ->  | EL13: =IF(#REF!=32,9,0) ->  | EM13: =IF(#REF!=33,8,0) ->  | EN13: =IF(#REF!=34,7,0) ->  | EO13: =IF(#REF!=35,6,0) ->  | EP13: =IF(#REF!=36,5,0) ->  | EQ13: =IF(#REF!=37,4,0) ->  | ER13: =IF(#REF!=38,3,0) ->  | ES13: =IF(#REF!=39,2,0) ->  | ET13: =IF(#REF!=40,1,0) ->  | EU13: =IF(#REF!>20,0,0) ->  | EV13: =IF(#REF!="сх",0,0) ->  | EW13: =SUM(DG13:EV13) ->  | EY13: =IF(#REF!="сх","ноль",IF(#REF!>0,#REF!,"Ноль")) ->  | EZ13: =IF(#REF!="сх","ноль",IF(#REF!>0,#REF!,"Ноль")) ->  | FB13: =MIN(EY13,EZ13) ->  | FC13: =IF(R13=#REF!,IF(#REF!<#REF!,#REF!,FG13),#REF!) ->  | FD13: =IF(R13=#REF!,IF(#REF!<#REF!,0,1)) ->  | FE13: =IF(AND(FB13>=21,FB13<>0),FB13,IF(R13<#REF!,"СТОП",FC13+FD13)) ->  | FG13: 15 | FH13: 16 | FJ13: =IF(#REF!=1,25,0) ->  | FK13: =IF(#REF!=2,22,0) ->  | FL13: =IF(#REF!=3,20,0) ->  | FM13: =IF(#REF!=4,18,0) ->  | FN13: =IF(#REF!=5,16,0) ->  | FO13: =IF(#REF!=6,15,0) ->  | FP13: =IF(#REF!=7,14,0) ->  | FQ13: =IF(#REF!=8,13,0) ->  | FR13: =IF(#REF!=9,12,0) ->  | FS13: =IF(#REF!=10,11,0) ->  | FT13: =IF(#REF!=11,10,0) ->  | FU13: =IF(#REF!=12,9,0) ->  | FV13: =IF(#REF!=13,8,0) ->  | FW13: =IF(#REF!=14,7,0) ->  | FX13: =IF(#REF!=15,6,0) ->  | FY13: =IF(#REF!=16,5,0) ->  | FZ13: =IF(#REF!=17,4,0) ->  | GA13: =IF(#REF!=18,3,0) ->  | GB13: =IF(#REF!=19,2,0) ->  | GC13: =IF(#REF!=20,1,0) ->  | GD13: =IF(#REF!>20,0,0) ->  | GE13: =IF(#REF!="сх",0,0) ->  | GF13: =SUM(FJ13:GE13) ->  | GG13: =IF(#REF!=1,25,0) ->  | GH13: =IF(#REF!=2,22,0) ->  | GI13: =IF(#REF!=3,20,0) ->  | GJ13: =IF(#REF!=4,18,0) ->  | GK13: =IF(#REF!=5,16,0) ->  | GL13: =IF(#REF!=6,15,0) ->  | GM13: =IF(#REF!=7,14,0) ->  | GN13: =IF(#REF!=8,13,0) ->  | GO13: =IF(#REF!=9,12,0) ->  | GP13: =IF(#REF!=10,11,0) ->  | GQ13: =IF(#REF!=11,10,0) ->  | GR13: =IF(#REF!=12,9,0) ->  | GS13: =IF(#REF!=13,8,0) ->  | GT13: =IF(#REF!=14,7,0) ->  | GU13: =IF(#REF!=15,6,0) ->  | GV13: =IF(#REF!=16,5,0) ->  | GW13: =IF(#REF!=17,4,0) ->  | GX13: =IF(#REF!=18,3,0) ->  | GY13: =IF(#REF!=19,2,0) ->  | GZ13: =IF(#REF!=20,1,0) ->  | HA13: =IF(#REF!>20,0,0) ->  | HB13: =IF(#REF!="сх",0,0) ->  | HC13: =SUM(GG13:HB13) ->  | HD13: =IF(#REF!=1,100,0) ->  | HE13: =IF(#REF!=2,98,0) ->  | HF13: =IF(#REF!=3,95,0) ->  | HG13: =IF(#REF!=4,93,0) ->  | HH13: =IF(#REF!=5,90,0) ->  | HI13: =IF(#REF!=6,88,0) ->  | HJ13: =IF(#REF!=7,85,0) ->  | HK13: =IF(#REF!=8,83,0) ->  | HL13: =IF(#REF!=9,80,0) ->  | HM13: =IF(#REF!=10,78,0) ->  | HN13: =IF(#REF!=11,75,0) ->  | HO13: =IF(#REF!=12,73,0) ->  | HP13: =IF(#REF!=13,70,0) ->  | HQ13: =IF(#REF!=14,68,0) ->  | HR13: =IF(#REF!=15,65,0) ->  | HS13: =IF(#REF!=16,63,0) ->  | HT13: =IF(#REF!=17,60,0) ->  | HU13: =IF(#REF!=18,58,0) ->  | HV13: =IF(#REF!=19,55,0) ->  | HW13: =IF(#REF!=20,53,0) ->  | HX13: =IF(#REF!>20,0,0) ->  | HY13: =IF(#REF!="сх",0,0) ->  | HZ13: =SUM(HD13:HY13) ->  | IA13: =IF(#REF!=1,100,0) ->  | IB13: =IF(#REF!=2,98,0) ->  | IC13: =IF(#REF!=3,95,0) ->  | ID13: =IF(#REF!=4,93,0) ->  | IE13: =IF(#REF!=5,90,0) ->  | IF13: =IF(#REF!=6,88,0) ->  | IG13: =IF(#REF!=7,85,0) ->  | IH13: =IF(#REF!=8,83,0) ->  | II13: =IF(#REF!=9,80,0) ->  | IJ13: =IF(#REF!=10,78,0) ->  | IK13: =IF(#REF!=11,75,0) ->  | IL13: =IF(#REF!=12,73,0) ->  | IM13: =IF(#REF!=13,70,0) ->  | IN13: =IF(#REF!=14,68,0) ->  | IO13: =IF(#REF!=15,65,0) ->  | IP13: =IF(#REF!=16,63,0) ->  | IQ13: =IF(#REF!=17,60,0) ->  | IR13: =IF(#REF!=18,58,0) ->  | IS13: =IF(#REF!=19,55,0) ->  | IT13: =IF(#REF!=20,53,0) ->  | IU13: =IF(#REF!>20,0,0) ->  | IV13: =IF(#REF!="сх",0,0) ->  | IW13: =SUM(IA13:IV13) -> 
A14: 5 | B14: =SUM(C14+D14+E14) -> 13.4 | C14: 4.5 | D14: 4.4 | E14: 4.5 | F14: 77 | G14: Гнатюк Егор | H14: б/р | I14: г. Новый Уренгой, Ямало-Ненецкий АО | J14: СТК "Факел" | K14: LYNX | L14: 18 | M14: 16 | N14: 4 | O14: 18 | P14: 3 | Q14: 20 | R14: =SUM(L14+M14+O14+Q14) -> 72 | S14: =#REF!+#REF! ->  | V14: =IF(#REF!=1,25,0) ->  | W14: =IF(#REF!=2,22,0) ->  | X14: =IF(#REF!=3,20,0) ->  | Y14: =IF(#REF!=4,18,0) ->  | Z14: =IF(#REF!=5,16,0) ->  | AA14: =IF(#REF!=6,15,0) ->  | AB14: =IF(#REF!=7,14,0) ->  | AC14: =IF(#REF!=8,13,0) ->  | AD14: =IF(#REF!=9,12,0) ->  | AE14: =IF(#REF!=10,11,0) ->  | AF14: =IF(#REF!=11,10,0) ->  | AG14: =IF(#REF!=12,9,0) ->  | AH14: =IF(#REF!=13,8,0) ->  | AI14: =IF(#REF!=14,7,0) ->  | AJ14: =IF(#REF!=15,6,0) ->  | AK14: =IF(#REF!=16,5,0) ->  | AL14: =IF(#REF!=17,4,0) ->  | AM14: =IF(#REF!=18,3,0) ->  | AN14: =IF(#REF!=19,2,0) ->  | AO14: =IF(#REF!=20,1,0) ->  | AP14: =IF(#REF!>20,0,0) ->  | AQ14: =IF(#REF!="сх",0,0) ->  | AS14: =IF(#REF!=1,25,0) ->  | AT14: =IF(#REF!=2,22,0) ->  | AU14: =IF(#REF!=3,20,0) ->  | AV14: =IF(#REF!=4,18,0) ->  | AW14: =IF(#REF!=5,16,0) ->  | AX14: =IF(#REF!=6,15,0) ->  | AY14: =IF(#REF!=7,14,0) ->  | AZ14: =IF(#REF!=8,13,0) ->  | BA14: =IF(#REF!=9,12,0) ->  | BB14: =IF(#REF!=10,11,0) ->  | BC14: =IF(#REF!=11,10,0) ->  | BD14: =IF(#REF!=12,9,0) ->  | BE14: =IF(#REF!=13,8,0) ->  | BF14: =IF(#REF!=14,7,0) ->  | BG14: =IF(#REF!=15,6,0) ->  | BH14: =IF(#REF!=16,5,0) ->  | BI14: =IF(#REF!=17,4,0) ->  | BJ14: =IF(#REF!=18,3,0) ->  | BK14: =IF(#REF!=19,2,0) ->  | BL14: =IF(#REF!=20,1,0) ->  | BM14: =IF(#REF!>20,0,0) ->  | BN14: =IF(#REF!="сх",0,0) ->  | BP14: =IF(#REF!=1,45,0) ->  | BQ14: =IF(#REF!=2,42,0) ->  | BR14: =IF(#REF!=3,40,0) ->  | BS14: =IF(#REF!=4,38,0) ->  | BT14: =IF(#REF!=5,36,0) ->  | BU14: =IF(#REF!=6,35,0) ->  | BV14: =IF(#REF!=7,34,0) ->  | BW14: =IF(#REF!=8,33,0) ->  | BX14: =IF(#REF!=9,32,0) ->  | BY14: =IF(#REF!=10,31,0) ->  | BZ14: =IF(#REF!=11,30,0) ->  | CA14: =IF(#REF!=12,29,0) ->  | CB14: =IF(#REF!=13,28,0) ->  | CC14: =IF(#REF!=14,27,0) ->  | CD14: =IF(#REF!=15,26,0) ->  | CE14: =IF(#REF!=16,25,0) ->  | CF14: =IF(#REF!=17,24,0) ->  | CG14: =IF(#REF!=18,23,0) ->  | CH14: =IF(#REF!=19,22,0) ->  | CI14: =IF(#REF!=20,21,0) ->  | CJ14: =IF(#REF!=21,20,0) ->  | CK14: =IF(#REF!=22,19,0) ->  | CL14: =IF(#REF!=23,18,0) ->  | CM14: =IF(#REF!=24,17,0) ->  | CN14: =IF(#REF!=25,16,0) ->  | CO14: =IF(#REF!=26,15,0) ->  | CP14: =IF(#REF!=27,14,0) ->  | CQ14: =IF(#REF!=28,13,0) ->  | CR14: =IF(#REF!=29,12,0) ->  | CS14: =IF(#REF!=30,11,0) ->  | CT14: =IF(#REF!=31,10,0) ->  | CU14: =IF(#REF!=32,9,0) ->  | CV14: =IF(#REF!=33,8,0) ->  | CW14: =IF(#REF!=34,7,0) ->  | CX14: =IF(#REF!=35,6,0) ->  | CY14: =IF(#REF!=36,5,0) ->  | CZ14: =IF(#REF!=37,4,0) ->  | DA14: =IF(#REF!=38,3,0) ->  | DB14: =IF(#REF!=39,2,0) ->  | DC14: =IF(#REF!=40,1,0) ->  | DD14: =IF(#REF!>20,0,0) ->  | DE14: =IF(#REF!="сх",0,0) ->  | DG14: =IF(#REF!=1,45,0) ->  | DH14: =IF(#REF!=2,42,0) ->  | DI14: =IF(#REF!=3,40,0) ->  | DJ14: =IF(#REF!=4,38,0) ->  | DK14: =IF(#REF!=5,36,0) ->  | DL14: =IF(#REF!=6,35,0) ->  | DM14: =IF(#REF!=7,34,0) ->  | DN14: =IF(#REF!=8,33,0) ->  | DO14: =IF(#REF!=9,32,0) ->  | DP14: =IF(#REF!=10,31,0) ->  | DQ14: =IF(#REF!=11,30,0) ->  | DR14: =IF(#REF!=12,29,0) ->  | DS14: =IF(#REF!=13,28,0) ->  | DT14: =IF(#REF!=14,27,0) ->  | DU14: =IF(#REF!=15,26,0) ->  | DV14: =IF(#REF!=16,25,0) ->  | DW14: =IF(#REF!=17,24,0) ->  | DX14: =IF(#REF!=18,23,0) ->  | DY14: =IF(#REF!=19,22,0) ->  | DZ14: =IF(#REF!=20,21,0) ->  | EA14: =IF(#REF!=21,20,0) ->  | EB14: =IF(#REF!=22,19,0) ->  | EC14: =IF(#REF!=23,18,0) ->  | ED14: =IF(#REF!=24,17,0) ->  | EE14: =IF(#REF!=25,16,0) ->  | EF14: =IF(#REF!=26,15,0) ->  | EG14: =IF(#REF!=27,14,0) ->  | EH14: =IF(#REF!=28,13,0) ->  | EI14: =IF(#REF!=29,12,0) ->  | EJ14: =IF(#REF!=30,11,0) ->  | EK14: =IF(#REF!=31,10,0) ->  | EL14: =IF(#REF!=32,9,0) ->  | EM14: =IF(#REF!=33,8,0) ->  | EN14: =IF(#REF!=34,7,0) ->  | EO14: =IF(#REF!=35,6,0) ->  | EP14: =IF(#REF!=36,5,0) ->  | EQ14: =IF(#REF!=37,4,0) ->  | ER14: =IF(#REF!=38,3,0) ->  | ES14: =IF(#REF!=39,2,0) ->  | ET14: =IF(#REF!=40,1,0) ->  | EU14: =IF(#REF!>20,0,0) ->  | EV14: =IF(#REF!="сх",0,0) ->  | EY14: =IF(#REF!="сх","ноль",IF(#REF!>0,#REF!,"Ноль")) ->  | EZ14: =IF(#REF!="сх","ноль",IF(#REF!>0,#REF!,"Ноль")) ->  | FC14: =IF(R14=#REF!,IF(#REF!<#REF!,#REF!,FG14),#REF!) ->  | FD14: =IF(R14=#REF!,IF(#REF!<#REF!,0,1)) ->  | FE14: =IF(AND(FB14>=21,FB14<>0),FB14,IF(R14<#REF!,"СТОП",FC14+FD14)) ->  | FG14: 15 | FH14: 16 | FJ14: =IF(#REF!=1,25,0) ->  | FK14: =IF(#REF!=2,22,0) ->  | FL14: =IF(#REF!=3,20,0) ->  | FM14: =IF(#REF!=4,18,0) ->  | FN14: =IF(#REF!=5,16,0) ->  | FO14: =IF(#REF!=6,15,0) ->  | FP14: =IF(#REF!=7,14,0) ->  | FQ14: =IF(#REF!=8,13,0) ->  | FR14: =IF(#REF!=9,12,0) ->  | FS14: =IF(#REF!=10,11,0) ->  | FT14: =IF(#REF!=11,10,0) ->  | FU14: =IF(#REF!=12,9,0) ->  | FV14: =IF(#REF!=13,8,0) ->  | FW14: =IF(#REF!=14,7,0) ->  | FX14: =IF(#REF!=15,6,0) ->  | FY14: =IF(#REF!=16,5,0) ->  | FZ14: =IF(#REF!=17,4,0) ->  | GA14: =IF(#REF!=18,3,0) ->  | GB14: =IF(#REF!=19,2,0) ->  | GC14: =IF(#REF!=20,1,0) ->  | GD14: =IF(#REF!>20,0,0) ->  | GE14: =IF(#REF!="сх",0,0) ->  | GG14: =IF(#REF!=1,25,0) ->  | GH14: =IF(#REF!=2,22,0) ->  | GI14: =IF(#REF!=3,20,0) ->  | GJ14: =IF(#REF!=4,18,0) ->  | GK14: =IF(#REF!=5,16,0) ->  | GL14: =IF(#REF!=6,15,0) ->  | GM14: =IF(#REF!=7,14,0) ->  | GN14: =IF(#REF!=8,13,0) ->  | GO14: =IF(#REF!=9,12,0) ->  | GP14: =IF(#REF!=10,11,0) ->  | GQ14: =IF(#REF!=11,10,0) ->  | GR14: =IF(#REF!=12,9,0) ->  | GS14: =IF(#REF!=13,8,0) ->  | GT14: =IF(#REF!=14,7,0) ->  | GU14: =IF(#REF!=15,6,0) ->  | GV14: =IF(#REF!=16,5,0) ->  | GW14: =IF(#REF!=17,4,0) ->  | GX14: =IF(#REF!=18,3,0) ->  | GY14: =IF(#REF!=19,2,0) ->  | GZ14: =IF(#REF!=20,1,0) ->  | HA14: =IF(#REF!>20,0,0) ->  | HB14: =IF(#REF!="сх",0,0) ->  | HD14: =IF(#REF!=1,100,0) ->  | HE14: =IF(#REF!=2,98,0) ->  | HF14: =IF(#REF!=3,95,0) ->  | HG14: =IF(#REF!=4,93,0) ->  | HH14: =IF(#REF!=5,90,0) ->  | HI14: =IF(#REF!=6,88,0) ->  | HJ14: =IF(#REF!=7,85,0) ->  | HK14: =IF(#REF!=8,83,0) ->  | HL14: =IF(#REF!=9,80,0) ->  | HM14: =IF(#REF!=10,78,0) ->  | HN14: =IF(#REF!=11,75,0) ->  | HO14: =IF(#REF!=12,73,0) ->  | HP14: =IF(#REF!=13,70,0) ->  | HQ14: =IF(#REF!=14,68,0) ->  | HR14: =IF(#REF!=15,65,0) ->  | HS14: =IF(#REF!=16,63,0) ->  | HT14: =IF(#REF!=17,60,0) ->  | HU14: =IF(#REF!=18,58,0) ->  | HV14: =IF(#REF!=19,55,0) ->  | HW14: =IF(#REF!=20,53,0) ->  | HX14: =IF(#REF!>20,0,0) ->  | HY14: =IF(#REF!="сх",0,0) ->  | HZ14: =SUM(HD14:HY14) ->  | IA14: =IF(#REF!=1,100,0) ->  | IB14: =IF(#REF!=2,98,0) ->  | IC14: =IF(#REF!=3,95,0) ->  | ID14: =IF(#REF!=4,93,0) ->  | IE14: =IF(#REF!=5,90,0) ->  | IF14: =IF(#REF!=6,88,0) ->  | IG14: =IF(#REF!=7,85,0) ->  | IH14: =IF(#REF!=8,83,0) ->  | II14: =IF(#REF!=9,80,0) ->  | IJ14: =IF(#REF!=10,78,0) ->  | IK14: =IF(#REF!=11,75,0) ->  | IL14: =IF(#REF!=12,73,0) ->  | IM14: =IF(#REF!=13,70,0) ->  | IN14: =IF(#REF!=14,68,0) ->  | IO14: =IF(#REF!=15,65,0) ->  | IP14: =IF(#REF!=16,63,0) ->  | IQ14: =IF(#REF!=17,60,0) ->  | IR14: =IF(#REF!=18,58,0) ->  | IS14: =IF(#REF!=19,55,0) ->  | IT14: =IF(#REF!=20,53,0) ->  | IU14: =IF(#REF!>20,0,0) ->  | IV14: =IF(#REF!="сх",0,0) -> 
A15: 6 | B15: =SUM(C15+D15+E15) -> 12.3 | C15: 3.8 | D15: 4.3 | E15: 4.2 | F15: 44 | G15: Дубовик Иван | H15: б/р | I15: г. Новый Уренгой, Ямало-Ненецкий АО | J15: СТК "Факел" | K15: LYNX | L15: 10 | M15: 15 | N15: 7 | O15: 14 | P15: 9 | Q15: 12 | R15: =SUM(L15+M15+O15+Q15) -> 51
A16: 7 | B16: =SUM(C16+D16+E16) -> 12 | C16: 3.9 | D16: 4.1 | E16: 4 | F16: 66 | G16: Шевяков Никита | H16: б/р | I16: г. Новый Уренгой, Ямало-Ненецкий АО | J16: СТК "Факел" | K16: LYNX | L16: 11 | M16: 13 | N16: 10 | O16: 11 | P16: 7 | Q16: 14 | R16: =SUM(L16+M16+O16+Q16) -> 49
A17: 8 | B17: =SUM(C17+D17+E17) -> 4.6 | E17: 4.6 | F17: 17 | G17: Литвинова Дарина | H17: I | I17: г. Надым, Ямало-Ненецкий АО | J17: СТК "Форсаж" | K17: Sky-Doo | L17: 0 | M17: 0 | N17: 0 | O17: 0 | P17: 0 | Q17: 0 | R17: =SUM(L17+M17+O17+Q17) -> 0
A18: 9 | B18: =SUM(C18+D18+E18) -> 8.6 | C18: 4.3 | E18: 4.3 | F18: 161 | G18: Каленчин Дмитрий | H18: II | I18: г. Новый Уренгой, Ямало-Ненецкий АО | J18: СТК "Ямбург" | K18: LYNX | L18: 15 | M18: 0 | N18: 6 | O18: 15 | P18: 5 | Q18: 16 | R18: =SUM(L18+M18+O18+Q18) -> 46
A19: 10 | B19: =SUM(C19+D19+E19) -> 8.2 | C19: 4.1 | E19: 4.1 | F19: 41 | G19: Колегов Матвей | H19: II | I19: г. Новый Уренгой, Ямало-Ненецкий АО | J19: СТК "Ямбург" | K19: LYNX | L19: 13 | M19: 0 | N19: 8 | O19: 13 | P19: 8 | Q19: 13 | R19: =SUM(L19+M19+O19+Q19) -> 39
A20: 11 | B20: =SUM(C20+D20+E20) -> 8.3 | C20: 0 | D20: 4.5 | E20: 3.8 | F20: 935 | G20: Дидур Марк | H20: б/р | I20: г. Новый Уренгой, Ямало-Ненецкий АО | J20: МАУ МЦ "НОРД" | L20: 0 | M20: 18 | N20: 11 | O20: 10 | P20: 12 | Q20: 9 | R20: =SUM(L20+M20+O20+Q20) -> 37
A21: 12 | B21: =SUM(C21+D21+E21) -> 7.9 | C21: 4 | D21: 0 | E21: 3.9 | F21: 121 | G21: Воробьев Александр | H21: II | I21: г. Новый Уренгой, Ямало-Ненецкий АО | J21: СТК "Ямбург" | K21: LYNX | L21: 12 | M21: 0 | N21: 12 | O21: 9 | P21: 10 | Q21: 11 | R21: =SUM(L21+M21+O21+Q21) -> 32
A22: 13 | B22: =SUM(C22+D22+E22) -> 7.4 | C22: 3.7 | D22: 0 | E22: 3.7 | F22: 181 | G22: Меркурьев Алексей | H22: II | I22: г. Новый Уренгой, Ямало-Ненецкий АО | J22: СТК "Ямбург" | K22: Тайга 120 | L22: 9 | M22: 0 | N22: 13 | O22: 8 | P22: 11 | Q22: 10 | R22: =SUM(L22+M22+O22+Q22) -> 27
A23: 14 | B23: =SUM(C23+D23+E23) -> 4.2 | C23: 4.2 | D23: 0 | E23: 0 | F23: 141 | G23: Молчанов Максим | H23: II | I23: г. Новый Уренгой, Ямало-Ненецкий АО | J23: СТК "Ямбург" | K23: LYNX | L23: 14 | M23: 0 | N23: - | O23: 0 | P23: - | Q23: 0 | R23: =SUM(L23+M23+O23+Q23) -> 14
A24: 15 | B24: =SUM(C24+D24+E24) -> 3.6 | C24: 0 | D24: 0 | E24: 3.6 | F24: 17 | G24: Литвинова Дарина | H24: I | I24: г. Надым, Ямало-Ненецкий АО | J24: СТК "Форсаж" | K24: Sky-Doo | L24: 0 | M24: 0 | N24: 9 | O24: 12 | P24: н/с | Q24: 0 | R24: =SUM(L24+M24+O24+Q24) -> 12
A30: Главный судья соревнований
A31: судья Всероссийской категории: А. Б. Стеблинский (г. Тюмень; лицензия МФР А 144)
A33: Главный секретарь соревнований
A34: судья Всероссийской категории: А. Ю. Иванов (г. Москва/лицензия МФР А 105; FIM 11245)

Sheet ШАБЛОН
D2: 0.4 | E2: 0.3 | F2: 0.2 | G2: 0.1
A3: 1 | B3: 50 | D3: 20 | E3: 15 | F3: 10 | G3: 5
A4: 2 | B4: 48 | D4: 19.2 | E4: 14.4 | F4: 9.6 | G4: 4.8
A5: 3 | B5: 46 | D5: 18.4 | E5: 13.8 | F5: 9.2 | G5: 4.6
A6: 4 | B6: 45 | D6: 18 | E6: 13.5 | F6: 9 | G6: 4.5
A7: 5 | B7: 44 | D7: 17.6 | E7: 13.2 | F7: 8.8 | G7: 4.4
A8: 6 | B8: 43 | D8: 17.2 | E8: 12.9 | F8: 8.6 | G8: 4.3
A9: 7 | B9: 42 | D9: 16.8 | E9: 12.6 | F9: 8.4 | G9: 4.2
A10: 8 | B10: 41 | D10: 16.4 | E10: 12.3 | F10: 8.2 | G10: 4.1
A11: 9 | B11: 40 | D11: 16 | E11: 12 | F11: 8 | G11: 4
A12: 10 | B12: 39 | D12: 15.6 | E12: 11.7 | F12: 7.8 | G12: 3.9
A13: 11 | B13: 38 | D13: 15.2 | E13: 11.4 | F13: 7.6 | G13: 3.8
A14: 12 | B14: 37 | D14: 14.8 | E14: 11.1 | F14: 7.4 | G14: 3.7
A15: 13 | B15: 36 | D15: 14.4 | E15: 10.8 | F15: 7.2 | G15: 3.6
A16: 14 | B16: 35 | D16: 14 | E16: 10.5 | F16: 7 | G16: 3.5
A17: 15 | B17: 34 | D17: 13.6 | E17: 10.2 | F17: 6.8 | G17: 3.4
A18: 16 | B18: 33 | D18: 13.2 | E18: 9.9 | F18: 6.6 | G18: 3.3
A19: 17 | B19: 32 | D19: 12.8 | E19: 9.6 | F19: 6.4 | G19: 3.2
A20: 18 | B20: 31 | D20: 12.4 | E20: 9.3 | F20: 6.2 | G20: 3.1
A21: 19 | B21: 30 | D21: 12 | E21: 9 | F21: 6 | G21: 3
A22: 20 | B22: 29 | D22: 11.6 | E22: 8.7 | F22: 5.8 | G22: 2.9
A23: 21 | B23: 28 | D23: 11.2 | E23: 8.4 | F23: 5.6 | G23: 2.8
A24: 22 | B24: 27 | D24: 10.8 | E24: 8.1 | F24: 5.4 | G24: 2.7
A25: 23 | B25: 26 | D25: 10.4 | E25: 7.8 | F25: 5.2 | G25: 2.6
A26: 24 | B26: 25 | D26: 10 | E26: 7.5 | F26: 5 | G26: 2.5
A27: 25 | B27: 24 | D27: 9.6 | E27: 7.2 | F27: 4.8 | G27: 2.4
A28: 26 | B28: 23 | D28: 9.2 | E28: 6.9 | F28: 4.6 | G28: 2.3
A29: 27 | B29: 22 | D29: 8.8 | E29: 6.6 | F29: 4.4 | G29: 2.2
A30: 28 | B30: 21 | D30: 8.4 | E30: 6.3 | F30: 4.2 | G30: 2.1
A31: 29 | B31: 20 | D31: 8 | E31: 6 | F31: 4 | G31: 2
A32: 30 | B32: 19 | D32: 7.6 | E32: 5.7 | F32: 3.8 | G32: 1.9
A33: 31 | B33: 18 | D33: 7.2 | E33: 5.4 | F33: 3.6 | G33: 1.8
A34: 32 | B34: 17 | D34: 6.8 | E34: 5.1 | F34: 3.4 | G34: 1.7
A35: 33 | B35: 16 | D35: 6.4 | E35: 4.8 | F35: 3.2 | G35: 1.6
A36: 34 | B36: 15 | D36: 6 | E36: 4.5 | F36: 3 | G36: 1.5
A37: 35 | B37: 14 | D37: 5.6 | E37: 4.2 | F37: 2.8 | G37: 1.4
A38: 36 | B38: 13 | D38: 5.2 | E38: 3.9 | F38: 2.6 | G38: 1.3
A39: 37 | B39: 12 | D39: 4.8 | E39: 3.6 | F39: 2.4 | G39: 1.2
A40: 38 | B40: 11 | D40: 4.4 | E40: 3.3 | F40: 2.2 | G40: 1.1
A41: 39 | B41: 10 | D41: 4 | E41: 3 | F41: 2 | G41: 1
A42: 40 | B42: 9 | D42: 3.6 | E42: 2.7 | F42: 1.8 | G42: 0.9
A43: 41 | B43: 8 | D43: 3.2 | E43: 2.4 | F43: 1.6 | G43: 0.8
A44: 42 | B44: 7 | D44: 2.8 | E44: 2.1 | F44: 1.4 | G44: 0.7
A45: 43 | B45: 6 | D45: 2.4 | E45: 1.8 | F45: 1.2 | G45: 0.6
A46: 44 | B46: 5 | D46: 2 | E46: 1.5 | F46: 1 | G46: 0.5
A47: 45 | B47: 4 | D47: 1.6 | E47: 1.2 | F47: 0.8 | G47: 0.4
A48: 46 | B48: 3 | D48: 1.2 | E48: 0.9 | F48: 0.6 | G48: 0.3
A49: 47 | B49: 2 | D49: 0.8 | E49: 0.6 | F49: 0.4 | G49: 0.2
A50: 48 | B50: 1 | D50: 0.4 | E50: 0.3 | F50: 0.2 | G50: 0.1
